Workbook

Sheet Introduction
B3: GlassECC v1.1 – EPD Based Glass Embodied Carbon Assessment Tool Introduction & Methodology 1. Description GlassECC is an EPD-based calculation tool for estimating the embodied carbon of insulating glass units (IGUs) using product-specific Environmental Product Declarations (EPDs). It is intended for early-stage design, comparative assessment, and transparent evaluation of façade glazing systems, enabling informed decision-making based on verifiable data. 2. Methodology The tool operates exclusively on Environmental Product Declarations (EPDs) data in accordance with EN 15804 and ISO 14025. All embodied carbon values are derived directly from the manufacturer’s declared EPD without the use of generic datasets, industry averages, or secondary databases. 3. Calculation Approach The embodied carbon of an IGU is calculated by: • Defining the IGU composition based on user inputs • Breaking down the unit into constituent components (glass panes, spacer, sealants, assembly) • Assigning each component to a specific EPD dataset • Converting declared units to kgCO₂e/m² where required Results are presented as total embodied carbon per 1-meter square area (kgCO₂e/m²). 4. Data Sources All input data is sourced from published and verified Environmental Product Declarations. For each component, the tool provides: • Manufacturer name • Product name • Product type • EPD reference number • Validity period
B4: 5. Limitations Results are dependent on the availability and quality of EPD data Not all manufacturers, products, or system are represented 6. Reference This tool is based on and extends the methodology presented in: Istratii, M. – “A Methodology for Accurate Embodied Carbon Assessment of Insulating Glass Units using EPD Data” Proceedings of the Challenging Glass Conference 10 Access paper:https://proceedings.challengingglass.com/index.php/cgc/article/view/740 7. Author & Affiliation Author: Mihail Istratii Affiliation: GLF Façade Specialists Tool: GlassECC v1.1 Date: June 2026 8. Instructions for Use • Use only the light blue cells to generate the data from the drop down menus provided • Select the composition of IGU, double glazed or triple glazed • Define the IGU configuration using dropdown menus • Verify component composition and data references • Review calculated embodied carbon results (kgCO₂e/m²) • Interpret results in the context of system boundaries and assumptions

Sheet Materials overview
B2: GlassECC v1.1 – EPD Based Glass Embodied Carbon Assessment Tool Materials overview This sheet provides an overview of glass products and manufacturers included in GlassECC v1.1. • It serves as a reference for: • Identifying which manufacturers are represented • Understanding the types of products considered • Reviewing associated EPD references and validity periods Note: This is a reference index. Product selection for calculations is performed within the main calculator.
B4: List of products incorporated in Glass ECC V1.1
B5: Manufacturer | C5: Product | D5: EPD reference | E5: Validity period
B6: AGC | C6: Planibel Clearlite Low Carbon Monolithic | D6: 20240940455-FC | E6: 2029-12-31
C7: Planibel Clearlite Low Carbon Monolithic offline coated (including ranges: Clearsight, Energy, ipasol, iplus, Luxclear, Stopray) | D7: 20240940459-FC | E7: 2029-12-31
C8: Planibel Clearlite Low Carbon Monolithic toughened HST | D8: 20240940456-FC | E8: 2029-12-31
C9: Planibel Clearlite Low Carbon Monolithic toughened HST offline coated (including ranges: Clearsight, Energy, ipasol, iplus, Luxclear, Stopray) | D9: 20240940459-FC | E9: 2029-12-31
C10: Planibel Clearlite Low Carbon Laminated | D10: 20240940457-FC | E10: 2029-12-31
C11: Planibel Clearlite Low Carbon Laminated offline coated (including ranges: Clearsight, Energy, ipasol, iplus, Luxclear, Stopray) | D11: 20240940457-FC | E11: 2029-12-31
C12: Planibel Clearlite Low Carbon Laminated toughened | D12: 20240940457-FC | E12: 2029-12-31
C13: Planibel Clearlite Low Carbon Laminated toughened offline coated (including ranges: Clearsight, Energy, ipasol, iplus, Luxclear, Stopray) | D13: 20240940457-FC | E13: 2029-12-31
C14: Planibel Clearlite Monolithic (including types: Dark Grey, Green, Grey, Linea Azzurra) | D14: 20240940452-FC | E14: 2029-12-31
C15: Planibel Clearlite Monolithic offline coated (including ranges: Clearsight, Energy, ipasol, iplus, Luxclear, Stopray) | D15: 20240940460-FC | E15: 2029-12-31
C16: Planibel Clearlite Monolithic toughened HST (including types: Dark Grey, Green, Grey, Linea Azzurra) | D16: 20240940468-FC | E16: 2029-12-31
C17: Planibel Clearlite Monolithic toughened HST offline coated | D17: 20240940460-FC | E17: 2029-12-31
C18: Planibel Clearlite Laminated (including types: Dark Grey, Green, Grey, Linea Azzurra) | D18: 20240940458-FC | E18: 2029-12-31
C19: Planibel Clearlite Laminated offline coated (including ranges: Clearsight, Energy, ipasol, iplus, Luxclear, Stopray) | D19: 20240940458-FC | E19: 2029-12-31
C20: Planibel Clearlite Laminated toughened (including types: Dark Grey, Green, Grey, Linea Azzurra) | D20: 20240940458-FC | E20: 2029-12-31
C21: Planibel Clearlite Laminated toughened offline coated (including ranges: Clearsight, Energy, ipasol, iplus, Luxclear, Stopray) | D21: 20240940458-FC | E21: 2029-12-31
C22: Planibel Clearvision Monolithic(including types: Dark Grey, Green, Grey, Linea Azzurra) | D22: 20240940452-FC | E22: 2029-12-31
C23: Planibel Clearvision Monolithic offline coated (including ranges: Clearsight, Energy, ipasol, iplus, Luxclear, Stopray) | D23: 20240940460-FC | E23: 2029-12-31
C24: Planibel Clearvision Monolithic toughened HST (including types: Dark Grey, Green, Grey, Linea Azzurra) | D24: 20240940468-FC | E24: 2029-12-31
C25: Planibel Clearvision Monolithic toughened HST offline coated (including ranges: Clearsight, Energy, ipasol, iplus, Luxclear, Stopray) | D25: 20240940460-FC | E25: 2029-12-31
C26: Planibel Clearvision Laminated (including types: Dark Grey, Green, Grey, Linea Azzurra) | D26: 20240940458-FC | E26: 2029-12-31
C27: Planibel Clearvision Laminated offline coated (including ranges: Clearsight, Energy, ipasol, iplus, Luxclear, Stopray) | D27: 20240940458-FC | E27: 2029-12-31
C28: Planibel Clearvision Laminated toughened (including types: Dark Grey, Green, Grey, Linea Azzurra) | D28: 20240940458-FC | E28: 2029-12-31
C29: Planibel Clearvision Laminated toughened offline coated (including ranges: Clearsight, Energy, ipasol, iplus, Luxclear, Stopray) | D29: 20240940458-FC | E29: 2029-12-31
B31: Euroglass | C31: Eurofloat Monolithic | D31: EPD-GLS-20250386-IBC1-DE | E31: 2030-07-22
C32: Eurolamex Laminated | D32: EPD-GLS-20230183-IBB3-EN | E32: 2029-02-04
B34: Guardian | C34: NEXA 6 Monolithic Extraclear | D34: 4791438322.105.1 | E34: 2029-08-29
C35: NEXA 6 Monolithic Extraclear coated (including ranges: Sunguard, Anti-reflective, Pure sight, ThermaGuard, Dielectric mirror)
C36: NEXA 6 Laminated (including: Extraclear, Ultraclear, Acoustic, Coloured, Structural XT, Transwhite, UV, Bird1st)
C37: NEXA 9 Monolithic | D37: 4791438322.106.1
C38: NEXA 9 Monolithic coated (including ranges: Sunguard, Anti-reflective, Pure sight, ThermaGuard, Dielectric mirror)
C39: NEXA 9 Laminated (including: Extraclear, Ultraclear, Acoustic, Coloured, Structural XT, Transwhite, UV, Bird1st)
C40: Monolithic Extraclear | D40: 4791438322.102.1
C41: Monolithic Extraclear coated (including ranges: Sunguard, Climaguard, Anti-reflective, Pure sight, ThermaGuard, Dielectric mirror) | D41: 4791438322.101.1
C42: Monolithic Ultraclear | D42: 4791438322.103.1
C43: Laminated (including: Extraclear, Ultraclear, Acoustic, Coloured, Structural XT, Transwhite, UV, Bird1st) | D43: 4791438322.104.1
B45: Pilkington | C45: Mirai – Monolithic | D45: S-P-11498 V2 | E45: 2029-01-23
C46: Mirai – Monolithic offline coated (including ranges: Suncool, Optitherm, K Glass) | D46: IES-0024742 | E46: 2031-01-16
C47: Mirai – Monolithic toughened | D47: IES-0024744 | E47: 2031-01-16
C48: Mirai – Monolithic toughened offline coated (including ranges: Suncool, Optitherm, K Glass) | D48: IES-0024743 | E48: 2031-01-16
C49: Mirai – Laminated (including ranges: Optilam, Optiphon) | D49: IES-0024746 | E49: 2031-01-16
C50: Mirai – Laminated offline coated, Optilam (including ranges: Suncool, Optitherm, K Glass S) | D50: IES-0024745 | E50: 2031-01-16
C51: Optifloat – Monolithic | D51: S-P-08816 | E51: 2028-04-30
C52: Optifloat – Monolithic offline coated (including ranges: Suncool, Optitherm, K Glass S, Mirropane) | D52: S-P-08819 | E52: 2028-04-30
C53: Optifloat – Monolithic online coated (including ranges: Activ, K Glass, NSG TEC, Optiview, Optishower) | D53: S-P-08821 | E53: 2028-04-30
C54: Optifloat – Monolithic toughened | D54: S-P-08822 | E54: 2028-04-30
C55: Optifloat – Monolithic toughened offline coated (including ranges: Suncool, Optitherm, K Glass S, Mirropane) | D55: S-P-08824 | E55: 2028-04-30
C56: Optifloat – Monolithic toughened online coated (including ranges: Activ, K Glass, NSG TEC, Optiview, Optishower) | D56: S-P-08823 | E56: 2028-04-30
C57: Optilam – Laminated annealed (including ranges: Optilam, Optilam OW, Optiphon, Optiphon OW) | D57: S-P-08826 | E57: 2028-04-30
C58: Optilam – Laminated annealed offline coated (including ranges: Suncool Optilam, Optitherm, Optilam K Glass S, Mirropane Optilam) | D58: S-P-08827 | E58: 2028-04-30
C59: Optilam – Laminated annealed online coated (including ranges: Activ, K Glass, NSG TEC, Optiview, Optishower) | D59: S-P-08828 | E59: 2028-04-30
C60: Optilam – Laminated toughened | D60: IES-0017093 | E60: 2029-12-10
C61: Optiwhite – Monolithic (Low Iron) | D61: S-P-08818 | E61: 2028-04-30
C62: Optiwhite – Monolithic offline coated (Low Iron) (including ranges: Optifloat, Optiwhite) | D62: S-P-08821 | E62: 2028-04-30
C63: Optiwhite – Monolithic toughened (Low Iron) (including ranges: Optifloat, Optiwhite) | D63: S-P-08823 | E63: 2028-04-30
C64: Optiwhite – Monolithic toughened offline coated (Low Iron) (including ranges: Suncool, Optitherm) | D64: S-P-08826 | E64: 2028-04-30
C65: Patterned glass | D65: S-P-08818 | E65: 2028-04-30
B67: Saint Gobain | C67: ORAÉ - Low carbon clear | D67: S-P-09498/09499/08970/09500/09501/09502/09503 | E67: 2028-12-20
C68: ORAÉ - Low carbon magnetron-coated | D68: S-P-09991/09425/09945/09992 | E68: 2028-12-20
C69: ORAÉ STADIP - Low carbon laminated float | D69: EPD-IES-0024289 | E69: 2030-06-11
C70: PLANICLEAR - Clear float glass | D70: S-P-00882 | E70: 2026-09-29
C71: DIAMANT - Extra clear low-iron glass | D71: S-P-00883 | E71: 2026-09-29
C72: PLANICLEAR and DIAMANT - Magnetron-coated glass | D72: S-P-00926 | E72: 2026-12-14
C73: STADIP - Laminated glass | D73: S-P-00930 | E73: 2026-12-14
C74: SECURIT - Tempered glass | D74: S-P-00927 | E74: 2026-12-14
C75: PARSOL - Body tinted glass | D75: S-P-00884 | E75: 2026-09-29
B77: Fire rated glass | C77: AGC Pyrobel T | D77: EPD-AGC-20240539-IBH1-EN | E77: 2030-06-24
C78: POLFLAM | D78: Date of issue 28/11/2024 | E78: 2029-11-28
C79: Saint Gobain Vetrotech Contraflam 30 (5/5) | D79: S-P-09642 | E79: 2028-06-22
C80: Saint Gobain Vetrotech Contraflam lite 30 CFL30 (5/5) | D80: EPD-IES-0024348 | E80: 2030-06-12
C81: Saint Gobain Vetrotech Contraflam structure 30 STADIP CFS 30 (6/5/55.2) | D81: EPD-IES-0024372 | E81: 2030-06-15
C82: Saint Gobain Vetrotech Contraflam structure 60 STADIP CFS 60 (6/5/5/55.2) | D82: EPD-IES-0024375 | E82: 2030-06-15
B84: Structural glass | C84: Laminated toughened glass with Ionoplast film Kuraray Sentry glass | D84: EPD-KUR-20230073-CBA2-EN + 20240940468-FC | E84: 2029-03-11
B86: Painted/frit glass | C86: Stronglasas | D86: S-P-10601 | E86: 2028-09-08
B88: Primary sealant | C88: Fenzi - Butylver | D88: EPD-IES-13054:001 | E88: 2029-07-25
C89: Butyle - Generic | D89: EPD-FEI-20250068-IBP1-EN | E89: 2030-06-03
B91: Secondary sealant | C91: Silicone - Dow corning 3362 - 3363 | D91: EPD-DBC-20220179-IBF1-EN | E91: 2027-08-30
C92: Silicone - SIKA IG-25 HM | D92: EPD-DBC-20220179-IBF1-EN | E92: 2027-08-30
C93: Silicone generic | D93: EPD-DBC-20220180-IBF1-EN | E93: 2027-08-30
C94: Polysulphide - Fenzi Thiover | D94: EPD-IES-13059:001 | E94: 2029-07-25
C95: Polysulphide - Generic | D95: EPD-FEI-20250067-IBP1-EN | E95: 2030-06-03
D96: S-P-08910 | E96: 2028-03-23
B97: Spacer bar | C97: ALUPRO Aluminium H65 A155
C98: ALUPRO Chromatech Ultra F
C99: ALUPRO Multitech G
C100: ALUPRO Thermix TX Pro
C101: Swisspacer Advance | D101: EPD-IES-0011836:001 | E101: 2029-12-15
C102: Swisspacer Ultimate | D102: EPD-IES-0011837:001 | E102: 2029-12-15
C103: Technoform warm edge SP14 | D103: S-P-10425 | E103: 2028-12-11

Sheet Glass ECC V1.1
C3: EPD - Based Glass Embodied Carbon Assessment Tool
B4: IGU Reference | C4: Type 1
B5: Composition | C5: 8/16/44.4
B6: Size (H x W) m | C6: 1.0 x 1.0
B7: Type | C7: Double Glazed
B8: Item | C8: ECF symbol | D8: Manufacturer | E8: Product | F8: Type | G8: GWP LCA stages (kg CO2eq/m2) | V8: EPD reference | W8: EPD valid to
G9: A1-A3 | H9: A4 | I9: A5 | J9: B1 | K9: B2 | L9: B3 | M9: B4 | N9: B5 | O9: B6 | P9: B7 | Q9: C1 | R9: C2 | S9: C3 | T9: C4 | U9: D
B10: Glass outer pane | C10: ECFOP | D10: None | E10: None | F10: None | G10: =IFERROR(INDEX(Table4[],MATCH(1,(D10=Table4[Manufacturer])*(E10=Table4[Product])*(F10=Table4[Type]),0),MATCH(G$9,Table4[#Headers],0)),"") -> 0 | H10: =IFERROR(INDEX(Table4[],MATCH(1,(D10=Table4[Manufacturer])*(E10=Table4[Product])*(F10=Table4[Type]),0),MATCH(H$9,Table4[#Headers],0)),"") -> 0 | I10: =IFERROR(INDEX(Table4[],MATCH(1,(D10=Table4[Manufacturer])*(E10=Table4[Product])*(F10=Table4[Type]),0),MATCH(I$9,Table4[#Headers],0)),"") -> 0 | J10: =IFERROR(INDEX(Table4[],MATCH(1,(D10=Table4[Manufacturer])*(E10=Table4[Product])*(F10=Table4[Type]),0),MATCH(J$9,Table4[#Headers],0)),"") -> 0 | K10: =IFERROR(INDEX(Table4[],MATCH(1,(D10=Table4[Manufacturer])*(E10=Table4[Product])*(F10=Table4[Type]),0),MATCH(K$9,Table4[#Headers],0)),"") -> 0 | L10: =IFERROR(INDEX(Table4[],MATCH(1,(D10=Table4[Manufacturer])*(E10=Table4[Product])*(F10=Table4[Type]),0),MATCH(L$9,Table4[#Headers],0)),"") -> 0 | M10: =IFERROR(INDEX(Table4[],MATCH(1,(D10=Table4[Manufacturer])*(E10=Table4[Product])*(F10=Table4[Type]),0),MATCH(M$9,Table4[#Headers],0)),"") -> 0 | N10: =IFERROR(INDEX(Table4[],MATCH(1,(D10=Table4[Manufacturer])*(E10=Table4[Product])*(F10=Table4[Type]),0),MATCH(N$9,Table4[#Headers],0)),"") -> 0 | O10: =IFERROR(INDEX(Table4[],MATCH(1,(D10=Table4[Manufacturer])*(E10=Table4[Product])*(F10=Table4[Type]),0),MATCH(O$9,Table4[#Headers],0)),"") -> 0 | P10: =IFERROR(INDEX(Table4[],MATCH(1,(D10=Table4[Manufacturer])*(E10=Table4[Product])*(F10=Table4[Type]),0),MATCH(P$9,Table4[#Headers],0)),"") -> 0 | Q10: =IFERROR(INDEX(Table4[],MATCH(1,(D10=Table4[Manufacturer])*(E10=Table4[Product])*(F10=Table4[Type]),0),MATCH(Q$9,Table4[#Headers],0)),"") -> 0 | R10: =IFERROR(INDEX(Table4[],MATCH(1,(D10=Table4[Manufacturer])*(E10=Table4[Product])*(F10=Table4[Type]),0),MATCH(R$9,Table4[#Headers],0)),"") -> 0 | S10: =IFERROR(INDEX(Table4[],MATCH(1,(D10=Table4[Manufacturer])*(E10=Table4[Product])*(F10=Table4[Type]),0),MATCH(S$9,Table4[#Headers],0)),"") -> 0 | T10: =IFERROR(INDEX(Table4[],MATCH(1,(D10=Table4[Manufacturer])*(E10=Table4[Product])*(F10=Table4[Type]),0),MATCH(T$9,Table4[#Headers],0)),"") -> 0 | U10: =IFERROR(INDEX(Table4[],MATCH(1,(D10=Table4[Manufacturer])*(E10=Table4[Product])*(F10=Table4[Type]),0),MATCH(U$9,Table4[#Headers],0)),"") -> 0 | V10: =IFERROR(INDEX(Table4[],MATCH(1,(D10=Table4[Manufacturer])*(E10=Table4[Product])*(F10=Table4[Type]),0),MATCH(V$8,Table4[#Headers],0)),"") -> 0 | W10: =IFERROR(INDEX(Table4[],MATCH(1,(D10=Table4[Manufacturer])*(E10=Table4[Product])*(F10=Table4[Type]),0),MATCH(W$8,Table4[#Headers],0)),"") -> 00:00:00
B11: Spacer bar | C11: ECFSB | D11: None | E11: None | F11: None | G11: =IFERROR(INDEX(Table4[],MATCH(1,(D11=Table4[Manufacturer])*(E11=Table4[Product])*(F11=Table4[Type]),0),MATCH(G$9,Table4[#Headers],0)),"")*4 -> 0 | H11: =IFERROR(INDEX(Table4[],MATCH(1,(D11=Table4[Manufacturer])*(E11=Table4[Product])*(F11=Table4[Type]),0),MATCH(H$9,Table4[#Headers],0)),"")*4 -> 0 | I11: =IFERROR(INDEX(Table4[],MATCH(1,(D11=Table4[Manufacturer])*(E11=Table4[Product])*(F11=Table4[Type]),0),MATCH(I$9,Table4[#Headers],0)),"")*4 -> 0 | J11: =IFERROR(INDEX(Table4[],MATCH(1,(D11=Table4[Manufacturer])*(E11=Table4[Product])*(F11=Table4[Type]),0),MATCH(J$9,Table4[#Headers],0)),"")*4 -> 0 | K11: =IFERROR(INDEX(Table4[],MATCH(1,(D11=Table4[Manufacturer])*(E11=Table4[Product])*(F11=Table4[Type]),0),MATCH(K$9,Table4[#Headers],0)),"")*4 -> 0 | L11: =IFERROR(INDEX(Table4[],MATCH(1,(D11=Table4[Manufacturer])*(E11=Table4[Product])*(F11=Table4[Type]),0),MATCH(L$9,Table4[#Headers],0)),"")*4 -> 0 | M11: =IFERROR(INDEX(Table4[],MATCH(1,(D11=Table4[Manufacturer])*(E11=Table4[Product])*(F11=Table4[Type]),0),MATCH(M$9,Table4[#Headers],0)),"")*4 -> 0 | N11: =IFERROR(INDEX(Table4[],MATCH(1,(D11=Table4[Manufacturer])*(E11=Table4[Product])*(F11=Table4[Type]),0),MATCH(N$9,Table4[#Headers],0)),"")*4 -> 0 | O11: =IFERROR(INDEX(Table4[],MATCH(1,(D11=Table4[Manufacturer])*(E11=Table4[Product])*(F11=Table4[Type]),0),MATCH(O$9,Table4[#Headers],0)),"")*4 -> 0 | P11: =IFERROR(INDEX(Table4[],MATCH(1,(D11=Table4[Manufacturer])*(E11=Table4[Product])*(F11=Table4[Type]),0),MATCH(P$9,Table4[#Headers],0)),"")*4 -> 0 | Q11: =IFERROR(INDEX(Table4[],MATCH(1,(D11=Table4[Manufacturer])*(E11=Table4[Product])*(F11=Table4[Type]),0),MATCH(Q$9,Table4[#Headers],0)),"")*4 -> 0 | R11: =IFERROR(INDEX(Table4[],MATCH(1,(D11=Table4[Manufacturer])*(E11=Table4[Product])*(F11=Table4[Type]),0),MATCH(R$9,Table4[#Headers],0)),"")*4 -> 0 | S11: =IFERROR(INDEX(Table4[],MATCH(1,(D11=Table4[Manufacturer])*(E11=Table4[Product])*(F11=Table4[Type]),0),MATCH(S$9,Table4[#Headers],0)),"")*4 -> 0 | T11: =IFERROR(INDEX(Table4[],MATCH(1,(D11=Table4[Manufacturer])*(E11=Table4[Product])*(F11=Table4[Type]),0),MATCH(T$9,Table4[#Headers],0)),"")*4 -> 0 | U11: =IFERROR(INDEX(Table4[],MATCH(1,(D11=Table4[Manufacturer])*(E11=Table4[Product])*(F11=Table4[Type]),0),MATCH(U$9,Table4[#Headers],0)),"")*4 -> 0 | V11: =IFERROR(INDEX(Table4[],MATCH(1,(D11=Table4[Manufacturer])*(E11=Table4[Product])*(F11=Table4[Type]),0),MATCH(V$8,Table4[#Headers],0)),"") -> 0 | W11: =IFERROR(INDEX(Table4[],MATCH(1,(D11=Table4[Manufacturer])*(E11=Table4[Product])*(F11=Table4[Type]),0),MATCH(W$8,Table4[#Headers],0)),"") -> 00:00:00
B12: Glass mid pane | C12: ECFMID | D12: Painted frit glass | E12: Stronglasas | F12: Monolithic toughened 6 mm | G12: =IFERROR(INDEX(Table4[],MATCH(1,(D12=Table4[Manufacturer])*(E12=Table4[Product])*(F12=Table4[Type]),0),MATCH(G$9,Table4[#Headers],0)),"") -> 17.82 | H12: =IFERROR(INDEX(Table4[],MATCH(1,(D12=Table4[Manufacturer])*(E12=Table4[Product])*(F12=Table4[Type]),0),MATCH(H$9,Table4[#Headers],0)),"") -> 0.07725 | I12: =IFERROR(INDEX(Table4[],MATCH(1,(D12=Table4[Manufacturer])*(E12=Table4[Product])*(F12=Table4[Type]),0),MATCH(I$9,Table4[#Headers],0)),"") -> 0.1485 | J12: =IFERROR(INDEX(Table4[],MATCH(1,(D12=Table4[Manufacturer])*(E12=Table4[Product])*(F12=Table4[Type]),0),MATCH(J$9,Table4[#Headers],0)),"") -> 0 | K12: =IFERROR(INDEX(Table4[],MATCH(1,(D12=Table4[Manufacturer])*(E12=Table4[Product])*(F12=Table4[Type]),0),MATCH(K$9,Table4[#Headers],0)),"") -> 0 | L12: =IFERROR(INDEX(Table4[],MATCH(1,(D12=Table4[Manufacturer])*(E12=Table4[Product])*(F12=Table4[Type]),0),MATCH(L$9,Table4[#Headers],0)),"") -> 0 | M12: =IFERROR(INDEX(Table4[],MATCH(1,(D12=Table4[Manufacturer])*(E12=Table4[Product])*(F12=Table4[Type]),0),MATCH(M$9,Table4[#Headers],0)),"") -> 0 | N12: =IFERROR(INDEX(Table4[],MATCH(1,(D12=Table4[Manufacturer])*(E12=Table4[Product])*(F12=Table4[Type]),0),MATCH(N$9,Table4[#Headers],0)),"") -> 0 | O12: =IFERROR(INDEX(Table4[],MATCH(1,(D12=Table4[Manufacturer])*(E12=Table4[Product])*(F12=Table4[Type]),0),MATCH(O$9,Table4[#Headers],0)),"") -> 0 | P12: =IFERROR(INDEX(Table4[],MATCH(1,(D12=Table4[Manufacturer])*(E12=Table4[Product])*(F12=Table4[Type]),0),MATCH(P$9,Table4[#Headers],0)),"") -> 0 | Q12: =IFERROR(INDEX(Table4[],MATCH(1,(D12=Table4[Manufacturer])*(E12=Table4[Product])*(F12=Table4[Type]),0),MATCH(Q$9,Table4[#Headers],0)),"") -> 0 | R12: =IFERROR(INDEX(Table4[],MATCH(1,(D12=Table4[Manufacturer])*(E12=Table4[Product])*(F12=Table4[Type]),0),MATCH(R$9,Table4[#Headers],0)),"") -> 0 | S12: =IFERROR(INDEX(Table4[],MATCH(1,(D12=Table4[Manufacturer])*(E12=Table4[Product])*(F12=Table4[Type]),0),MATCH(S$9,Table4[#Headers],0)),"") -> 0.0126 | T12: =IFERROR(INDEX(Table4[],MATCH(1,(D12=Table4[Manufacturer])*(E12=Table4[Product])*(F12=Table4[Type]),0),MATCH(T$9,Table4[#Headers],0)),"") -> 0.0136 | U12: =IFERROR(INDEX(Table4[],MATCH(1,(D12=Table4[Manufacturer])*(E12=Table4[Product])*(F12=Table4[Type]),0),MATCH(U$9,Table4[#Headers],0)),"") -> -4.8 | V12: =IFERROR(INDEX(Table4[],MATCH(1,(D12=Table4[Manufacturer])*(E12=Table4[Product])*(F12=Table4[Type]),0),MATCH(V$8,Table4[#Headers],0)),"") -> S-P-10601 | W12: =IFERROR(INDEX(Table4[],MATCH(1,(D12=Table4[Manufacturer])*(E12=Table4[Product])*(F12=Table4[Type]),0),MATCH(W$8,Table4[#Headers],0)),"") -> 2028-09-08
B13: Spacer bar | C13: ECFSB | D13: None | E13: None | F13: None | G13: =IFERROR(INDEX(Table4[],MATCH(1,(D13=Table4[Manufacturer])*(E13=Table4[Product])*(F13=Table4[Type]),0),MATCH(G$9,Table4[#Headers],0)),"")*4 -> 0 | H13: =IFERROR(INDEX(Table4[],MATCH(1,(D13=Table4[Manufacturer])*(E13=Table4[Product])*(F13=Table4[Type]),0),MATCH(H$9,Table4[#Headers],0)),"")*4 -> 0 | I13: =IFERROR(INDEX(Table4[],MATCH(1,(D13=Table4[Manufacturer])*(E13=Table4[Product])*(F13=Table4[Type]),0),MATCH(I$9,Table4[#Headers],0)),"")*4 -> 0 | J13: =IFERROR(INDEX(Table4[],MATCH(1,(D13=Table4[Manufacturer])*(E13=Table4[Product])*(F13=Table4[Type]),0),MATCH(J$9,Table4[#Headers],0)),"")*4 -> 0 | K13: =IFERROR(INDEX(Table4[],MATCH(1,(D13=Table4[Manufacturer])*(E13=Table4[Product])*(F13=Table4[Type]),0),MATCH(K$9,Table4[#Headers],0)),"")*4 -> 0 | L13: =IFERROR(INDEX(Table4[],MATCH(1,(D13=Table4[Manufacturer])*(E13=Table4[Product])*(F13=Table4[Type]),0),MATCH(L$9,Table4[#Headers],0)),"")*4 -> 0 | M13: =IFERROR(INDEX(Table4[],MATCH(1,(D13=Table4[Manufacturer])*(E13=Table4[Product])*(F13=Table4[Type]),0),MATCH(M$9,Table4[#Headers],0)),"")*4 -> 0 | N13: =IFERROR(INDEX(Table4[],MATCH(1,(D13=Table4[Manufacturer])*(E13=Table4[Product])*(F13=Table4[Type]),0),MATCH(N$9,Table4[#Headers],0)),"")*4 -> 0 | O13: =IFERROR(INDEX(Table4[],MATCH(1,(D13=Table4[Manufacturer])*(E13=Table4[Product])*(F13=Table4[Type]),0),MATCH(O$9,Table4[#Headers],0)),"")*4 -> 0 | P13: =IFERROR(INDEX(Table4[],MATCH(1,(D13=Table4[Manufacturer])*(E13=Table4[Product])*(F13=Table4[Type]),0),MATCH(P$9,Table4[#Headers],0)),"")*4 -> 0 | Q13: =IFERROR(INDEX(Table4[],MATCH(1,(D13=Table4[Manufacturer])*(E13=Table4[Product])*(F13=Table4[Type]),0),MATCH(Q$9,Table4[#Headers],0)),"")*4 -> 0 | R13: =IFERROR(INDEX(Table4[],MATCH(1,(D13=Table4[Manufacturer])*(E13=Table4[Product])*(F13=Table4[Type]),0),MATCH(R$9,Table4[#Headers],0)),"")*4 -> 0 | S13: =IFERROR(INDEX(Table4[],MATCH(1,(D13=Table4[Manufacturer])*(E13=Table4[Product])*(F13=Table4[Type]),0),MATCH(S$9,Table4[#Headers],0)),"")*4 -> 0 | T13: =IFERROR(INDEX(Table4[],MATCH(1,(D13=Table4[Manufacturer])*(E13=Table4[Product])*(F13=Table4[Type]),0),MATCH(T$9,Table4[#Headers],0)),"")*4 -> 0 | U13: =IFERROR(INDEX(Table4[],MATCH(1,(D13=Table4[Manufacturer])*(E13=Table4[Product])*(F13=Table4[Type]),0),MATCH(U$9,Table4[#Headers],0)),"")*4 -> 0 | V13: =IFERROR(INDEX(Table4[],MATCH(1,(D13=Table4[Manufacturer])*(E13=Table4[Product])*(F13=Table4[Type]),0),MATCH(V$8,Table4[#Headers],0)),"") -> 0 | W13: =IFERROR(INDEX(Table4[],MATCH(1,(D13=Table4[Manufacturer])*(E13=Table4[Product])*(F13=Table4[Type]),0),MATCH(W$8,Table4[#Headers],0)),"") -> 00:00:00
B14: Glass inner pane | C14: ECFIP | D14: None | E14: None | F14: None | G14: =IFERROR(INDEX(Table4[],MATCH(1,(D14=Table4[Manufacturer])*(E14=Table4[Product])*(F14=Table4[Type]),0),MATCH(G$9,Table4[#Headers],0)),"") -> 0 | H14: =IFERROR(INDEX(Table4[],MATCH(1,(D14=Table4[Manufacturer])*(E14=Table4[Product])*(F14=Table4[Type]),0),MATCH(H$9,Table4[#Headers],0)),"") -> 0 | I14: =IFERROR(INDEX(Table4[],MATCH(1,(D14=Table4[Manufacturer])*(E14=Table4[Product])*(F14=Table4[Type]),0),MATCH(I$9,Table4[#Headers],0)),"") -> 0 | J14: =IFERROR(INDEX(Table4[],MATCH(1,(D14=Table4[Manufacturer])*(E14=Table4[Product])*(F14=Table4[Type]),0),MATCH(J$9,Table4[#Headers],0)),"") -> 0 | K14: =IFERROR(INDEX(Table4[],MATCH(1,(D14=Table4[Manufacturer])*(E14=Table4[Product])*(F14=Table4[Type]),0),MATCH(K$9,Table4[#Headers],0)),"") -> 0 | L14: =IFERROR(INDEX(Table4[],MATCH(1,(D14=Table4[Manufacturer])*(E14=Table4[Product])*(F14=Table4[Type]),0),MATCH(L$9,Table4[#Headers],0)),"") -> 0 | M14: =IFERROR(INDEX(Table4[],MATCH(1,(D14=Table4[Manufacturer])*(E14=Table4[Product])*(F14=Table4[Type]),0),MATCH(M$9,Table4[#Headers],0)),"") -> 0 | N14: =IFERROR(INDEX(Table4[],MATCH(1,(D14=Table4[Manufacturer])*(E14=Table4[Product])*(F14=Table4[Type]),0),MATCH(N$9,Table4[#Headers],0)),"") -> 0 | O14: =IFERROR(INDEX(Table4[],MATCH(1,(D14=Table4[Manufacturer])*(E14=Table4[Product])*(F14=Table4[Type]),0),MATCH(O$9,Table4[#Headers],0)),"") -> 0 | P14: =IFERROR(INDEX(Table4[],MATCH(1,(D14=Table4[Manufacturer])*(E14=Table4[Product])*(F14=Table4[Type]),0),MATCH(P$9,Table4[#Headers],0)),"") -> 0 | Q14: =IFERROR(INDEX(Table4[],MATCH(1,(D14=Table4[Manufacturer])*(E14=Table4[Product])*(F14=Table4[Type]),0),MATCH(Q$9,Table4[#Headers],0)),"") -> 0 | R14: =IFERROR(INDEX(Table4[],MATCH(1,(D14=Table4[Manufacturer])*(E14=Table4[Product])*(F14=Table4[Type]),0),MATCH(R$9,Table4[#Headers],0)),"") -> 0 | S14: =IFERROR(INDEX(Table4[],MATCH(1,(D14=Table4[Manufacturer])*(E14=Table4[Product])*(F14=Table4[Type]),0),MATCH(S$9,Table4[#Headers],0)),"") -> 0 | T14: =IFERROR(INDEX(Table4[],MATCH(1,(D14=Table4[Manufacturer])*(E14=Table4[Product])*(F14=Table4[Type]),0),MATCH(T$9,Table4[#Headers],0)),"") -> 0 | U14: =IFERROR(INDEX(Table4[],MATCH(1,(D14=Table4[Manufacturer])*(E14=Table4[Product])*(F14=Table4[Type]),0),MATCH(U$9,Table4[#Headers],0)),"") -> 0 | V14: =IFERROR(INDEX(Table4[],MATCH(1,(D14=Table4[Manufacturer])*(E14=Table4[Product])*(F14=Table4[Type]),0),MATCH(V$8,Table4[#Headers],0)),"") -> 0 | W14: =IFERROR(INDEX(Table4[],MATCH(1,(D14=Table4[Manufacturer])*(E14=Table4[Product])*(F14=Table4[Type]),0),MATCH(W$8,Table4[#Headers],0)),"") -> 00:00:00
B15: Primary sealant | C15: ECFPS | D15: None | E15: None | F15: None | G15: =IFERROR(INDEX(Table4[],MATCH(1,(D15=Table4[Manufacturer])*(E15=Table4[Product])*(F15=Table4[Type]),0),MATCH(G$9,Table4[#Headers],0)),"")*0.1 -> 0 | H15: =IFERROR(INDEX(Table4[],MATCH(1,(D15=Table4[Manufacturer])*(E15=Table4[Product])*(F15=Table4[Type]),0),MATCH(H$9,Table4[#Headers],0)),"")*0.1 -> 0 | I15: =IFERROR(INDEX(Table4[],MATCH(1,(D15=Table4[Manufacturer])*(E15=Table4[Product])*(F15=Table4[Type]),0),MATCH(I$9,Table4[#Headers],0)),"")*0.1 -> 0 | J15: =IFERROR(INDEX(Table4[],MATCH(1,(D15=Table4[Manufacturer])*(E15=Table4[Product])*(F15=Table4[Type]),0),MATCH(J$9,Table4[#Headers],0)),"")*0.1 -> 0 | K15: =IFERROR(INDEX(Table4[],MATCH(1,(D15=Table4[Manufacturer])*(E15=Table4[Product])*(F15=Table4[Type]),0),MATCH(K$9,Table4[#Headers],0)),"")*0.1 -> 0 | L15: =IFERROR(INDEX(Table4[],MATCH(1,(D15=Table4[Manufacturer])*(E15=Table4[Product])*(F15=Table4[Type]),0),MATCH(L$9,Table4[#Headers],0)),"")*0.1 -> 0 | M15: =IFERROR(INDEX(Table4[],MATCH(1,(D15=Table4[Manufacturer])*(E15=Table4[Product])*(F15=Table4[Type]),0),MATCH(M$9,Table4[#Headers],0)),"")*0.1 -> 0 | N15: =IFERROR(INDEX(Table4[],MATCH(1,(D15=Table4[Manufacturer])*(E15=Table4[Product])*(F15=Table4[Type]),0),MATCH(N$9,Table4[#Headers],0)),"")*0.1 -> 0 | O15: =IFERROR(INDEX(Table4[],MATCH(1,(D15=Table4[Manufacturer])*(E15=Table4[Product])*(F15=Table4[Type]),0),MATCH(O$9,Table4[#Headers],0)),"")*0.1 -> 0 | P15: =IFERROR(INDEX(Table4[],MATCH(1,(D15=Table4[Manufacturer])*(E15=Table4[Product])*(F15=Table4[Type]),0),MATCH(P$9,Table4[#Headers],0)),"")*0.1 -> 0 | Q15: =IFERROR(INDEX(Table4[],MATCH(1,(D15=Table4[Manufacturer])*(E15=Table4[Product])*(F15=Table4[Type]),0),MATCH(Q$9,Table4[#Headers],0)),"")*0.1 -> 0 | R15: =IFERROR(INDEX(Table4[],MATCH(1,(D15=Table4[Manufacturer])*(E15=Table4[Product])*(F15=Table4[Type]),0),MATCH(R$9,Table4[#Headers],0)),"")*0.1 -> 0 | S15: =IFERROR(INDEX(Table4[],MATCH(1,(D15=Table4[Manufacturer])*(E15=Table4[Product])*(F15=Table4[Type]),0),MATCH(S$9,Table4[#Headers],0)),"")*0.1 -> 0 | T15: =IFERROR(INDEX(Table4[],MATCH(1,(D15=Table4[Manufacturer])*(E15=Table4[Product])*(F15=Table4[Type]),0),MATCH(T$9,Table4[#Headers],0)),"")*0.1 -> 0 | U15: =IFERROR(INDEX(Table4[],MATCH(1,(D15=Table4[Manufacturer])*(E15=Table4[Product])*(F15=Table4[Type]),0),MATCH(U$9,Table4[#Headers],0)),"")*0.1 -> 0 | V15: =IFERROR(INDEX(Table4[],MATCH(1,(D15=Table4[Manufacturer])*(E15=Table4[Product])*(F15=Table4[Type]),0),MATCH(V$8,Table4[#Headers],0)),"") -> 0 | W15: =IFERROR(INDEX(Table4[],MATCH(1,(D15=Table4[Manufacturer])*(E15=Table4[Product])*(F15=Table4[Type]),0),MATCH(W$8,Table4[#Headers],0)),"") -> 00:00:00
B16: Secondary sealant | C16: ECFSS | D16: None | E16: None | F16: None | G16: =IFERROR(INDEX(Table4[],MATCH(1,(D16=Table4[Manufacturer])*(E16=Table4[Product])*(F16=Table4[Type]),0),MATCH(G$9,Table4[#Headers],0)),"")*0.6 -> 0 | H16: =IFERROR(INDEX(Table4[],MATCH(1,(D16=Table4[Manufacturer])*(E16=Table4[Product])*(F16=Table4[Type]),0),MATCH(H$9,Table4[#Headers],0)),"")*0.6 -> 0 | I16: =IFERROR(INDEX(Table4[],MATCH(1,(D16=Table4[Manufacturer])*(E16=Table4[Product])*(F16=Table4[Type]),0),MATCH(I$9,Table4[#Headers],0)),"")*0.6 -> 0 | J16: =IFERROR(INDEX(Table4[],MATCH(1,(D16=Table4[Manufacturer])*(E16=Table4[Product])*(F16=Table4[Type]),0),MATCH(J$9,Table4[#Headers],0)),"")*0.6 -> 0 | K16: =IFERROR(INDEX(Table4[],MATCH(1,(D16=Table4[Manufacturer])*(E16=Table4[Product])*(F16=Table4[Type]),0),MATCH(K$9,Table4[#Headers],0)),"")*0.6 -> 0 | L16: =IFERROR(INDEX(Table4[],MATCH(1,(D16=Table4[Manufacturer])*(E16=Table4[Product])*(F16=Table4[Type]),0),MATCH(L$9,Table4[#Headers],0)),"")*0.6 -> 0 | M16: =IFERROR(INDEX(Table4[],MATCH(1,(D16=Table4[Manufacturer])*(E16=Table4[Product])*(F16=Table4[Type]),0),MATCH(M$9,Table4[#Headers],0)),"")*0.6 -> 0 | N16: =IFERROR(INDEX(Table4[],MATCH(1,(D16=Table4[Manufacturer])*(E16=Table4[Product])*(F16=Table4[Type]),0),MATCH(N$9,Table4[#Headers],0)),"")*0.6 -> 0 | O16: =IFERROR(INDEX(Table4[],MATCH(1,(D16=Table4[Manufacturer])*(E16=Table4[Product])*(F16=Table4[Type]),0),MATCH(O$9,Table4[#Headers],0)),"")*0.6 -> 0 | P16: =IFERROR(INDEX(Table4[],MATCH(1,(D16=Table4[Manufacturer])*(E16=Table4[Product])*(F16=Table4[Type]),0),MATCH(P$9,Table4[#Headers],0)),"")*0.6 -> 0 | Q16: =IFERROR(INDEX(Table4[],MATCH(1,(D16=Table4[Manufacturer])*(E16=Table4[Product])*(F16=Table4[Type]),0),MATCH(Q$9,Table4[#Headers],0)),"")*0.6 -> 0 | R16: =IFERROR(INDEX(Table4[],MATCH(1,(D16=Table4[Manufacturer])*(E16=Table4[Product])*(F16=Table4[Type]),0),MATCH(R$9,Table4[#Headers],0)),"")*0.6 -> 0 | S16: =IFERROR(INDEX(Table4[],MATCH(1,(D16=Table4[Manufacturer])*(E16=Table4[Product])*(F16=Table4[Type]),0),MATCH(S$9,Table4[#Headers],0)),"")*0.6 -> 0 | T16: =IFERROR(INDEX(Table4[],MATCH(1,(D16=Table4[Manufacturer])*(E16=Table4[Product])*(F16=Table4[Type]),0),MATCH(T$9,Table4[#Headers],0)),"")*0.6 -> 0 | U16: =IFERROR(INDEX(Table4[],MATCH(1,(D16=Table4[Manufacturer])*(E16=Table4[Product])*(F16=Table4[Type]),0),MATCH(U$9,Table4[#Headers],0)),"")*0.6 -> 0 | V16: =IFERROR(INDEX(Table4[],MATCH(1,(D16=Table4[Manufacturer])*(E16=Table4[Product])*(F16=Table4[Type]),0),MATCH(V$8,Table4[#Headers],0)),"") -> 0 | W16: =IFERROR(INDEX(Table4[],MATCH(1,(D16=Table4[Manufacturer])*(E16=Table4[Product])*(F16=Table4[Type]),0),MATCH(W$8,Table4[#Headers],0)),"") -> 00:00:00
B17: IGU assembly process | C17: ECFPROC | G17: =_xlfn.IFS(C7="Double glazed",10,C7="Triple glazed",15,TRUE,0) -> 10
B18: Toatal IGU Embodied Carbon per m2 (ECIGU - kgCO2/m2) | G18: =SUBTOTAL(109,G10:G17) -> 10 | H18: 0 | I18: 0 | J18: 0 | K18: 0 | L18: 0 | M18: 0 | N18: 0 | O18: 0 | P18: 0 | Q18: 0 | R18: 0 | S18: 0 | T18: 0 | U18: 0
B19: This tool has been developed in conjunction with research presented at the Challenging Glass Cconference 10 Author: Mihail Istratii Affiliation: GLF Façade Specialists | F19: Access paper

Sheet Data (hidden)
A2: AGC | B2: Euroglass | C2: Guardian Glass | D2: Pilkington/NSG | E2: Saint-Gobain | F2: Guardian | G2: Fire rated glass | H2: Spacer bar | I2: Primary sealant | J2: Secondary sealant
A3: Stratobel | B3: Eurofloat | C3: NEXA 6 monolithic | D3: Mirai | E3: ORAE (Low carbon) | G3: POLFLAM | H3: ALU PRO Aluminium spacer H65 | I3: Fenzi - Butylver | J3: Silicone - Dow corning 3362 - 3363
A4: Planibel | B4: Eurolamex | C4: NEXA 6 monolithic coated | D4: Optifloat | E4: PLANICLEAR | G4: AGC Pyrobel-T | H4: ALU PRO Chromatech ultra F | I4: Butyle - Generic | J4: Silicone - SIKA IG-25 HM
A5: Planiclear | C5: NEXA 6 laminated | E5: DIAMANT | G5: Pilkington Pyrostop | H5: ALU PRO Chromatech multitech G | J5: Polysulphide - Fenzi Thiover
C6: NEXA 9 monolithic | E6: STADIP | G6: Vetrotech | H6: ALU PRO Thermic TX Pro | J6: Polysulphide - Generic
C7: NEXA 9 monolithic coated | E7: PARSOL
C8: NEXA 9 laminated
C9: Extraclear float
C10: Ultraclear float
C11: Extraclear coated float
C12: Extraclear laminated
A17: Manufacturer | B17: Product
A18: AGC | B18: Stratobel
B19: Planibel
B20: Planiclear
A21: Euroglass | B21: Eurofloat
B22: Eurolamex
A23: Guardian Glass | B23: NEXA 6 monolithic
B24: NEXA 6 monolithic coated
B25: NEXA 6 laminated
B26: NEXA 9 monolithic
B27: NEXA 9 monolithic coated
B28: NEXA 9 laminated
B29: Extraclear float
B30: Ultraclear float
B31: Extraclear coated float
B32: Extraclear laminated
A33: Pilkington NSG | B33: Mirai
B34: Optifloat
A35: Saint Gobain | B35: ORAE Low carbon
B36: PLANICLEAR SG
B37: DIAMANT
B38: STADIP
B39: PARSOL
A40: Guardian
A41: Fire rated glass | B41: POLFLAM
B42: AGC Pyrobel T
B43: Pilkington Pyrostop
B44: Vetrotech

Sheet Master Data (hidden)
A1: Item | B1: Column1 | C1: Manufacturer | D1: Product | E1: Type | F1: A1-A3 | G1: A4 | H1: A5 | I1: B1 | J1: B2 | K1: B3 | L1: B4 | M1: B5 | N1: B6 | O1: B7 | P1: C1 | Q1: C2 | R1: C3 | S1: C4 | T1: D | U1: EPD Reference | V1: EPD Valid to
C3: AGC | D3: Planibel Clearlite Low Carbon | E3: Monolithic 3 mm | F3: 4.1 | G3: 0.27 | H3: 0 | I3: 0 | J3: 0.116 | K3: 0 | L3: 0 | M3: 0 | N3: 0 | O3: 0 | P3: 0 | Q3: 0.0252 | R3: 0 | S3: 0.123 | T3: 0 | U3: 20240940455-FC | V3: 2029-12-31 | X3: 3
C4: AGC | D4: Planibel Clearlite Low Carbon | E4: Monolithic 4 mm | F4: 5.5 | G4: =($G$3/3)*X4 -> 0.36 | H4: 0 | I4: 0 | J4: =($J$3/3)*X4 -> 0.1546666667 | K4: 0 | L4: 0 | M4: 0 | N4: 0 | O4: 0 | P4: 0 | Q4: =($Q$3/3)*X4 -> 0.0336 | R4: 0 | S4: =($S$3/3)*X4 -> 0.164 | T4: 0 | U4: 20240940455-FC | V4: 2029-12-31 | X4: 4
C5: AGC | D5: Planibel Clearlite Low Carbon | E5: Monolithic 5 mm | F5: 6.9 | G5: =($G$3/3)*X5 -> 0.45 | H5: 0 | I5: 0 | J5: =($J$3/3)*X5 -> 0.1933333333 | K5: 0 | L5: 0 | M5: 0 | N5: 0 | O5: 0 | P5: 0 | Q5: =($Q$3/3)*X5 -> 0.042 | R5: 0 | S5: =($S$3/3)*X5 -> 0.205 | T5: 0 | U5: 20240940455-FC | V5: 2029-12-31 | X5: 5
C6: AGC | D6: Planibel Clearlite Low Carbon | E6: Monolithic 6 mm | F6: 8.3 | G6: 0.54 | H6: 0 | I6: 0 | J6: 0.232 | K6: 0 | L6: 0 | M6: 0 | N6: 0 | O6: 0 | P6: 0 | Q6: 0.0504 | R6: 0 | S6: 0.246 | T6: 0 | U6: 20240940455-FC | V6: 2029-12-31 | X6: 6
C7: AGC | D7: Planibel Clearlite Low Carbon | E7: Monolithic 8 mm | F7: 11 | G7: 0.72 | H7: 0 | I7: 0 | J7: 0.3093333333 | K7: 0 | L7: 0 | M7: 0 | N7: 0 | O7: 0 | P7: 0 | Q7: 0.0672 | R7: 0 | S7: 0.328 | T7: 0 | U7: 20240940455-FC | V7: 2029-12-31 | X7: 8
C8: AGC | D8: Planibel Clearlite Low Carbon | E8: Monolithic offline coated 3 mm | F8: 4.6 | G8: 0.247 | H8: 0 | I8: 0 | J8: 0.116 | K8: 0 | L8: 0 | M8: 0 | N8: 0 | O8: 0 | P8: 0 | Q8: 0.0252 | R8: 0 | S8: 0.123 | T8: 0 | U8: 20240940459-FC | V8: 2029-12-31 | X8: 3
C9: AGC | D9: Planibel Clearlite Low Carbon | E9: Monolithic offline coated 4 mm | F9: 6.1 | G9: =($G$8/3)*X9 -> 0.3293333333 | H9: 0 | I9: 0 | J9: 0.1546666667 | K9: 0 | L9: 0 | M9: 0 | N9: 0 | O9: 0 | P9: 0 | Q9: 0.0336 | R9: 0 | S9: 0.164 | T9: 0 | U9: 20240940459-FC | V9: 2029-12-31 | X9: 4
C10: AGC | D10: Planibel Clearlite Low Carbon | E10: Monolithic offline coated 5 mm | F10: 7.6 | G10: =($G$8/3)*X10 -> 0.4116666667 | H10: 0 | I10: 0 | J10: 0.1933333333 | K10: 0 | L10: 0 | M10: 0 | N10: 0 | O10: 0 | P10: 0 | Q10: 0.042 | R10: 0 | S10: 0.205 | T10: 0 | U10: 20240940459-FC | V10: 2029-12-31 | X10: 5
C11: AGC | D11: Planibel Clearlite Low Carbon | E11: Monolithic offline coated 6 mm | F11: 9.1 | G11: 0.494 | H11: 0 | I11: 0 | J11: 0.232 | K11: 0 | L11: 0 | M11: 0 | N11: 0 | O11: 0 | P11: 0 | Q11: 0.0504 | R11: 0 | S11: 0.246 | T11: 0 | U11: 20240940459-FC | V11: 2029-12-31 | X11: 6
C12: AGC | D12: Planibel Clearlite Low Carbon | E12: Monolithic offline coated 8 mm | F12: 12 | G12: 0.6586666667 | H12: 0 | I12: 0 | J12: 0.3093333333 | K12: 0 | L12: 0 | M12: 0 | N12: 0 | O12: 0 | P12: 0 | Q12: 0.0672 | R12: 0 | S12: 0.328 | T12: 0 | U12: 20240940459-FC | V12: 2029-12-31 | X12: 8
C13: AGC | D13: Planibel Clearlite Low Carbon | E13: Monolithic toughened HST 3 mm | F13: 5.1 | G13: 0.647 | H13: 0 | I13: 0 | J13: 0.116 | K13: 0 | L13: 0 | M13: 0 | N13: 0 | O13: 0 | P13: 0 | Q13: 0.0252 | R13: 0 | S13: 0.123 | T13: 0 | U13: 20240940456-FC | V13: 2029-12-31 | X13: 3
C14: AGC | D14: Planibel Clearlite Low Carbon | E14: Monolithic toughened HST 4 mm | F14: 6.7 | G14: =($G$13/3)*X14 -> 0.8626666667 | H14: 0 | I14: 0 | J14: 0.1546666667 | K14: 0 | L14: 0 | M14: 0 | N14: 0 | O14: 0 | P14: 0 | Q14: 0.0336 | R14: 0 | S14: 0.164 | T14: 0 | U14: 20240940456-FC | V14: 2029-12-31 | X14: 4
C15: AGC | D15: Planibel Clearlite Low Carbon | E15: Monolithic toughened HST 5 mm | F15: 8.3 | G15: =($G$13/3)*X15 -> 1.078333333 | H15: 0 | I15: 0 | J15: 0.1933333333 | K15: 0 | L15: 0 | M15: 0 | N15: 0 | O15: 0 | P15: 0 | Q15: 0.042 | R15: 0 | S15: 0.205 | T15: 0 | U15: 20240940456-FC | V15: 2029-12-31 | X15: 5
C16: AGC | D16: Planibel Clearlite Low Carbon | E16: Monolithic toughened HST 6 mm | F16: 9.9 | G16: 1.294 | H16: 0 | I16: 0 | J16: 0.232 | K16: 0 | L16: 0 | M16: 0 | N16: 0 | O16: 0 | P16: 0 | Q16: 0.0504 | R16: 0 | S16: 0.246 | T16: 0 | U16: 20240940456-FC | V16: 2029-12-31 | X16: 6
C17: AGC | D17: Planibel Clearlite Low Carbon | E17: Monolithic toughened HST 8 mm | F17: 13.1 | G17: 1.725333333 | H17: 0 | I17: 0 | J17: 0.3093333333 | K17: 0 | L17: 0 | M17: 0 | N17: 0 | O17: 0 | P17: 0 | Q17: 0.0672 | R17: 0 | S17: 0.328 | T17: 0 | U17: 20240940456-FC | V17: 2029-12-31 | X17: 8
C18: AGC | D18: Planibel Clearlite Low Carbon | E18: Monolithic toughened HST offline coated 3 mm | F18: 5.3 | G18: 0.657 | H18: 0 | I18: 0 | J18: 0.116 | K18: 0 | L18: 0 | M18: 0 | N18: 0 | O18: 0 | P18: 0 | Q18: 0.0252 | R18: 0 | S18: 0.123 | T18: 0 | U18: 20240940459-FC | V18: 2029-12-31 | X18: 3
C19: AGC | D19: Planibel Clearlite Low Carbon | E19: Monolithic toughened HST offline coated 4 mm | F19: 7 | G19: =($G$18/3)*X19 -> 0.876 | H19: 0 | I19: 0 | J19: 0.1546666667 | K19: 0 | L19: 0 | M19: 0 | N19: 0 | O19: 0 | P19: 0 | Q19: 0.0336 | R19: 0 | S19: 0.164 | T19: 0 | U19: 20240940459-FC | V19: 2029-12-31 | X19: 4
C20: AGC | D20: Planibel Clearlite Low Carbon | E20: Monolithic toughened HST offline coated 5 mm | F20: 8.7 | G20: =($G$18/3)*X20 -> 1.095 | H20: 0 | I20: 0 | J20: 0.1933333333 | K20: 0 | L20: 0 | M20: 0 | N20: 0 | O20: 0 | P20: 0 | Q20: 0.042 | R20: 0 | S20: 0.205 | T20: 0 | U20: 20240940459-FC | V20: 2029-12-31 | X20: 5
C21: AGC | D21: Planibel Clearlite Low Carbon | E21: Monolithic toughened HST offline coated 6 mm | F21: 10.4 | G21: 1.314 | H21: 0 | I21: 0 | J21: 0.232 | K21: 0 | L21: 0 | M21: 0 | N21: 0 | O21: 0 | P21: 0 | Q21: 0.0504 | R21: 0 | S21: 0.246 | T21: 0 | U21: 20240940459-FC | V21: 2029-12-31 | X21: 6
C22: AGC | D22: Planibel Clearlite Low Carbon | E22: Monolithic toughened HST offline coated 8 mm | F22: 13.8 | G22: 1.752 | H22: 0 | I22: 0 | J22: 0.3093333333 | K22: 0 | L22: 0 | M22: 0 | N22: 0 | O22: 0 | P22: 0 | Q22: 0.0672 | R22: 0 | S22: 0.328 | T22: 0 | U22: 20240940459-FC | V22: 2029-12-31 | X22: 8
C23: AGC | D23: Stratobel Clearlite Low Carbon | E23: Laminated 6.4 (33.1) | F23: 10.6 | G23: 0.564 | H23: 0 | I23: 0 | J23: 0.116 | K23: 0 | L23: 0 | M23: 0 | N23: 0 | O23: 0 | P23: 0 | Q23: 0.0517 | R23: 0 | S23: 0.251 | T23: 0 | U23: 20240940457-FC | V23: 2029-12-31 | X23: 6.4
C24: AGC | D24: Stratobel Clearlite Low Carbon | E24: Laminated 6.8 (33.2) | F24: 12.7 | G24: =($G$23/$X$23)*X24 -> 0.59925 | H24: 0 | I24: 0 | J24: =($J$23/$X$23)*X24 -> 0.12325 | K24: 0 | L24: 0 | M24: 0 | N24: 0 | O24: 0 | P24: 0 | Q24: =($Q$23/$X$23)*X24 -> 0.05493125 | R24: 0 | S24: =($S$23/$X$23)*X24 -> 0.2666875 | T24: 0 | U24: 20240940457-FC | V24: 2029-12-31 | X24: 6.8
C25: AGC | D25: Stratobel Clearlite Low Carbon | E25: Laminated 8.4 (44.1) | F25: 13.4 | G25: 0.74025 | H25: 0 | I25: 0 | J25: 0.15225 | K25: 0 | L25: 0 | M25: 0 | N25: 0 | O25: 0 | P25: 0 | Q25: 0.06785625 | R25: 0 | S25: 0.3294375 | T25: 0 | U25: 20240940457-FC | V25: 2029-12-31 | X25: 8.4
C26: AGC | D26: Stratobel Clearlite Low Carbon | E26: Laminated 8.8 (44.2) | F26: 15.5 | G26: 0.7755 | H26: 0 | I26: 0 | J26: 0.1595 | K26: 0 | L26: 0 | M26: 0 | N26: 0 | O26: 0 | P26: 0 | Q26: 0.0710875 | R26: 0 | S26: 0.345125 | T26: 0 | U26: 20240940457-FC | V26: 2029-12-31 | X26: 8.8
C27: AGC | D27: Stratobel Clearlite Low Carbon | E27: Laminated 10.4 (55.1) | F27: 16.2 | G27: 0.9165 | H27: 0 | I27: 0 | J27: 0.1885 | K27: 0 | L27: 0 | M27: 0 | N27: 0 | O27: 0 | P27: 0 | Q27: 0.0840125 | R27: 0 | S27: 0.407875 | T27: 0 | U27: 20240940457-FC | V27: 2029-12-31 | X27: 10.4
C28: AGC | D28: Stratobel Clearlite Low Carbon | E28: Laminated 10.8 (55.2) | F28: 18.3 | G28: 0.95175 | H28: 0 | I28: 0 | J28: 0.19575 | K28: 0 | L28: 0 | M28: 0 | N28: 0 | O28: 0 | P28: 0 | Q28: 0.08724375 | R28: 0 | S28: 0.4235625 | T28: 0 | U28: 20240940457-FC | V28: 2029-12-31 | X28: 10.8
C29: AGC | D29: Stratobel Clearlite Low Carbon | E29: Laminated 11.5 (55.4) | F29: 22.5 | G29: 1.0134375 | H29: 0 | I29: 0 | J29: 0.2084375 | K29: 0 | L29: 0 | M29: 0 | N29: 0 | O29: 0 | P29: 0 | Q29: 0.0928984375 | R29: 0 | S29: 0.451015625 | T29: 0 | U29: 20240940457-FC | V29: 2029-12-31 | X29: 11.5
C30: AGC | D30: Stratobel Clearlite Low Carbon | E30: Laminated 12.4 (66.1) | F30: 19.1 | G30: 1.09275 | H30: 0 | I30: 0 | J30: 0.22475 | K30: 0 | L30: 0 | M30: 0 | N30: 0 | O30: 0 | P30: 0 | Q30: 0.10016875 | R30: 0 | S30: 0.4863125 | T30: 0 | U30: 20240940457-FC | V30: 2029-12-31 | X30: 12.4
C31: AGC | D31: Stratobel Clearlite Low Carbon | E31: Laminated 12.8 (66.2) | F31: 21.2 | G31: 1.128 | H31: 0 | I31: 0 | J31: 0.232 | K31: 0 | L31: 0 | M31: 0 | N31: 0 | O31: 0 | P31: 0 | Q31: 0.1034 | R31: 0 | S31: 0.502 | T31: 0 | U31: 20240940457-FC | V31: 2029-12-31 | X31: 12.8
C32: AGC | D32: Stratobel Clearlite Low Carbon | E32: Laminated 13.5 (66.4) | F32: 25.4 | G32: 1.1896875 | H32: 0 | I32: 0 | J32: 0.2446875 | K32: 0 | L32: 0 | M32: 0 | N32: 0 | O32: 0 | P32: 0 | Q32: 0.1090546875 | R32: 0 | S32: 0.529453125 | T32: 0 | U32: 20240940457-FC | V32: 2029-12-31 | X32: 13.5
C33: AGC | D33: Stratobel Clearlite Low Carbon | E33: Laminated 16.4 (88.1) | F33: 24.7 | G33: 1.44525 | H33: 0 | I33: 0 | J33: 0.29725 | K33: 0 | L33: 0 | M33: 0 | N33: 0 | O33: 0 | P33: 0 | Q33: 0.13248125 | R33: 0 | S33: 0.6431875 | T33: 0 | U33: 20240940457-FC | V33: 2029-12-31 | X33: 16.4
C34: AGC | D34: Stratobel Clearlite Low Carbon | E34: Laminated 16.8 (88.2) | F34: 26.8 | G34: 1.4805 | H34: 0 | I34: 0 | J34: 0.3045 | K34: 0 | L34: 0 | M34: 0 | N34: 0 | O34: 0 | P34: 0 | Q34: 0.1357125 | R34: 0 | S34: 0.658875 | T34: 0 | U34: 20240940457-FC | V34: 2029-12-31 | X34: 16.8
C35: AGC | D35: Stratobel Clearlite Low Carbon | E35: Laminated 17.5 (88.4) | F35: 31 | G35: 1.5421875 | H35: 0 | I35: 0 | J35: 0.3171875 | K35: 0 | L35: 0 | M35: 0 | N35: 0 | O35: 0 | P35: 0 | Q35: 0.1413671875 | R35: 0 | S35: 0.686328125 | T35: 0 | U35: 20240940457-FC | V35: 2029-12-31 | X35: 17.5
C36: AGC | D36: Stratobel Clearlite Low Carbon | E36: Laminated offline coated 6.4 (33.1) | F36: 11.5 | G36: 0.564 | H36: 0 | I36: 0 | J36: 0.116 | K36: 0 | L36: 0 | M36: 0 | N36: 0 | O36: 0 | P36: 0 | Q36: 0.0517 | R36: 0 | S36: 0.251 | T36: 0 | U36: 20240940457-FC | V36: 2029-12-31
C37: AGC | D37: Stratobel Clearlite Low Carbon | E37: Laminated offline coated 6.8 (33.2) | F37: 13.8 | G37: 0.59925 | H37: 0 | I37: 0 | J37: 0.12325 | K37: 0 | L37: 0 | M37: 0 | N37: 0 | O37: 0 | P37: 0 | Q37: 0.05493125 | R37: 0 | S37: 0.2666875 | T37: 0 | U37: 20240940457-FC | V37: 2029-12-31
C38: AGC | D38: Stratobel Clearlite Low Carbon | E38: Laminated offline coated 8.4 (44.1) | F38: 14.6 | G38: 0.74025 | H38: 0 | I38: 0 | J38: 0.15225 | K38: 0 | L38: 0 | M38: 0 | N38: 0 | O38: 0 | P38: 0 | Q38: 0.06785625 | R38: 0 | S38: 0.3294375 | T38: 0 | U38: 20240940457-FC | V38: 2029-12-31
C39: AGC | D39: Stratobel Clearlite Low Carbon | E39: Laminated offline coated 8.8 (44.2) | F39: 16.8 | G39: 0.7755 | H39: 0 | I39: 0 | J39: 0.1595 | K39: 0 | L39: 0 | M39: 0 | N39: 0 | O39: 0 | P39: 0 | Q39: 0.0710875 | R39: 0 | S39: 0.345125 | T39: 0 | U39: 20240940457-FC | V39: 2029-12-31
C40: AGC | D40: Stratobel Clearlite Low Carbon | E40: Laminated offline coated 10.4 (55.1) | F40: 17.6 | G40: 0.9165 | H40: 0 | I40: 0 | J40: 0.1885 | K40: 0 | L40: 0 | M40: 0 | N40: 0 | O40: 0 | P40: 0 | Q40: 0.0840125 | R40: 0 | S40: 0.407875 | T40: 0 | U40: 20240940457-FC | V40: 2029-12-31
C41: AGC | D41: Stratobel Clearlite Low Carbon | E41: Laminated offline coated 10.8 (55.2) | F41: 19.8 | G41: 0.95175 | H41: 0 | I41: 0 | J41: 0.19575 | K41: 0 | L41: 0 | M41: 0 | N41: 0 | O41: 0 | P41: 0 | Q41: 0.08724375 | R41: 0 | S41: 0.4235625 | T41: 0 | U41: 20240940457-FC | V41: 2029-12-31
C42: AGC | D42: Stratobel Clearlite Low Carbon | E42: Laminated offline coated 11.5 (55.4) | F42: 24.3 | G42: 1.0134375 | H42: 0 | I42: 0 | J42: 0.2084375 | K42: 0 | L42: 0 | M42: 0 | N42: 0 | O42: 0 | P42: 0 | Q42: 0.0928984375 | R42: 0 | S42: 0.451015625 | T42: 0 | U42: 20240940457-FC | V42: 2029-12-31
C43: AGC | D43: Stratobel Clearlite Low Carbon | E43: Laminated offline coated 12.4 (66.1) | F43: 20.6 | G43: 1.09275 | H43: 0 | I43: 0 | J43: 0.22475 | K43: 0 | L43: 0 | M43: 0 | N43: 0 | O43: 0 | P43: 0 | Q43: 0.10016875 | R43: 0 | S43: 0.4863125 | T43: 0 | U43: 20240940457-FC | V43: 2029-12-31
C44: AGC | D44: Stratobel Clearlite Low Carbon | E44: Laminated offline coated 12.8 (66.2) | F44: 22.9 | G44: 1.128 | H44: 0 | I44: 0 | J44: 0.232 | K44: 0 | L44: 0 | M44: 0 | N44: 0 | O44: 0 | P44: 0 | Q44: 0.1034 | R44: 0 | S44: 0.502 | T44: 0 | U44: 20240940457-FC | V44: 2029-12-31
C45: AGC | D45: Stratobel Clearlite Low Carbon | E45: Laminated offline coated 13.5 (66.4) | F45: 27.3 | G45: 1.1896875 | H45: 0 | I45: 0 | J45: 0.2446875 | K45: 0 | L45: 0 | M45: 0 | N45: 0 | O45: 0 | P45: 0 | Q45: 0.1090546875 | R45: 0 | S45: 0.529453125 | T45: 0 | U45: 20240940457-FC | V45: 2029-12-31
C46: AGC | D46: Stratobel Clearlite Low Carbon | E46: Laminated offline coated 16.4 (88.1) | F46: 26.7 | G46: 1.44525 | H46: 0 | I46: 0 | J46: 0.29725 | K46: 0 | L46: 0 | M46: 0 | N46: 0 | O46: 0 | P46: 0 | Q46: 0.13248125 | R46: 0 | S46: 0.6431875 | T46: 0 | U46: 20240940457-FC | V46: 2029-12-31
C47: AGC | D47: Stratobel Clearlite Low Carbon | E47: Laminated offline coated 16.8 (88.2) | F47: 28.9 | G47: 1.4805 | H47: 0 | I47: 0 | J47: 0.3045 | K47: 0 | L47: 0 | M47: 0 | N47: 0 | O47: 0 | P47: 0 | Q47: 0.1357125 | R47: 0 | S47: 0.658875 | T47: 0 | U47: 20240940457-FC | V47: 2029-12-31
C48: AGC | D48: Stratobel Clearlite Low Carbon | E48: Laminated offline coated 17.5 (88.4) | F48: 33.4 | G48: 1.5421875 | H48: 0 | I48: 0 | J48: 0.3171875 | K48: 0 | L48: 0 | M48: 0 | N48: 0 | O48: 0 | P48: 0 | Q48: 0.1413671875 | R48: 0 | S48: 0.686328125 | T48: 0 | U48: 20240940457-FC | V48: 2029-12-31
C49: AGC | D49: Stratobel Clearlite Low Carbon | E49: Laminated toughened 9.5 (44.4) | F49: 21.9 | G49: 1.72 | H49: 0 | I49: 0 | J49: 0.116 | K49: 0 | L49: 0 | M49: 0 | N49: 0 | O49: 0 | P49: 0 | Q49: 0.0725 | R49: 0 | S49: 0.376 | T49: 0 | U49: 20240940457-FC | V49: 2029-12-31 | X49: 9.5
C50: AGC | D50: Stratobel Clearlite Low Carbon | E50: Laminated toughened 11.5 (55.4) | F50: 25.2 | G50: =($G$49/$X$49)*X50 -> 2.082105263 | H50: 0 | I50: 0 | J50: =($J$49/$X$49)*X50 -> 0.1404210526 | K50: 0 | L50: 0 | M50: 0 | N50: 0 | O50: 0 | P50: 0 | Q50: =($Q$49/$X$49)*X50 -> 0.08776315789 | R50: 0 | S50: =($S$49/$X$49)*X50 -> 0.4551578947 | T50: 0 | U50: 20240940457-FC | V50: 2029-12-31 | X50: 11.5
C51: AGC | D51: Stratobel Clearlite Low Carbon | E51: Laminated toughened 13.5 (66.4) | F51: 28.5 | G51: =($G$49/$X$49)*X51 -> 2.444210526 | H51: 0 | I51: 0 | J51: =($J$49/$X$49)*X51 -> 0.1648421053 | K51: 0 | L51: 0 | M51: 0 | N51: 0 | O51: 0 | P51: 0 | Q51: =($Q$49/$X$49)*X51 -> 0.1030263158 | R51: 0 | S51: =($S$49/$X$49)*X51 -> 0.5343157895 | T51: 0 | U51: 20240940457-FC | V51: 2029-12-31 | X51: 13.5
C52: AGC | D52: Stratobel Clearlite Low Carbon | E52: Laminated toughened 17.5 (88.4) | F52: 35 | G52: =($G$49/$X$49)*X52 -> 3.168421053 | H52: 0 | I52: 0 | J52: =($J$49/$X$49)*X52 -> 0.2136842105 | K52: 0 | L52: 0 | M52: 0 | N52: 0 | O52: 0 | P52: 0 | Q52: =($Q$49/$X$49)*X52 -> 0.1335526316 | R52: 0 | S52: =($S$49/$X$49)*X52 -> 0.6926315789 | T52: 0 | U52: 20240940457-FC | V52: 2029-12-31 | X52: 17.5
C53: AGC | D53: Stratobel Clearlite Low Carbon | E53: Laminated toughened offline coated 9.5 (44.4) | F53: 23.4 | G53: 1.72 | H53: 0 | I53: 0 | J53: 0.116 | K53: 0 | L53: 0 | M53: 0 | N53: 0 | O53: 0 | P53: 0 | Q53: 0.0725 | R53: 0 | S53: 0.376 | T53: 0 | U53: 20240940457-FC | V53: 2029-12-31
C54: AGC | D54: Stratobel Clearlite Low Carbon | E54: Laminated toughened offline coated 11.5 (55.4) | F54: 26.9 | G54: 2.082105263 | H54: 0 | I54: 0 | J54: 0.1404210526 | K54: 0 | L54: 0 | M54: 0 | N54: 0 | O54: 0 | P54: 0 | Q54: 0.08776315789 | R54: 0 | S54: 0.4551578947 | T54: 0 | U54: 20240940457-FC | V54: 2029-12-31
C55: AGC | D55: Stratobel Clearlite Low Carbon | E55: Laminated toughened offline coated 13.5 (66.4) | F55: 30.4 | G55: 2.444210526 | H55: 0 | I55: 0 | J55: 0.1648421053 | K55: 0 | L55: 0 | M55: 0 | N55: 0 | O55: 0 | P55: 0 | Q55: 0.1030263158 | R55: 0 | S55: 0.5343157895 | T55: 0 | U55: 20240940457-FC | V55: 2029-12-31
C56: AGC | D56: Stratobel Clearlite Low Carbon | E56: Laminated toughened offline coated 17.5 (88.4) | F56: 37.4 | G56: 3.168421053 | H56: 0 | I56: 0 | J56: 0.2136842105 | K56: 0 | L56: 0 | M56: 0 | N56: 0 | O56: 0 | P56: 0 | Q56: 0.1335526316 | R56: 0 | S56: 0.6926315789 | T56: 0 | U56: 20240940457-FC | V56: 2029-12-31
C57: AGC | D57: Planibel Clearlite | E57: Monolithic 3 mm | F57: 8 | G57: 0.27 | H57: 0 | I57: 0 | J57: 0.116 | K57: 0 | L57: 0 | M57: 0 | N57: 0 | O57: 0 | P57: 0 | Q57: 0.0252 | R57: 0 | S57: 0.123 | T57: 0 | U57: 20240940452-FC | V57: 2029-12-31
C58: AGC | D58: Planibel Clearlite | E58: Monolithic 4 mm | F58: 10.6 | G58: 0.36 | H58: 0 | I58: 0 | J58: 0.1546666667 | K58: 0 | L58: 0 | M58: 0 | N58: 0 | O58: 0 | P58: 0 | Q58: 0.0336 | R58: 0 | S58: 0.164 | T58: 0 | U58: 20240940452-FC | V58: 2029-12-31
C59: AGC | D59: Planibel Clearlite | E59: Monolithic 5 mm | F59: 13.3 | G59: 0.45 | H59: 0 | I59: 0 | J59: 0.1933333333 | K59: 0 | L59: 0 | M59: 0 | N59: 0 | O59: 0 | P59: 0 | Q59: 0.042 | R59: 0 | S59: 0.205 | T59: 0 | U59: 20240940452-FC | V59: 2029-12-31
C60: AGC | D60: Planibel Clearlite | E60: Monolithic 6 mm | F60: 16 | G60: 0.54 | H60: 0 | I60: 0 | J60: 0.232 | K60: 0 | L60: 0 | M60: 0 | N60: 0 | O60: 0 | P60: 0 | Q60: 0.0504 | R60: 0 | S60: 0.246 | T60: 0 | U60: 20240940452-FC | V60: 2029-12-31
C61: AGC | D61: Planibel Clearlite | E61: Monolithic 8 mm | F61: 21.3 | G61: 0.72 | H61: 0 | I61: 0 | J61: 0.3093333333 | K61: 0 | L61: 0 | M61: 0 | N61: 0 | O61: 0 | P61: 0 | Q61: 0.0672 | R61: 0 | S61: 0.328 | T61: 0 | U61: 20240940452-FC | V61: 2029-12-31
C62: AGC | D62: Planibel Clearlite | E62: Monolithic 10 mm | F62: 26.6 | G62: 0.81 | H62: 0 | I62: 0 | J62: 0.36 | K62: 0 | L62: 0 | M62: 0 | N62: 0 | O62: 0 | P62: 0 | Q62: 0.078 | R62: 0 | S62: 0.392 | T62: 0 | U62: 20240940452-FC | V62: 2029-12-31
C63: AGC | D63: Planibel Clearlite | E63: Monolithic 12 mm | F63: 31.9 | G63: 0.9 | H63: 0 | I63: 0 | J63: 0.411 | K63: 0 | L63: 0 | M63: 0 | N63: 0 | O63: 0 | P63: 0 | Q63: 0.089 | R63: 0 | S63: 0.0466 | T63: 0 | U63: 20240940452-FC | V63: 2029-12-31
C64: AGC | D64: Planibel Clearlite | E64: Monolithic offline coated 3 mm | F64: 9.9 | G64: 0.247 | H64: 0 | I64: 0 | J64: 0.116 | K64: 0 | L64: 0 | M64: 0 | N64: 0 | O64: 0 | P64: 0 | Q64: 0.0252 | R64: 0 | S64: 0.123 | T64: 0 | U64: 20240940460-FC | V64: 2029-12-31
C65: AGC | D65: Planibel Clearlite | E65: Monolithic offline coated 4 mm | F65: 12.7 | G65: 0.3293333333 | H65: 0 | I65: 0 | J65: 0.1546666667 | K65: 0 | L65: 0 | M65: 0 | N65: 0 | O65: 0 | P65: 0 | Q65: 0.0336 | R65: 0 | S65: 0.164 | T65: 0 | U65: 20240940460-FC | V65: 2029-12-31
C66: AGC | D66: Planibel Clearlite | E66: Monolithic offline coated 5 mm | F66: 15.5 | G66: 0.4116666667 | H66: 0 | I66: 0 | J66: 0.1933333333 | K66: 0 | L66: 0 | M66: 0 | N66: 0 | O66: 0 | P66: 0 | Q66: 0.042 | R66: 0 | S66: 0.205 | T66: 0 | U66: 20240940460-FC | V66: 2029-12-31
C67: AGC | D67: Planibel Clearlite | E67: Monolithic offline coated 6 mm | F67: 18.3 | G67: 0.494 | H67: 0 | I67: 0 | J67: 0.232 | K67: 0 | L67: 0 | M67: 0 | N67: 0 | O67: 0 | P67: 0 | Q67: 0.0504 | R67: 0 | S67: 0.246 | T67: 0 | U67: 20240940460-FC | V67: 2029-12-31
C68: AGC | D68: Planibel Clearlite | E68: Monolithic offline coated 8 mm | F68: 23.9 | G68: 0.6586666667 | H68: 0 | I68: 0 | J68: 0.3093333333 | K68: 0 | L68: 0 | M68: 0 | N68: 0 | O68: 0 | P68: 0 | Q68: 0.0672 | R68: 0 | S68: 0.328 | T68: 0 | U68: 20240940460-FC | V68: 2029-12-31
C69: AGC | D69: Planibel Clearlite | E69: Monolithic offline coated 10 mm | F69: 29.4 | G69: 0.741 | H69: 0 | I69: 0 | J69: 0.36 | K69: 0 | L69: 0 | M69: 0 | N69: 0 | O69: 0 | P69: 0 | Q69: 0.078 | R69: 0 | S69: 0.392 | T69: 0 | U69: 20240940460-FC | V69: 2029-12-31
C70: AGC | D70: Planibel Clearlite | E70: Monolithic offline coated 12 mm | F70: 35 | G70: 0.823 | H70: 0 | I70: 0 | J70: 0.411 | K70: 0 | L70: 0 | M70: 0 | N70: 0 | O70: 0 | P70: 0 | Q70: 0.089 | R70: 0 | S70: 0.0466 | T70: 0 | U70: 20240940460-FC | V70: 2029-12-31
C71: AGC | D71: Planibel Clearlite | E71: Monolithic toughened HST 3 mm | F71: 11.4 | G71: 0.647 | H71: 0 | I71: 0 | J71: 0.116 | K71: 0 | L71: 0 | M71: 0 | N71: 0 | O71: 0 | P71: 0 | Q71: 0.0252 | R71: 0 | S71: 0.123 | T71: 0 | U71: 20240940468-FC | V71: 2029-12-31
C72: AGC | D72: Planibel Clearlite | E72: Monolithic toughened HST 4 mm | F72: 15.1 | G72: 0.8626666667 | H72: 0 | I72: 0 | J72: 0.1546666667 | K72: 0 | L72: 0 | M72: 0 | N72: 0 | O72: 0 | P72: 0 | Q72: 0.0336 | R72: 0 | S72: 0.164 | T72: 0 | U72: 20240940468-FC | V72: 2029-12-31
C73: AGC | D73: Planibel Clearlite | E73: Monolithic toughened HST 5 mm | F73: 18.8 | G73: 1.078333333 | H73: 0 | I73: 0 | J73: 0.1933333333 | K73: 0 | L73: 0 | M73: 0 | N73: 0 | O73: 0 | P73: 0 | Q73: 0.042 | R73: 0 | S73: 0.205 | T73: 0 | U73: 20240940468-FC | V73: 2029-12-31
C74: AGC | D74: Planibel Clearlite | E74: Monolithic toughened HST 6 mm | F74: 22.5 | G74: 1.294 | H74: 0 | I74: 0 | J74: 0.232 | K74: 0 | L74: 0 | M74: 0 | N74: 0 | O74: 0 | P74: 0 | Q74: 0.0504 | R74: 0 | S74: 0.246 | T74: 0 | U74: 20240940468-FC | V74: 2029-12-31
C75: AGC | D75: Planibel Clearlite | E75: Monolithic toughened HST 8 mm | F75: 29.9 | G75: 1.725333333 | H75: 0 | I75: 0 | J75: 0.3093333333 | K75: 0 | L75: 0 | M75: 0 | N75: 0 | O75: 0 | P75: 0 | Q75: 0.0672 | R75: 0 | S75: 0.328 | T75: 0 | U75: 20240940468-FC | V75: 2029-12-31
C76: AGC | D76: Planibel Clearlite | E76: Monolithic toughened HST 10 mm | F76: 37.3 | G76: 1.935 | H76: 0 | I76: 0 | J76: 0.3093333333 | K76: 0 | L76: 0 | M76: 0 | N76: 0 | O76: 0 | P76: 0 | Q76: 0.0504 | R76: 0 | S76: 0.246 | T76: 0 | U76: 20240940468-FC | V76: 2029-12-31
C77: AGC | D77: Planibel Clearlite | E77: Monolithic toughened HST 12 mm | F77: 44.7 | G77: 2.109 | H77: 0 | I77: 0 | J77: 0.36 | K77: 0 | L77: 0 | M77: 0 | N77: 0 | O77: 0 | P77: 0 | Q77: 0.0672 | R77: 0 | S77: 0.328 | T77: 0 | U77: 20240940468-FC | V77: 2029-12-31
C78: AGC | D78: Planibel Clearlite | E78: Monolithic toughened HST offline coated 3 mm | F78: 13.1 | G78: 0.657 | H78: 0 | I78: 0 | J78: 0.116 | K78: 0 | L78: 0 | M78: 0 | N78: 0 | O78: 0 | P78: 0 | Q78: 0.0252 | R78: 0 | S78: 0.123 | T78: 0 | U78: 20240940460-FC | V78: 2029-12-31
C79: AGC | D79: Planibel Clearlite | E79: Monolithic toughened HST offline coated 4 mm | F79: 16.9 | G79: 0.876 | H79: 0 | I79: 0 | J79: 0.1546666667 | K79: 0 | L79: 0 | M79: 0 | N79: 0 | O79: 0 | P79: 0 | Q79: 0.0336 | R79: 0 | S79: 0.164 | T79: 0 | U79: 20240940460-FC | V79: 2029-12-31
C80: AGC | D80: Planibel Clearlite | E80: Monolithic toughened HST offline coated 5 mm | F80: 20.8 | G80: 1.095 | H80: 0 | I80: 0 | J80: 0.1933333333 | K80: 0 | L80: 0 | M80: 0 | N80: 0 | O80: 0 | P80: 0 | Q80: 0.042 | R80: 0 | S80: 0.205 | T80: 0 | U80: 20240940460-FC | V80: 2029-12-31
C81: AGC | D81: Planibel Clearlite | E81: Monolithic toughened HST offline coated 6 mm | F81: 24.6 | G81: 1.314 | H81: 0 | I81: 0 | J81: 0.232 | K81: 0 | L81: 0 | M81: 0 | N81: 0 | O81: 0 | P81: 0 | Q81: 0.0504 | R81: 0 | S81: 0.246 | T81: 0 | U81: 20240940460-FC | V81: 2029-12-31
C82: AGC | D82: Planibel Clearlite | E82: Monolithic toughened HST offline coated 8 mm | F82: 32.3 | G82: 1.752 | H82: 0 | I82: 0 | J82: 0.3093333333 | K82: 0 | L82: 0 | M82: 0 | N82: 0 | O82: 0 | P82: 0 | Q82: 0.0672 | R82: 0 | S82: 0.328 | T82: 0 | U82: 20240940460-FC | V82: 2029-12-31
C83: AGC | D83: Planibel Clearlite | E83: Monolithic toughened HST offline coated 10 mm | F83: 40 | G83: 1.935 | H83: 0 | I83: 0 | J83: 0.3093333333 | K83: 0 | L83: 0 | M83: 0 | N83: 0 | O83: 0 | P83: 0 | Q83: 0.0504 | R83: 0 | S83: 0.246 | T83: 0 | U83: 20240940460-FC | V83: 2029-12-31
C84: AGC | D84: Planibel Clearlite | E84: Monolithic toughened HST offline coated 12 mm | F84: 47.7 | G84: 2.109 | H84: 0 | I84: 0 | J84: 0.36 | K84: 0 | L84: 0 | M84: 0 | N84: 0 | O84: 0 | P84: 0 | Q84: 0.0672 | R84: 0 | S84: 0.328 | T84: 0 | U84: 20240940460-FC | V84: 2029-12-31
C85: AGC | D85: Stratobel Clearlite | E85: Laminated 6.4 (33.1) | F85: 18.8 | G85: 0.564 | H85: 0 | I85: 0 | J85: 0.116 | K85: 0 | L85: 0 | M85: 0 | N85: 0 | O85: 0 | P85: 0 | Q85: 0.0517 | R85: 0 | S85: 0.251 | T85: 0 | U85: 20240940458-FC | V85: 2029-12-31
C86: AGC | D86: Stratobel Clearlite | E86: Laminated 6.8 (33.2) | F86: 20.9 | G86: 0.59925 | H86: 0 | I86: 0 | J86: 0.12325 | K86: 0 | L86: 0 | M86: 0 | N86: 0 | O86: 0 | P86: 0 | Q86: 0.05493125 | R86: 0 | S86: 0.2666875 | T86: 0 | U86: 20240940458-FC | V86: 2029-12-31
C87: AGC | D87: Stratobel Clearlite | E87: Laminated 8.4 (44.1) | F87: 24.4 | G87: 0.74025 | H87: 0 | I87: 0 | J87: 0.15225 | K87: 0 | L87: 0 | M87: 0 | N87: 0 | O87: 0 | P87: 0 | Q87: 0.06785625 | R87: 0 | S87: 0.3294375 | T87: 0 | U87: 20240940458-FC | V87: 2029-12-31
C88: AGC | D88: Stratobel Clearlite | E88: Laminated 8.8 (44.2) | F88: 26.5 | G88: 0.7755 | H88: 0 | I88: 0 | J88: 0.1595 | K88: 0 | L88: 0 | M88: 0 | N88: 0 | O88: 0 | P88: 0 | Q88: 0.0710875 | R88: 0 | S88: 0.345125 | T88: 0 | U88: 20240940458-FC | V88: 2029-12-31
C89: AGC | D89: Stratobel Clearlite | E89: Laminated 10.4 (55.1) | F89: 29.9 | G89: 0.9165 | H89: 0 | I89: 0 | J89: 0.1885 | K89: 0 | L89: 0 | M89: 0 | N89: 0 | O89: 0 | P89: 0 | Q89: 0.0840125 | R89: 0 | S89: 0.407875 | T89: 0 | U89: 20240940458-FC | V89: 2029-12-31
C90: AGC | D90: Stratobel Clearlite | E90: Laminated 10.8 (55.2) | F90: 32 | G90: 0.95175 | H90: 0 | I90: 0 | J90: 0.19575 | K90: 0 | L90: 0 | M90: 0 | N90: 0 | O90: 0 | P90: 0 | Q90: 0.08724375 | R90: 0 | S90: 0.4235625 | T90: 0 | U90: 20240940458-FC | V90: 2029-12-31
C91: AGC | D91: Stratobel Clearlite | E91: Laminated 11.5 (55.4) | F91: 36.3 | G91: 1.0134375 | H91: 0 | I91: 0 | J91: 0.2084375 | K91: 0 | L91: 0 | M91: 0 | N91: 0 | O91: 0 | P91: 0 | Q91: 0.0928984375 | R91: 0 | S91: 0.451015625 | T91: 0 | U91: 20240940458-FC | V91: 2029-12-31
C92: AGC | D92: Stratobel Clearlite | E92: Laminated 12.4 (66.1) | F92: 35.5 | G92: 1.09275 | H92: 0 | I92: 0 | J92: 0.22475 | K92: 0 | L92: 0 | M92: 0 | N92: 0 | O92: 0 | P92: 0 | Q92: 0.10016875 | R92: 0 | S92: 0.4863125 | T92: 0 | U92: 20240940458-FC | V92: 2029-12-31
C93: AGC | D93: Stratobel Clearlite | E93: Laminated 12.8 (66.2) | F93: 37.6 | G93: 1.128 | H93: 0 | I93: 0 | J93: 0.232 | K93: 0 | L93: 0 | M93: 0 | N93: 0 | O93: 0 | P93: 0 | Q93: 0.1034 | R93: 0 | S93: 0.502 | T93: 0 | U93: 20240940458-FC | V93: 2029-12-31
C94: AGC | D94: Stratobel Clearlite | E94: Laminated 13.5 (66.4) | F94: 41.8 | G94: 1.1896875 | H94: 0 | I94: 0 | J94: 0.2446875 | K94: 0 | L94: 0 | M94: 0 | N94: 0 | O94: 0 | P94: 0 | Q94: 0.1090546875 | R94: 0 | S94: 0.529453125 | T94: 0 | U94: 20240940458-FC | V94: 2029-12-31
C95: AGC | D95: Stratobel Clearlite | E95: Laminated 16.4 (88.1) | F95: 46.6 | G95: 1.44525 | H95: 0 | I95: 0 | J95: 0.29725 | K95: 0 | L95: 0 | M95: 0 | N95: 0 | O95: 0 | P95: 0 | Q95: 0.13248125 | R95: 0 | S95: 0.6431875 | T95: 0 | U95: 20240940458-FC | V95: 2029-12-31
C96: AGC | D96: Stratobel Clearlite | E96: Laminated 16.8 (88.2) | F96: 48.7 | G96: 1.4805 | H96: 0 | I96: 0 | J96: 0.3045 | K96: 0 | L96: 0 | M96: 0 | N96: 0 | O96: 0 | P96: 0 | Q96: 0.1357125 | R96: 0 | S96: 0.658875 | T96: 0 | U96: 20240940458-FC | V96: 2029-12-31
C97: AGC | D97: Stratobel Clearlite | E97: Laminated 17.5 (88.4) | F97: 52.9 | G97: 1.5421875 | H97: 0 | I97: 0 | J97: 0.3171875 | K97: 0 | L97: 0 | M97: 0 | N97: 0 | O97: 0 | P97: 0 | Q97: 0.1413671875 | R97: 0 | S97: 0.686328125 | T97: 0 | U97: 20240940458-FC | V97: 2029-12-31
C98: AGC | D98: Stratobel Clearlite | E98: Laminated offline coated 6.4 (33.1) | F98: 21.2 | G98: 0.564 | H98: 0 | I98: 0 | J98: 0.116 | K98: 0 | L98: 0 | M98: 0 | N98: 0 | O98: 0 | P98: 0 | Q98: 0.0517 | R98: 0 | S98: 0.251 | T98: 0 | U98: 20240940458-FC | V98: 2029-12-31
C99: AGC | D99: Stratobel Clearlite | E99: Laminated offline coated 6.8 (33.2) | F99: 23.4 | G99: 0.59925 | H99: 0 | I99: 0 | J99: 0.12325 | K99: 0 | L99: 0 | M99: 0 | N99: 0 | O99: 0 | P99: 0 | Q99: 0.05493125 | R99: 0 | S99: 0.2666875 | T99: 0 | U99: 20240940458-FC | V99: 2029-12-31
C100: AGC | D100: Stratobel Clearlite | E100: Laminated offline coated 8.4 (44.1) | F100: 27 | G100: 0.74025 | H100: 0 | I100: 0 | J100: 0.15225 | K100: 0 | L100: 0 | M100: 0 | N100: 0 | O100: 0 | P100: 0 | Q100: 0.06785625 | R100: 0 | S100: 0.3294375 | T100: 0 | U100: 20240940458-FC | V100: 2029-12-31
C101: AGC | D101: Stratobel Clearlite | E101: Laminated offline coated 8.8 (44.2) | F101: 29.3 | G101: 0.7755 | H101: 0 | I101: 0 | J101: 0.1595 | K101: 0 | L101: 0 | M101: 0 | N101: 0 | O101: 0 | P101: 0 | Q101: 0.0710875 | R101: 0 | S101: 0.345125 | T101: 0 | U101: 20240940458-FC | V101: 2029-12-31
C102: AGC | D102: Stratobel Clearlite | E102: Laminated offline coated 10.4 (55.1) | F102: 32.9 | G102: 0.9165 | H102: 0 | I102: 0 | J102: 0.1885 | K102: 0 | L102: 0 | M102: 0 | N102: 0 | O102: 0 | P102: 0 | Q102: 0.0840125 | R102: 0 | S102: 0.407875 | T102: 0 | U102: 20240940458-FC | V102: 2029-12-31
C103: AGC | D103: Stratobel Clearlite | E103: Laminated offline coated 10.8 (55.2) | F103: 35.1 | G103: 0.95175 | H103: 0 | I103: 0 | J103: 0.19575 | K103: 0 | L103: 0 | M103: 0 | N103: 0 | O103: 0 | P103: 0 | Q103: 0.08724375 | R103: 0 | S103: 0.4235625 | T103: 0 | U103: 20240940458-FC | V103: 2029-12-31
C104: AGC | D104: Stratobel Clearlite | E104: Laminated offline coated 11.5 (55.4) | F104: 39.5 | G104: 1.0134375 | H104: 0 | I104: 0 | J104: 0.2084375 | K104: 0 | L104: 0 | M104: 0 | N104: 0 | O104: 0 | P104: 0 | Q104: 0.0928984375 | R104: 0 | S104: 0.451015625 | T104: 0 | U104: 20240940458-FC | V104: 2029-12-31
C105: AGC | D105: Stratobel Clearlite | E105: Laminated offline coated 12.4 (66.1) | F105: 38.7 | G105: 1.09275 | H105: 0 | I105: 0 | J105: 0.22475 | K105: 0 | L105: 0 | M105: 0 | N105: 0 | O105: 0 | P105: 0 | Q105: 0.10016875 | R105: 0 | S105: 0.4863125 | T105: 0 | U105: 20240940458-FC | V105: 2029-12-31
C106: AGC | D106: Stratobel Clearlite | E106: Laminated offline coated 12.8 (66.2) | F106: 40.9 | G106: 1.128 | H106: 0 | I106: 0 | J106: 0.232 | K106: 0 | L106: 0 | M106: 0 | N106: 0 | O106: 0 | P106: 0 | Q106: 0.1034 | R106: 0 | S106: 0.502 | T106: 0 | U106: 20240940458-FC | V106: 2029-12-31
C107: AGC | D107: Stratobel Clearlite | E107: Laminated offline coated 13.5 (66.4) | F107: 45.4 | G107: 1.1896875 | H107: 0 | I107: 0 | J107: 0.2446875 | K107: 0 | L107: 0 | M107: 0 | N107: 0 | O107: 0 | P107: 0 | Q107: 0.1090546875 | R107: 0 | S107: 0.529453125 | T107: 0 | U107: 20240940458-FC | V107: 2029-12-31
C108: AGC | D108: Stratobel Clearlite | E108: Laminated offline coated 16.4 (88.1) | F108: 50.4 | G108: 1.44525 | H108: 0 | I108: 0 | J108: 0.29725 | K108: 0 | L108: 0 | M108: 0 | N108: 0 | O108: 0 | P108: 0 | Q108: 0.13248125 | R108: 0 | S108: 0.6431875 | T108: 0 | U108: 20240940458-FC | V108: 2029-12-31
C109: AGC | D109: Stratobel Clearlite | E109: Laminated offline coated 16.8 (88.2) | F109: 52.6 | G109: 1.4805 | H109: 0 | I109: 0 | J109: 0.3045 | K109: 0 | L109: 0 | M109: 0 | N109: 0 | O109: 0 | P109: 0 | Q109: 0.1357125 | R109: 0 | S109: 0.658875 | T109: 0 | U109: 20240940458-FC | V109: 2029-12-31
C110: AGC | D110: Stratobel Clearlite | E110: Laminated offline coated 17.5 (88.4) | F110: 57 | G110: 1.5421875 | H110: 0 | I110: 0 | J110: 0.3171875 | K110: 0 | L110: 0 | M110: 0 | N110: 0 | O110: 0 | P110: 0 | Q110: 0.1413671875 | R110: 0 | S110: 0.686328125 | T110: 0 | U110: 20240940458-FC | V110: 2029-12-31
C111: AGC | D111: Stratobel Clearlite | E111: Laminated toughened 9.5 (44.4) | F111: 39.6 | G111: 1.72 | H111: 0 | I111: 0 | J111: 0.116 | K111: 0 | L111: 0 | M111: 0 | N111: 0 | O111: 0 | P111: 0 | Q111: 0.0725 | R111: 0 | S111: 0.376 | T111: 0 | U111: 20240940458-FC | V111: 2029-12-31
C112: AGC | D112: Stratobel Clearlite | E112: Laminated toughened 11.5 (55.4) | F112: 47.3 | G112: 2.082105263 | H112: 0 | I112: 0 | J112: 0.1404210526 | K112: 0 | L112: 0 | M112: 0 | N112: 0 | O112: 0 | P112: 0 | Q112: 0.08776315789 | R112: 0 | S112: 0.4551578947 | T112: 0 | U112: 20240940458-FC | V112: 2029-12-31
C113: AGC | D113: Stratobel Clearlite | E113: Laminated toughened 13.5 (66.4) | F113: 54.9 | G113: 2.444210526 | H113: 0 | I113: 0 | J113: 0.1648421053 | K113: 0 | L113: 0 | M113: 0 | N113: 0 | O113: 0 | P113: 0 | Q113: 0.1030263158 | R113: 0 | S113: 0.5343157895 | T113: 0 | U113: 20240940458-FC | V113: 2029-12-31
C114: AGC | D114: Stratobel Clearlite | E114: Laminated toughened 17.5 (88.4) | F114: 70.3 | G114: 3.168421053 | H114: 0 | I114: 0 | J114: 0.2136842105 | K114: 0 | L114: 0 | M114: 0 | N114: 0 | O114: 0 | P114: 0 | Q114: 0.1335526316 | R114: 0 | S114: 0.6926315789 | T114: 0 | U114: 20240940458-FC | V114: 2029-12-31
C115: AGC | D115: Stratobel Clearlite | E115: Laminated toughened offline coated 9.5 (44.4) | F115: 42.6 | G115: 1.72 | H115: 0 | I115: 0 | J115: 0.116 | K115: 0 | L115: 0 | M115: 0 | N115: 0 | O115: 0 | P115: 0 | Q115: 0.0725 | R115: 0 | S115: 0.376 | T115: 0 | U115: 20240940458-FC | V115: 2029-12-31
C116: AGC | D116: Stratobel Clearlite | E116: Laminated toughened offline coated 11.5 (55.4) | F116: 50.6 | G116: 2.082105263 | H116: 0 | I116: 0 | J116: 0.1404210526 | K116: 0 | L116: 0 | M116: 0 | N116: 0 | O116: 0 | P116: 0 | Q116: 0.08776315789 | R116: 0 | S116: 0.4551578947 | T116: 0 | U116: 20240940458-FC | V116: 2029-12-31
C117: AGC | D117: Stratobel Clearlite | E117: Laminated toughened offline coated 13.5 (66.4) | F117: 58.5 | G117: 2.444210526 | H117: 0 | I117: 0 | J117: 0.1648421053 | K117: 0 | L117: 0 | M117: 0 | N117: 0 | O117: 0 | P117: 0 | Q117: 0.1030263158 | R117: 0 | S117: 0.5343157895 | T117: 0 | U117: 20240940458-FC | V117: 2029-12-31
C118: AGC | D118: Stratobel Clearlite | E118: Laminated toughened offline coated 17.5 (88.4) | F118: 74.4 | G118: 3.168421053 | H118: 0 | I118: 0 | J118: 0.2136842105 | K118: 0 | L118: 0 | M118: 0 | N118: 0 | O118: 0 | P118: 0 | Q118: 0.1335526316 | R118: 0 | S118: 0.6926315789 | T118: 0 | U118: 20240940458-FC | V118: 2029-12-31
C119: AGC | D119: Planibel Clearvision | E119: Monolithic 3 mm | F119: 8 | G119: 0.27 | H119: 0 | I119: 0 | J119: 0.116 | K119: 0 | L119: 0 | M119: 0 | N119: 0 | O119: 0 | P119: 0 | Q119: 0.0252 | R119: 0 | S119: 0.123 | T119: 0 | U119: 20240940452-FC | V119: 2029-12-31
C120: AGC | D120: Planibel Clearvision | E120: Monolithic 4 mm | F120: 10.6 | G120: 0.36 | H120: 0 | I120: 0 | J120: 0.1546666667 | K120: 0 | L120: 0 | M120: 0 | N120: 0 | O120: 0 | P120: 0 | Q120: 0.0336 | R120: 0 | S120: 0.164 | T120: 0 | U120: 20240940452-FC | V120: 2029-12-31
C121: AGC | D121: Planibel Clearvision | E121: Monolithic 5 mm | F121: 13.3 | G121: 0.45 | H121: 0 | I121: 0 | J121: 0.1933333333 | K121: 0 | L121: 0 | M121: 0 | N121: 0 | O121: 0 | P121: 0 | Q121: 0.042 | R121: 0 | S121: 0.205 | T121: 0 | U121: 20240940452-FC | V121: 2029-12-31
C122: AGC | D122: Planibel Clearvision | E122: Monolithic 6 mm | F122: 16 | G122: 0.54 | H122: 0 | I122: 0 | J122: 0.232 | K122: 0 | L122: 0 | M122: 0 | N122: 0 | O122: 0 | P122: 0 | Q122: 0.0504 | R122: 0 | S122: 0.246 | T122: 0 | U122: 20240940452-FC | V122: 2029-12-31
C123: AGC | D123: Planibel Clearvision | E123: Monolithic 8 mm | F123: 21.3 | G123: 0.72 | H123: 0 | I123: 0 | J123: 0.3093333333 | K123: 0 | L123: 0 | M123: 0 | N123: 0 | O123: 0 | P123: 0 | Q123: 0.0672 | R123: 0 | S123: 0.328 | T123: 0 | U123: 20240940452-FC | V123: 2029-12-31
C124: AGC | D124: Planibel Clearvision | E124: Monolithic 10 mm | F124: 26.6 | G124: 0.81 | H124: 0 | I124: 0 | J124: 0.36 | K124: 0 | L124: 0 | M124: 0 | N124: 0 | O124: 0 | P124: 0 | Q124: 0.078 | R124: 0 | S124: 0.392 | T124: 0 | U124: 20240940452-FC | V124: 2029-12-31
C125: AGC | D125: Planibel Clearvision | E125: Monolithic 12 mm | F125: 31.9 | G125: 0.9 | H125: 0 | I125: 0 | J125: 0.411 | K125: 0 | L125: 0 | M125: 0 | N125: 0 | O125: 0 | P125: 0 | Q125: 0.089 | R125: 0 | S125: 0.0466 | T125: 0 | U125: 20240940452-FC | V125: 2029-12-31
C126: AGC | D126: Planibel Clearvision | E126: Monolithic offline coated 3 mm | F126: 9.9 | G126: 0.247 | H126: 0 | I126: 0 | J126: 0.116 | K126: 0 | L126: 0 | M126: 0 | N126: 0 | O126: 0 | P126: 0 | Q126: 0.0252 | R126: 0 | S126: 0.123 | T126: 0 | U126: 20240940460-FC | V126: 2029-12-31
C127: AGC | D127: Planibel Clearvision | E127: Monolithic offline coated 4 mm | F127: 12.7 | G127: 0.3293333333 | H127: 0 | I127: 0 | J127: 0.1546666667 | K127: 0 | L127: 0 | M127: 0 | N127: 0 | O127: 0 | P127: 0 | Q127: 0.0336 | R127: 0 | S127: 0.164 | T127: 0 | U127: 20240940460-FC | V127: 2029-12-31
C128: AGC | D128: Planibel Clearvision | E128: Monolithic offline coated 5 mm | F128: 15.5 | G128: 0.4116666667 | H128: 0 | I128: 0 | J128: 0.1933333333 | K128: 0 | L128: 0 | M128: 0 | N128: 0 | O128: 0 | P128: 0 | Q128: 0.042 | R128: 0 | S128: 0.205 | T128: 0 | U128: 20240940460-FC | V128: 2029-12-31
C129: AGC | D129: Planibel Clearvision | E129: Monolithic offline coated 6 mm | F129: 18.3 | G129: 0.494 | H129: 0 | I129: 0 | J129: 0.232 | K129: 0 | L129: 0 | M129: 0 | N129: 0 | O129: 0 | P129: 0 | Q129: 0.0504 | R129: 0 | S129: 0.246 | T129: 0 | U129: 20240940460-FC | V129: 2029-12-31
C130: AGC | D130: Planibel Clearvision | E130: Monolithic offline coated 8 mm | F130: 23.9 | G130: 0.6586666667 | H130: 0 | I130: 0 | J130: 0.3093333333 | K130: 0 | L130: 0 | M130: 0 | N130: 0 | O130: 0 | P130: 0 | Q130: 0.0672 | R130: 0 | S130: 0.328 | T130: 0 | U130: 20240940460-FC | V130: 2029-12-31
C131: AGC | D131: Planibel Clearvision | E131: Monolithic offline coated 10 mm | F131: 29.4 | G131: 0.741 | H131: 0 | I131: 0 | J131: 0.36 | K131: 0 | L131: 0 | M131: 0 | N131: 0 | O131: 0 | P131: 0 | Q131: 0.078 | R131: 0 | S131: 0.392 | T131: 0 | U131: 20240940460-FC | V131: 2029-12-31
C132: AGC | D132: Planibel Clearvision | E132: Monolithic offline coated 12 mm | F132: 35 | G132: 0.823 | H132: 0 | I132: 0 | J132: 0.411 | K132: 0 | L132: 0 | M132: 0 | N132: 0 | O132: 0 | P132: 0 | Q132: 0.089 | R132: 0 | S132: 0.0466 | T132: 0 | U132: 20240940460-FC | V132: 2029-12-31
C133: AGC | D133: Planibel Clearvision | E133: Monolithic toughened HST 3 mm | F133: 11.4 | G133: 0.647 | H133: 0 | I133: 0 | J133: 0.116 | K133: 0 | L133: 0 | M133: 0 | N133: 0 | O133: 0 | P133: 0 | Q133: 0.0252 | R133: 0 | S133: 0.123 | T133: 0 | U133: 20240940468-FC | V133: 2029-12-31
C134: AGC | D134: Planibel Clearvision | E134: Monolithic toughened HST 4 mm | F134: 15.1 | G134: 0.8626666667 | H134: 0 | I134: 0 | J134: 0.1546666667 | K134: 0 | L134: 0 | M134: 0 | N134: 0 | O134: 0 | P134: 0 | Q134: 0.0336 | R134: 0 | S134: 0.164 | T134: 0 | U134: 20240940468-FC | V134: 2029-12-31
C135: AGC | D135: Planibel Clearvision | E135: Monolithic toughened HST 5 mm | F135: 18.8 | G135: 1.078333333 | H135: 0 | I135: 0 | J135: 0.1933333333 | K135: 0 | L135: 0 | M135: 0 | N135: 0 | O135: 0 | P135: 0 | Q135: 0.042 | R135: 0 | S135: 0.205 | T135: 0 | U135: 20240940468-FC | V135: 2029-12-31
C136: AGC | D136: Planibel Clearvision | E136: Monolithic toughened HST 6 mm | F136: 22.5 | G136: 1.294 | H136: 0 | I136: 0 | J136: 0.232 | K136: 0 | L136: 0 | M136: 0 | N136: 0 | O136: 0 | P136: 0 | Q136: 0.0504 | R136: 0 | S136: 0.246 | T136: 0 | U136: 20240940468-FC | V136: 2029-12-31
C137: AGC | D137: Planibel Clearvision | E137: Monolithic toughened HST 8 mm | F137: 29.9 | G137: 1.725333333 | H137: 0 | I137: 0 | J137: 0.3093333333 | K137: 0 | L137: 0 | M137: 0 | N137: 0 | O137: 0 | P137: 0 | Q137: 0.0672 | R137: 0 | S137: 0.328 | T137: 0 | U137: 20240940468-FC | V137: 2029-12-31
C138: AGC | D138: Planibel Clearvision | E138: Monolithic toughened HST 10 mm | F138: 37.3 | G138: 1.935 | H138: 0 | I138: 0 | J138: 0.3093333333 | K138: 0 | L138: 0 | M138: 0 | N138: 0 | O138: 0 | P138: 0 | Q138: 0.0504 | R138: 0 | S138: 0.246 | T138: 0 | U138: 20240940468-FC | V138: 2029-12-31
C139: AGC | D139: Planibel Clearvision | E139: Monolithic toughened HST 12 mm | F139: 44.7 | G139: 2.109 | H139: 0 | I139: 0 | J139: 0.36 | K139: 0 | L139: 0 | M139: 0 | N139: 0 | O139: 0 | P139: 0 | Q139: 0.0672 | R139: 0 | S139: 0.328 | T139: 0 | U139: 20240940468-FC | V139: 2029-12-31
C140: AGC | D140: Planibel Clearvision | E140: Monolithic toughened HST offline coated 3 mm | F140: 13.1 | G140: 0.657 | H140: 0 | I140: 0 | J140: 0.116 | K140: 0 | L140: 0 | M140: 0 | N140: 0 | O140: 0 | P140: 0 | Q140: 0.0252 | R140: 0 | S140: 0.123 | T140: 0 | U140: 20240940460-FC | V140: 2029-12-31
C141: AGC | D141: Planibel Clearvision | E141: Monolithic toughened HST offline coated 4 mm | F141: 16.9 | G141: 0.876 | H141: 0 | I141: 0 | J141: 0.1546666667 | K141: 0 | L141: 0 | M141: 0 | N141: 0 | O141: 0 | P141: 0 | Q141: 0.0336 | R141: 0 | S141: 0.164 | T141: 0 | U141: 20240940460-FC | V141: 2029-12-31
C142: AGC | D142: Planibel Clearvision | E142: Monolithic toughened HST offline coated 5 mm | F142: 20.8 | G142: 1.095 | H142: 0 | I142: 0 | J142: 0.1933333333 | K142: 0 | L142: 0 | M142: 0 | N142: 0 | O142: 0 | P142: 0 | Q142: 0.042 | R142: 0 | S142: 0.205 | T142: 0 | U142: 20240940460-FC | V142: 2029-12-31
C143: AGC | D143: Planibel Clearvision | E143: Monolithic toughened HST offline coated 6 mm | F143: 24.6 | G143: 1.314 | H143: 0 | I143: 0 | J143: 0.232 | K143: 0 | L143: 0 | M143: 0 | N143: 0 | O143: 0 | P143: 0 | Q143: 0.0504 | R143: 0 | S143: 0.246 | T143: 0 | U143: 20240940460-FC | V143: 2029-12-31
C144: AGC | D144: Planibel Clearvision | E144: Monolithic toughened HST offline coated 8 mm | F144: 32.3 | G144: 1.752 | H144: 0 | I144: 0 | J144: 0.3093333333 | K144: 0 | L144: 0 | M144: 0 | N144: 0 | O144: 0 | P144: 0 | Q144: 0.0672 | R144: 0 | S144: 0.328 | T144: 0 | U144: 20240940460-FC | V144: 2029-12-31
C145: AGC | D145: Planibel Clearvision | E145: Monolithic toughened HST offline coated 10 mm | F145: 40 | G145: 1.935 | H145: 0 | I145: 0 | J145: 0.3093333333 | K145: 0 | L145: 0 | M145: 0 | N145: 0 | O145: 0 | P145: 0 | Q145: 0.0504 | R145: 0 | S145: 0.246 | T145: 0 | U145: 20240940460-FC | V145: 2029-12-31
C146: AGC | D146: Planibel Clearvision | E146: Monolithic toughened HST offline coated 12 mm | F146: 47.7 | G146: 2.109 | H146: 0 | I146: 0 | J146: 0.36 | K146: 0 | L146: 0 | M146: 0 | N146: 0 | O146: 0 | P146: 0 | Q146: 0.0672 | R146: 0 | S146: 0.328 | T146: 0 | U146: 20240940460-FC | V146: 2029-12-31
C147: AGC | D147: Stratobel Clearvision | E147: Laminated 6.4 (33.1) | F147: 18.8 | G147: 0.564 | H147: 0 | I147: 0 | J147: 0.116 | K147: 0 | L147: 0 | M147: 0 | N147: 0 | O147: 0 | P147: 0 | Q147: 0.0517 | R147: 0 | S147: 0.251 | T147: 0 | U147: 20240940458-FC | V147: 2029-12-31
C148: AGC | D148: Stratobel Clearvison | E148: Laminated 6.8 (33.2) | F148: 20.9 | G148: 0.59925 | H148: 0 | I148: 0 | J148: 0.12325 | K148: 0 | L148: 0 | M148: 0 | N148: 0 | O148: 0 | P148: 0 | Q148: 0.05493125 | R148: 0 | S148: 0.2666875 | T148: 0 | U148: 20240940458-FC | V148: 2029-12-31
C149: AGC | D149: Stratobel Clearvison | E149: Laminated 8.4 (44.1) | F149: 24.4 | G149: 0.74025 | H149: 0 | I149: 0 | J149: 0.15225 | K149: 0 | L149: 0 | M149: 0 | N149: 0 | O149: 0 | P149: 0 | Q149: 0.06785625 | R149: 0 | S149: 0.3294375 | T149: 0 | U149: 20240940458-FC | V149: 2029-12-31
C150: AGC | D150: Stratobel Clearvison | E150: Laminated 8.8 (44.2) | F150: 26.5 | G150: 0.7755 | H150: 0 | I150: 0 | J150: 0.1595 | K150: 0 | L150: 0 | M150: 0 | N150: 0 | O150: 0 | P150: 0 | Q150: 0.0710875 | R150: 0 | S150: 0.345125 | T150: 0 | U150: 20240940458-FC | V150: 2029-12-31
C151: AGC | D151: Stratobel Clearvison | E151: Laminated 10.4 (55.1) | F151: 29.9 | G151: 0.9165 | H151: 0 | I151: 0 | J151: 0.1885 | K151: 0 | L151: 0 | M151: 0 | N151: 0 | O151: 0 | P151: 0 | Q151: 0.0840125 | R151: 0 | S151: 0.407875 | T151: 0 | U151: 20240940458-FC | V151: 2029-12-31
C152: AGC | D152: Stratobel Clearvison | E152: Laminated 10.8 (55.2) | F152: 32 | G152: 0.95175 | H152: 0 | I152: 0 | J152: 0.19575 | K152: 0 | L152: 0 | M152: 0 | N152: 0 | O152: 0 | P152: 0 | Q152: 0.08724375 | R152: 0 | S152: 0.4235625 | T152: 0 | U152: 20240940458-FC | V152: 2029-12-31
C153: AGC | D153: Stratobel Clearvison | E153: Laminated 11.5 (55.4) | F153: 36.3 | G153: 1.0134375 | H153: 0 | I153: 0 | J153: 0.2084375 | K153: 0 | L153: 0 | M153: 0 | N153: 0 | O153: 0 | P153: 0 | Q153: 0.0928984375 | R153: 0 | S153: 0.451015625 | T153: 0 | U153: 20240940458-FC | V153: 2029-12-31
C154: AGC | D154: Stratobel Clearvison | E154: Laminated 12.4 (66.1) | F154: 35.5 | G154: 1.09275 | H154: 0 | I154: 0 | J154: 0.22475 | K154: 0 | L154: 0 | M154: 0 | N154: 0 | O154: 0 | P154: 0 | Q154: 0.10016875 | R154: 0 | S154: 0.4863125 | T154: 0 | U154: 20240940458-FC | V154: 2029-12-31
C155: AGC | D155: Stratobel Clearvison | E155: Laminated 12.8 (66.2) | F155: 37.6 | G155: 1.128 | H155: 0 | I155: 0 | J155: 0.232 | K155: 0 | L155: 0 | M155: 0 | N155: 0 | O155: 0 | P155: 0 | Q155: 0.1034 | R155: 0 | S155: 0.502 | T155: 0 | U155: 20240940458-FC | V155: 2029-12-31
C156: AGC | D156: Stratobel Clearvison | E156: Laminated 13.5 (66.4) | F156: 41.8 | G156: 1.1896875 | H156: 0 | I156: 0 | J156: 0.2446875 | K156: 0 | L156: 0 | M156: 0 | N156: 0 | O156: 0 | P156: 0 | Q156: 0.1090546875 | R156: 0 | S156: 0.529453125 | T156: 0 | U156: 20240940458-FC | V156: 2029-12-31
C157: AGC | D157: Stratobel Clearvison | E157: Laminated 16.4 (88.1) | F157: 46.6 | G157: 1.44525 | H157: 0 | I157: 0 | J157: 0.29725 | K157: 0 | L157: 0 | M157: 0 | N157: 0 | O157: 0 | P157: 0 | Q157: 0.13248125 | R157: 0 | S157: 0.6431875 | T157: 0 | U157: 20240940458-FC | V157: 2029-12-31
C158: AGC | D158: Stratobel Clearvison | E158: Laminated 16.8 (88.2) | F158: 48.7 | G158: 1.4805 | H158: 0 | I158: 0 | J158: 0.3045 | K158: 0 | L158: 0 | M158: 0 | N158: 0 | O158: 0 | P158: 0 | Q158: 0.1357125 | R158: 0 | S158: 0.658875 | T158: 0 | U158: 20240940458-FC | V158: 2029-12-31
C159: AGC | D159: Stratobel Clearvison | E159: Laminated 17.5 (88.4) | F159: 52.9 | G159: 1.5421875 | H159: 0 | I159: 0 | J159: 0.3171875 | K159: 0 | L159: 0 | M159: 0 | N159: 0 | O159: 0 | P159: 0 | Q159: 0.1413671875 | R159: 0 | S159: 0.686328125 | T159: 0 | U159: 20240940458-FC | V159: 2029-12-31
C160: AGC | D160: Stratobel Clearvison | E160: Laminated offline coated 6.4 (33.1) | F160: 21.2 | G160: 0.564 | H160: 0 | I160: 0 | J160: 0.116 | K160: 0 | L160: 0 | M160: 0 | N160: 0 | O160: 0 | P160: 0 | Q160: 0.0517 | R160: 0 | S160: 0.251 | T160: 0 | U160: 20240940458-FC | V160: 2029-12-31
C161: AGC | D161: Stratobel Clearvison | E161: Laminated offline coated 6.8 (33.2) | F161: 23.4 | G161: 0.59925 | H161: 0 | I161: 0 | J161: 0.12325 | K161: 0 | L161: 0 | M161: 0 | N161: 0 | O161: 0 | P161: 0 | Q161: 0.05493125 | R161: 0 | S161: 0.2666875 | T161: 0 | U161: 20240940458-FC | V161: 2029-12-31
C162: AGC | D162: Stratobel Clearvison | E162: Laminated offline coated 8.4 (44.1) | F162: 27 | G162: 0.74025 | H162: 0 | I162: 0 | J162: 0.15225 | K162: 0 | L162: 0 | M162: 0 | N162: 0 | O162: 0 | P162: 0 | Q162: 0.06785625 | R162: 0 | S162: 0.3294375 | T162: 0 | U162: 20240940458-FC | V162: 2029-12-31
C163: AGC | D163: Stratobel Clearvison | E163: Laminated offline coated 8.8 (44.2) | F163: 29.3 | G163: 0.7755 | H163: 0 | I163: 0 | J163: 0.1595 | K163: 0 | L163: 0 | M163: 0 | N163: 0 | O163: 0 | P163: 0 | Q163: 0.0710875 | R163: 0 | S163: 0.345125 | T163: 0 | U163: 20240940458-FC | V163: 2029-12-31
C164: AGC | D164: Stratobel Clearvison | E164: Laminated offline coated 10.4 (55.1) | F164: 32.9 | G164: 0.9165 | H164: 0 | I164: 0 | J164: 0.1885 | K164: 0 | L164: 0 | M164: 0 | N164: 0 | O164: 0 | P164: 0 | Q164: 0.0840125 | R164: 0 | S164: 0.407875 | T164: 0 | U164: 20240940458-FC | V164: 2029-12-31
C165: AGC | D165: Stratobel Clearvison | E165: Laminated offline coated 10.8 (55.2) | F165: 35.1 | G165: 0.95175 | H165: 0 | I165: 0 | J165: 0.19575 | K165: 0 | L165: 0 | M165: 0 | N165: 0 | O165: 0 | P165: 0 | Q165: 0.08724375 | R165: 0 | S165: 0.4235625 | T165: 0 | U165: 20240940458-FC | V165: 2029-12-31
C166: AGC | D166: Stratobel Clearvison | E166: Laminated offline coated 11.5 (55.4) | F166: 39.5 | G166: 1.0134375 | H166: 0 | I166: 0 | J166: 0.2084375 | K166: 0 | L166: 0 | M166: 0 | N166: 0 | O166: 0 | P166: 0 | Q166: 0.0928984375 | R166: 0 | S166: 0.451015625 | T166: 0 | U166: 20240940458-FC | V166: 2029-12-31
C167: AGC | D167: Stratobel Clearvison | E167: Laminated offline coated 12.4 (66.1) | F167: 38.7 | G167: 1.09275 | H167: 0 | I167: 0 | J167: 0.22475 | K167: 0 | L167: 0 | M167: 0 | N167: 0 | O167: 0 | P167: 0 | Q167: 0.10016875 | R167: 0 | S167: 0.4863125 | T167: 0 | U167: 20240940458-FC | V167: 2029-12-31
C168: AGC | D168: Stratobel Clearvison | E168: Laminated offline coated 12.8 (66.2) | F168: 40.9 | G168: 1.128 | H168: 0 | I168: 0 | J168: 0.232 | K168: 0 | L168: 0 | M168: 0 | N168: 0 | O168: 0 | P168: 0 | Q168: 0.1034 | R168: 0 | S168: 0.502 | T168: 0 | U168: 20240940458-FC | V168: 2029-12-31
C169: AGC | D169: Stratobel Clearvison | E169: Laminated offline coated 13.5 (66.4) | F169: 45.4 | G169: 1.1896875 | H169: 0 | I169: 0 | J169: 0.2446875 | K169: 0 | L169: 0 | M169: 0 | N169: 0 | O169: 0 | P169: 0 | Q169: 0.1090546875 | R169: 0 | S169: 0.529453125 | T169: 0 | U169: 20240940458-FC | V169: 2029-12-31
C170: AGC | D170: Stratobel Clearvison | E170: Laminated offline coated 16.4 (88.1) | F170: 50.4 | G170: 1.44525 | H170: 0 | I170: 0 | J170: 0.29725 | K170: 0 | L170: 0 | M170: 0 | N170: 0 | O170: 0 | P170: 0 | Q170: 0.13248125 | R170: 0 | S170: 0.6431875 | T170: 0 | U170: 20240940458-FC | V170: 2029-12-31
C171: AGC | D171: Stratobel Clearvison | E171: Laminated offline coated 16.8 (88.2) | F171: 52.6 | G171: 1.4805 | H171: 0 | I171: 0 | J171: 0.3045 | K171: 0 | L171: 0 | M171: 0 | N171: 0 | O171: 0 | P171: 0 | Q171: 0.1357125 | R171: 0 | S171: 0.658875 | T171: 0 | U171: 20240940458-FC | V171: 2029-12-31
C172: AGC | D172: Stratobel Clearvison | E172: Laminated offline coated 17.5 (88.4) | F172: 57 | G172: 1.5421875 | H172: 0 | I172: 0 | J172: 0.3171875 | K172: 0 | L172: 0 | M172: 0 | N172: 0 | O172: 0 | P172: 0 | Q172: 0.1413671875 | R172: 0 | S172: 0.686328125 | T172: 0 | U172: 20240940458-FC | V172: 2029-12-31
C173: AGC | D173: Stratobel Clearvison | E173: Laminated toughened 9.5 (44.4) | F173: 39.6 | G173: 1.72 | H173: 0 | I173: 0 | J173: 0.116 | K173: 0 | L173: 0 | M173: 0 | N173: 0 | O173: 0 | P173: 0 | Q173: 0.0725 | R173: 0 | S173: 0.376 | T173: 0 | U173: 20240940458-FC | V173: 2029-12-31
C174: AGC | D174: Stratobel Clearvison | E174: Laminated toughened 11.5 (55.4) | F174: 47.3 | G174: 2.082105263 | H174: 0 | I174: 0 | J174: 0.1404210526 | K174: 0 | L174: 0 | M174: 0 | N174: 0 | O174: 0 | P174: 0 | Q174: 0.08776315789 | R174: 0 | S174: 0.4551578947 | T174: 0 | U174: 20240940458-FC | V174: 2029-12-31
C175: AGC | D175: Stratobel Clearvison | E175: Laminated toughened 13.5 (66.4) | F175: 54.9 | G175: 2.444210526 | H175: 0 | I175: 0 | J175: 0.1648421053 | K175: 0 | L175: 0 | M175: 0 | N175: 0 | O175: 0 | P175: 0 | Q175: 0.1030263158 | R175: 0 | S175: 0.5343157895 | T175: 0 | U175: 20240940458-FC | V175: 2029-12-31
C176: AGC | D176: Stratobel Clearvison | E176: Laminated toughened 17.5 (88.4) | F176: 70.3 | G176: 3.168421053 | H176: 0 | I176: 0 | J176: 0.2136842105 | K176: 0 | L176: 0 | M176: 0 | N176: 0 | O176: 0 | P176: 0 | Q176: 0.1335526316 | R176: 0 | S176: 0.6926315789 | T176: 0 | U176: 20240940458-FC | V176: 2029-12-31
C177: AGC | D177: Stratobel Clearvison | E177: Laminated toughened offline coated 9.5 (44.4) | F177: 42.6 | G177: 1.72 | H177: 0 | I177: 0 | J177: 0.116 | K177: 0 | L177: 0 | M177: 0 | N177: 0 | O177: 0 | P177: 0 | Q177: 0.0725 | R177: 0 | S177: 0.376 | T177: 0 | U177: 20240940458-FC | V177: 2029-12-31
C178: AGC | D178: Stratobel Clearvison | E178: Laminated toughened offline coated 11.5 (55.4) | F178: 50.6 | G178: 2.082105263 | H178: 0 | I178: 0 | J178: 0.1404210526 | K178: 0 | L178: 0 | M178: 0 | N178: 0 | O178: 0 | P178: 0 | Q178: 0.08776315789 | R178: 0 | S178: 0.4551578947 | T178: 0 | U178: 20240940458-FC | V178: 2029-12-31
C179: AGC | D179: Stratobel Clearvison | E179: Laminated toughened offline coated 13.5 (66.4) | F179: 58.5 | G179: 2.444210526 | H179: 0 | I179: 0 | J179: 0.1648421053 | K179: 0 | L179: 0 | M179: 0 | N179: 0 | O179: 0 | P179: 0 | Q179: 0.1030263158 | R179: 0 | S179: 0.5343157895 | T179: 0 | U179: 20240940458-FC | V179: 2029-12-31
C180: AGC | D180: Stratobel Clearvison | E180: Laminated toughened offline coated 17.5 (88.4) | F180: 74.4 | G180: 3.168421053 | H180: 0 | I180: 0 | J180: 0.2136842105 | K180: 0 | L180: 0 | M180: 0 | N180: 0 | O180: 0 | P180: 0 | Q180: 0.1335526316 | R180: 0 | S180: 0.6926315789 | T180: 0 | U180: 20240940458-FC | V180: 2029-12-31
C182: Euroglass | D182: Eurofloat | E182: Monolithic 2 mm | F182: 8.45 | G182: 0 | H182: 0 | I182: 0 | J182: 0 | K182: 0 | L182: 0 | M182: 0 | N182: 0 | O182: 0 | P182: 0 | Q182: 0.051 | R182: 0 | S182: 0.054 | T182: 0 | U182: EPD-GLS-20250386-IBC1-DE | V182: 2030-07-21 | X182: 2
C183: Euroglass | D183: Eurofloat | E183: Monolithic 3 mm | F183: =($F$182/2)*X183 -> 12.675 | G183: 0 | H183: 0 | I183: 0 | J183: 0 | K183: 0 | L183: 0 | M183: 0 | N183: 0 | O183: 0 | P183: 0 | Q183: =($Q$182/2)*X182 -> 0.051 | R183: 0 | S183: =($S$182/2)*X183 -> 0.081 | T183: 0 | U183: EPD-GLS-20250386-IBC1-DE | V183: 2030-07-22 | X183: 3
C184: Euroglass | D184: Eurofloat | E184: Monolithic 4 mm | F184: =($F$182/2)*X184 -> 16.9 | G184: 0 | H184: 0 | I184: 0 | J184: 0 | K184: 0 | L184: 0 | M184: 0 | N184: 0 | O184: 0 | P184: 0 | Q184: =($Q$182/2)*X183 -> 0.0765 | R184: 0 | S184: =($S$182/2)*X184 -> 0.108 | T184: 0 | U184: EPD-GLS-20250386-IBC1-DE | V184: 2030-07-23 | X184: 4
C185: Euroglass | D185: Eurofloat | E185: Monolithic 5 mm | F185: 21.125 | G185: 0 | H185: 0 | I185: 0 | J185: 0 | K185: 0 | L185: 0 | M185: 0 | N185: 0 | O185: 0 | P185: 0 | Q185: 0.102 | R185: 0 | S185: 0.135 | T185: 0 | U185: EPD-GLS-20250386-IBC1-DE | V185: 2030-07-24 | X185: 5
C186: Euroglass | D186: Eurofloat | E186: Monolithic 6 mm | F186: 25.35 | G186: 0 | H186: 0 | I186: 0 | J186: 0 | K186: 0 | L186: 0 | M186: 0 | N186: 0 | O186: 0 | P186: 0 | Q186: 0.1275 | R186: 0 | S186: 0.162 | T186: 0 | U186: EPD-GLS-20250386-IBC1-DE | V186: 2030-07-25 | X186: 6
C187: Euroglass | D187: Eurofloat | E187: Monolithic 8 mm | F187: 33.8 | G187: 0 | H187: 0 | I187: 0 | J187: 0 | K187: 0 | L187: 0 | M187: 0 | N187: 0 | O187: 0 | P187: 0 | Q187: 0.153 | R187: 0 | S187: 0.216 | T187: 0 | U187: EPD-GLS-20250386-IBC1-DE | V187: 2030-07-26 | X187: 8
C188: Euroglass | D188: Eurofloat | E188: Monolithic 10 mm | F188: 42.25 | G188: 0 | H188: 0 | I188: 0 | J188: 0 | K188: 0 | L188: 0 | M188: 0 | N188: 0 | O188: 0 | P188: 0 | Q188: 0.204 | R188: 0 | S188: 0.27 | T188: 0 | U188: EPD-GLS-20250386-IBC1-DE | V188: 2030-07-27 | X188: 10
C189: Euroglass | D189: Eurofloat | E189: Monolithic 12 mm | F189: 50.7 | G189: 0 | H189: 0 | I189: 0 | J189: 0 | K189: 0 | L189: 0 | M189: 0 | N189: 0 | O189: 0 | P189: 0 | Q189: 0.255 | R189: 0 | S189: 0.324 | T189: 0 | U189: EPD-GLS-20250386-IBC1-DE | V189: 2030-07-28 | X189: 12
C190: Euroglass | D190: Eurofloat | E190: Monolithic 15 mm | F190: 63.375 | G190: 0 | H190: 0 | I190: 0 | J190: 0 | K190: 0 | L190: 0 | M190: 0 | N190: 0 | O190: 0 | P190: 0 | Q190: 0.306 | R190: 0 | S190: 0.405 | T190: 0 | U190: EPD-GLS-20250386-IBC1-DE | V190: 2030-07-29 | X190: 15
C191: Euroglass | D191: Eurolamex | E191: Laminated 6.4 (33.1) | F191: 16.7 | G191: 0 | H191: 0 | I191: 0 | J191: 0 | K191: 0 | L191: 0 | M191: 0 | N191: 0 | O191: 0 | P191: 0 | Q191: 0.0794 | R191: 0 | S191: 0.0927 | T191: 0 | U191: EPD-GLS-20230183-IBB3-EN | V191: 2029-02-04 | X191: 6.4
C192: Euroglass | D192: Eurolamex | E192: Laminated 6.8 (33.2) | F192: =($F$191/$X$191)*X192 -> 17.74375 | G192: 0 | H192: 0 | I192: 0 | J192: 0 | K192: 0 | L192: 0 | M192: 0 | N192: 0 | O192: 0 | P192: 0 | Q192: =($Q$191/$X$191)*X192 -> 0.0843625 | R192: 0 | S192: =($S$191/$X$191)*X192 -> 0.09849375 | T192: 0 | U192: EPD-GLS-20230183-IBB3-EN | V192: 2029-02-04 | X192: 6.8
C193: Euroglass | D193: Eurolamex | E193: Laminated 8.4 (44.1) | F193: =($F$191/$X$191)*X193 -> 21.91875 | G193: 0 | H193: 0 | I193: 0 | J193: 0 | K193: 0 | L193: 0 | M193: 0 | N193: 0 | O193: 0 | P193: 0 | Q193: =($Q$191/$X$191)*X193 -> 0.1042125 | R193: 0 | S193: =($S$191/$X$191)*X193 -> 0.12166875 | T193: 0 | U193: EPD-GLS-20230183-IBB3-EN | V193: 2029-02-04 | X193: 8.4
C194: Euroglass | D194: Eurolamex | E194: Laminated 8.8 (44.2) | F194: 22.9625 | G194: 0 | H194: 0 | I194: 0 | J194: 0 | K194: 0 | L194: 0 | M194: 0 | N194: 0 | O194: 0 | P194: 0 | Q194: 0.109175 | R194: 0 | S194: 0.1274625 | T194: 0 | U194: EPD-GLS-20230183-IBB3-EN | V194: 2029-02-04 | X194: 8.8
C195: Euroglass | D195: Eurolamex | E195: Laminated 10.4 (55.1) | F195: 27.1375 | G195: 0 | H195: 0 | I195: 0 | J195: 0 | K195: 0 | L195: 0 | M195: 0 | N195: 0 | O195: 0 | P195: 0 | Q195: 0.129025 | R195: 0 | S195: 0.1506375 | T195: 0 | U195: EPD-GLS-20230183-IBB3-EN | V195: 2029-02-04 | X195: 10.4
C196: Euroglass | D196: Eurolamex | E196: Laminated 10.8 (55.2) | F196: 28.18125 | G196: 0 | H196: 0 | I196: 0 | J196: 0 | K196: 0 | L196: 0 | M196: 0 | N196: 0 | O196: 0 | P196: 0 | Q196: 0.1339875 | R196: 0 | S196: 0.15643125 | T196: 0 | U196: EPD-GLS-20230183-IBB3-EN | V196: 2029-02-04 | X196: 10.8
C197: Euroglass | D197: Eurolamex | E197: Laminated 11.5 (55.4) | F197: 30.0078125 | G197: 0 | H197: 0 | I197: 0 | J197: 0 | K197: 0 | L197: 0 | M197: 0 | N197: 0 | O197: 0 | P197: 0 | Q197: 0.142671875 | R197: 0 | S197: 0.1665703125 | T197: 0 | U197: EPD-GLS-20230183-IBB3-EN | V197: 2029-02-04 | X197: 11.5
C198: Euroglass | D198: Eurolamex | E198: Laminated 12.4 (66.1) | F198: 32.35625 | G198: 0 | H198: 0 | I198: 0 | J198: 0 | K198: 0 | L198: 0 | M198: 0 | N198: 0 | O198: 0 | P198: 0 | Q198: 0.1538375 | R198: 0 | S198: 0.17960625 | T198: 0 | U198: EPD-GLS-20230183-IBB3-EN | V198: 2029-02-04 | X198: 12.4
C199: Euroglass | D199: Eurolamex | E199: Laminated 12.8 (66.2) | F199: 33.4 | G199: 0 | H199: 0 | I199: 0 | J199: 0 | K199: 0 | L199: 0 | M199: 0 | N199: 0 | O199: 0 | P199: 0 | Q199: 0.1588 | R199: 0 | S199: 0.1854 | T199: 0 | U199: EPD-GLS-20230183-IBB3-EN | V199: 2029-02-04 | X199: 12.8
C200: Euroglass | D200: Eurolamex | E200: Laminated 13.5 (66.4) | F200: 35.2265625 | G200: 0 | H200: 0 | I200: 0 | J200: 0 | K200: 0 | L200: 0 | M200: 0 | N200: 0 | O200: 0 | P200: 0 | Q200: 0.167484375 | R200: 0 | S200: 0.1955390625 | T200: 0 | U200: EPD-GLS-20230183-IBB3-EN | V200: 2029-02-04 | X200: 13.5
C201: Euroglass | D201: Eurolamex | E201: Laminated 16.4 (88.1) | F201: 42.79375 | G201: 0 | H201: 0 | I201: 0 | J201: 0 | K201: 0 | L201: 0 | M201: 0 | N201: 0 | O201: 0 | P201: 0 | Q201: 0.2034625 | R201: 0 | S201: 0.23754375 | T201: 0 | U201: EPD-GLS-20230183-IBB3-EN | V201: 2029-02-04 | X201: 16.4
C202: Euroglass | D202: Eurolamex | E202: Laminated 16.8 (88.2) | F202: 43.8375 | G202: 0 | H202: 0 | I202: 0 | J202: 0 | K202: 0 | L202: 0 | M202: 0 | N202: 0 | O202: 0 | P202: 0 | Q202: 0.208425 | R202: 0 | S202: 0.2433375 | T202: 0 | U202: EPD-GLS-20230183-IBB3-EN | V202: 2029-02-04 | X202: 16.8
... 417 more rows

Sheet Calculation Guardian (hidden)
C2: Thickness | D2: A1-A3 | E2: A4 | F2: A5 | G2: B1 | H2: B2 | I2: B3 | J2: B4 | K2: B5 | L2: B6 | M2: B7 | N2: C1 | O2: C2 | P2: C3 | Q2: C4 | R2: D | Y2: Coating impact | Z2: Laminating impact
A4: Nexa 6 monolithic | C4: 1 | D4: =W4*W5 -> 1.595 | E4: =W4*W6 -> 0.17225 | F4: 0 | G4: 0 | H4: =W4*W7 -> 0.3375 | I4: 0 | J4: 0 | K4: 0 | L4: 0 | M4: 0 | N4: 0 | O4: =W4*W8 -> 0.023725 | P4: 0 | Q4: =W4*W9 -> 0.10825 | R4: 0 | T4: Glass impact per 1 mm | W4: 0.25
C5: 2 | D5: =$D$4*C5 -> 3.19 | E5: =$E$4*C5 -> 0.3445 | F5: 0 | G5: 0 | H5: =$H$4*C5 -> 0.675 | I5: 0 | J5: 0 | K5: 0 | L5: 0 | M5: 0 | N5: 0 | O5: =$O$4*C5 -> 0.04745 | P5: 0 | Q5: =$Q$4*C5 -> 0.2165 | R5: 0 | T5: Scaling factor per 4 mm (A1-A3) | W5: 6.38
C6: 3 | D6: =$D$4*C6 -> 4.785 | E6: =$E$4*C6 -> 0.51675 | F6: 0 | G6: 0 | H6: =$H$4*C6 -> 1.0125 | I6: 0 | J6: 0 | K6: 0 | L6: 0 | M6: 0 | N6: 0 | O6: =$O$4*C6 -> 0.071175 | P6: 0 | Q6: =$Q$4*C6 -> 0.32475 | R6: 0 | T6: Scaling factor per 4 mm (A4) | W6: 0.689
C7: 4 | D7: 6.38 | E7: 0.689 | F7: 0 | G7: 0 | H7: 1.35 | I7: 0 | J7: 0 | K7: 0 | L7: 0 | M7: 0 | N7: 0 | O7: 0.0949 | P7: 0 | Q7: 0.433 | R7: 0 | T7: Scaling factor per 4 mm (B2) | W7: 1.35
C8: 5 | D8: 7.975 | E8: 0.86125 | F8: 0 | G8: 0 | H8: 1.6875 | I8: 0 | J8: 0 | K8: 0 | L8: 0 | M8: 0 | N8: 0 | O8: 0.118625 | P8: 0 | Q8: 0.54125 | R8: 0 | T8: Scaling factor per 4 mm (C2) | W8: 0.0949
C9: 6 | D9: 9.57 | E9: 1.0335 | F9: 0 | G9: 0 | H9: 2.025 | I9: 0 | J9: 0 | K9: 0 | L9: 0 | M9: 0 | N9: 0 | O9: 0.14235 | P9: 0 | Q9: 0.6495 | R9: 0 | T9: Scaling factor per 4 mm (C4) | W9: 0.433
C10: 8 | D10: 12.76 | E10: 1.378 | F10: 0 | G10: 0 | H10: 2.7 | I10: 0 | J10: 0 | K10: 0 | L10: 0 | M10: 0 | N10: 0 | O10: 0.1898 | P10: 0 | Q10: 0.866 | R10: 0
C11: 10 | D11: 15.95 | E11: 1.7225 | F11: 0 | G11: 0 | H11: 3.375 | I11: 0 | J11: 0 | K11: 0 | L11: 0 | M11: 0 | N11: 0 | O11: 0.23725 | P11: 0 | Q11: 1.0825 | R11: 0
C12: 12 | D12: 19.14 | E12: 2.067 | F12: 0 | G12: 0 | H12: 4.05 | I12: 0 | J12: 0 | K12: 0 | L12: 0 | M12: 0 | N12: 0 | O12: 0.2847 | P12: 0 | Q12: 1.299 | R12: 0
C13: 15 | D13: 23.925 | E13: 2.58375 | F13: 0 | G13: 0 | H13: 5.0625 | I13: 0 | J13: 0 | K13: 0 | L13: 0 | M13: 0 | N13: 0 | O13: 0.355875 | P13: 0 | Q13: 1.62375 | R13: 0
A15: Nexa 6 coated monolithic | C15: 1 | D15: =W15*W16 -> 1.8125 | E15: =W18*W15 -> 0.17225 | F15: 0 | G15: 0 | H15: =W15*W19 -> 0.3375 | I15: 0 | J15: 0 | K15: 0 | L15: 0 | M15: 0 | N15: 0 | O15: =W15*W20 -> 0.023725 | P15: 0 | Q15: =W15*W21 -> 0.10825 | R15: 0 | T15: Glass impact per 1 mm | W15: 0.25
C16: 2 | D16: =$D$15*C16 -> 3.625 | E16: =$E$15*C16 -> 0.3445 | F16: 0 | G16: 0 | H16: =$H$15*C16 -> 0.675 | I16: 0 | J16: 0 | K16: 0 | L16: 0 | M16: 0 | N16: 0 | O16: =$O$15*C16 -> 0.04745 | P16: 0 | Q16: =$Q$15*C16 -> 0.2165 | R16: 0 | T16: Scaling factor per 4 mm (A1-A3) (flat+coating) | W16: =W17+Y16 -> 7.25 | Y16: 0.87
C17: 3 | D17: =$D$15*C17 -> 5.4375 | E17: 0.51675 | F17: 0 | G17: 0 | H17: =$H$15*C17 -> 1.0125 | I17: 0 | J17: 0 | K17: 0 | L17: 0 | M17: 0 | N17: 0 | O17: =$O$15*C17 -> 0.071175 | P17: 0 | Q17: =$Q$15*C17 -> 0.32475 | R17: 0 | T17: Scaling factor per 4 mm (A1-A3) | W17: 6.38
C18: 4 | D18: 7.25 | E18: 0.689 | F18: 0 | G18: 0 | H18: 1.35 | I18: 0 | J18: 0 | K18: 0 | L18: 0 | M18: 0 | N18: 0 | O18: 0.0949 | P18: 0 | Q18: 0.433 | R18: 0 | T18: Scaling factor per 4 mm (A4) | W18: 0.689
C19: 5 | D19: 9.0625 | E19: 0.86125 | F19: 0 | G19: 0 | H19: 1.6875 | I19: 0 | J19: 0 | K19: 0 | L19: 0 | M19: 0 | N19: 0 | O19: 0.118625 | P19: 0 | Q19: 0.54125 | R19: 0 | T19: Scaling factor per 4 mm (B2) | W19: 1.35
C20: 6 | D20: 10.875 | E20: 1.0335 | F20: 0 | G20: 0 | H20: 2.025 | I20: 0 | J20: 0 | K20: 0 | L20: 0 | M20: 0 | N20: 0 | O20: 0.14235 | P20: 0 | Q20: 0.6495 | R20: 0 | T20: Scaling factor per 4 mm (C2) | W20: 0.0949
C21: 8 | D21: 14.5 | E21: 1.378 | F21: 0 | G21: 0 | H21: 2.7 | I21: 0 | J21: 0 | K21: 0 | L21: 0 | M21: 0 | N21: 0 | O21: 0.1898 | P21: 0 | Q21: 0.866 | R21: 0 | T21: Scaling factor per 4 mm (C4) | W21: 0.433
C22: 10 | D22: 18.125 | E22: 1.7225 | F22: 0 | G22: 0 | H22: 3.375 | I22: 0 | J22: 0 | K22: 0 | L22: 0 | M22: 0 | N22: 0 | O22: 0.23725 | P22: 0 | Q22: 1.0825 | R22: 0
C23: 12 | D23: 21.75 | E23: 2.067 | F23: 0 | G23: 0 | H23: 4.05 | I23: 0 | J23: 0 | K23: 0 | L23: 0 | M23: 0 | N23: 0 | O23: 0.2847 | P23: 0 | Q23: 1.299 | R23: 0
C24: 15 | D24: 27.1875 | E24: 2.58375 | F24: 0 | G24: 0 | H24: 5.0625 | I24: 0 | J24: 0 | K24: 0 | L24: 0 | M24: 0 | N24: 0 | O24: 0.355875 | P24: 0 | Q24: 1.62375 | R24: 0
A26: Nexa 6 laminated | C26: 1 | D26: =W27*W28 -> 0.8175 | E26: =W27*W36 -> 0.17875 | F26: 0 | G26: 0 | H26: =W27*W37 -> 0.35125 | I26: 0 | J26: 0 | K26: 0 | L26: 0 | M26: 0 | N26: 0 | O26: =W27*W38 -> 0.024625 | P26: 0 | Q26: =W27*W39 -> 0.112625 | R26: 0 | T26: Glass impact per 1 mm | W26: 0.25
B27: 6.4 (33.1) | C27: 6 | D27: =($D$26*C27)+($W$32*W29)+$Z$27 -> 7.469 | E27: =$E$26*C27 -> 1.0725 | F27: 0 | G27: 0 | H27: =$H$26*C27 -> 2.1075 | I27: 0 | J27: 0 | K27: 0 | L27: 0 | M27: 0 | N27: 0 | O27: =$O$26*C27 -> 0.14775 | P27: 0 | Q27: =$Q$26*C27 -> 0.67575 | R27: 0 | W27: 0.125 | Z27: 0.764
B28: 6.8 (33.2) | C28: 6 | D28: =($D$26*C28)+($W$32*W30)+$Z$27 -> 9.269 | E28: =$E$26*C28 -> 1.0725 | F28: 0 | G28: 0 | H28: =$H$26*C28 -> 2.1075 | I28: 0 | J28: 0 | K28: 0 | L28: 0 | M28: 0 | N28: 0 | O28: =$O$26*C28 -> 0.14775 | P28: 0 | Q28: =$Q$26*C28 -> 0.67575 | R28: 0 | T28: Scaling factor per 4 mm (A1-A3) | W28: 6.54
B29: 8.4 (44.1) | C29: 8 | D29: =($D$26*C29)+($W$32*W29)+$Z$27 -> 9.104 | E29: 1.43 | F29: 0 | G29: 0 | H29: 2.81 | I29: 0 | J29: 0 | K29: 0 | L29: 0 | M29: 0 | N29: 0 | O29: 0.197 | P29: 0 | Q29: 0.901 | R29: 0 | T29: Scaling factor - Interlayer 0.38 (1) | W29: 1
B30: 8.8 (44.2) | C30: 8 | D30: =($D$26*C30)+($W$32*W30)+$Z$27 -> 10.904 | E30: 1.43 | F30: 0 | G30: 0 | H30: 2.81 | I30: 0 | J30: 0 | K30: 0 | L30: 0 | M30: 0 | N30: 0 | O30: 0.197 | P30: 0 | Q30: 0.901 | R30: 0 | T30: Scaling factor - Interlayer 0.76 (2) | W30: 2
B31: 10.4 (55.1) | C31: 10 | D31: =($D$26*C31)+($W$32*W29)+$Z$27 -> 10.739 | E31: 1.7875 | F31: 0 | G31: 0 | H31: 3.5125 | I31: 0 | J31: 0 | K31: 0 | L31: 0 | M31: 0 | N31: 0 | O31: 0.24625 | P31: 0 | Q31: 1.12625 | R31: 0 | T31: Scaling factor - Interlayer 1.52 (4) | W31: 4
B32: 10.8 (55.2) | C32: 10 | D32: =($D$26*C32)+($W$32*W30)+$Z$27 -> 12.539 | E32: 1.7875 | F32: 0 | G32: 0 | H32: 3.5125 | I32: 0 | J32: 0 | K32: 0 | L32: 0 | M32: 0 | N32: 0 | O32: 0.24625 | P32: 0 | Q32: 1.12625 | R32: 0 | T32: Interlayer factor | W32: 1.8
B33: 11.5 (55.4) | C33: 10 | D33: =($D$26*C33)+($W$32*W31)+$Z$27 -> 16.139 | E33: 1.7875 | F33: 0 | G33: 0 | H33: 3.5125 | I33: 0 | J33: 0 | K33: 0 | L33: 0 | M33: 0 | N33: 0 | O33: 0.24625 | P33: 0 | Q33: 1.12625 | R33: 0
B34: 12.4 (66.1) | C34: 12 | D34: =($D$26*C34)+($W$32*W29)+$Z$27 -> 12.374 | E34: 2.145 | F34: 0 | G34: 0 | H34: 4.215 | I34: 0 | J34: 0 | K34: 0 | L34: 0 | M34: 0 | N34: 0 | O34: 0.2955 | P34: 0 | Q34: 1.3515 | R34: 0
B35: 12.8 (66.2) | C35: 12 | D35: =($D$26*C35)+($W$32*W30)+$Z$27 -> 14.174 | E35: 2.145 | F35: 0 | G35: 0 | H35: 4.215 | I35: 0 | J35: 0 | K35: 0 | L35: 0 | M35: 0 | N35: 0 | O35: 0.2955 | P35: 0 | Q35: 1.3515 | R35: 0
B36: 13.5 (66.4) | C36: 12 | D36: =($D$26*C36)+($W$32*W31)+$Z$27 -> 17.774 | E36: 2.145 | F36: 0 | G36: 0 | H36: 4.215 | I36: 0 | J36: 0 | K36: 0 | L36: 0 | M36: 0 | N36: 0 | O36: 0.2955 | P36: 0 | Q36: 1.3515 | R36: 0 | T36: Scaling factor per 44.2 mm (A4) | W36: 1.43
B37: 16.4 (88.1) | C37: 16 | D37: =($D$26*C37)+($W$32*W29)+$Z$27 -> 15.644 | E37: 2.86 | F37: 0 | G37: 0 | H37: 5.62 | I37: 0 | J37: 0 | K37: 0 | L37: 0 | M37: 0 | N37: 0 | O37: 0.394 | P37: 0 | Q37: 1.802 | R37: 0 | T37: Scaling factor per 44.2 mm (B2) | W37: 2.81
B38: 16.8 (88.2) | C38: 16 | D38: =($D$26*C38)+($W$32*W30)+$Z$27 -> 17.444 | E38: 2.86 | F38: 0 | G38: 0 | H38: 5.62 | I38: 0 | J38: 0 | K38: 0 | L38: 0 | M38: 0 | N38: 0 | O38: 0.394 | P38: 0 | Q38: 1.802 | R38: 0 | T38: Scaling factor per 44.2 mm (C2) | W38: 0.197
B39: 17.5 (88.4) | C39: 16 | D39: =($D$26*C39)+($W$32*W31)+$Z$27 -> 21.044 | E39: 2.86 | F39: 0 | G39: 0 | H39: 5.62 | I39: 0 | J39: 0 | K39: 0 | L39: 0 | M39: 0 | N39: 0 | O39: 0.394 | P39: 0 | Q39: 1.802 | R39: 0 | T39: Scaling factor per 44.2 mm (C4) | W39: 0.901
A41: Nexa 9 monolithic | C41: 1 | D41: =W41*W42 -> 2.145 | E41: =W41*W43 -> 0.17225 | F41: 0 | G41: 0 | H41: =W41*W44 -> 0.3375 | I41: 0 | J41: 0 | K41: 0 | L41: 0 | M41: 0 | N41: 0 | O41: =W41*W45 -> 0.023725 | P41: 0 | Q41: =W41*W46 -> 0.10825 | R41: 0 | T41: Glass impact per 1 mm | W41: 0.25
C42: 2 | D42: =$D$41*C42 -> 4.29 | E42: =$E$41*C42 -> 0.3445 | F42: 0 | G42: 0 | H42: =$H$41*C42 -> 0.675 | I42: 0 | J42: 0 | K42: 0 | L42: 0 | M42: 0 | N42: 0 | O42: =$O$41*C42 -> 0.04745 | P42: 0 | Q42: =$Q$41*C42 -> 0.2165 | R42: 0 | T42: Scaling factor per 4 mm (A1-A3) | W42: 8.58
C43: 3 | D43: =$D$41*C43 -> 6.435 | E43: =$E$41*C43 -> 0.51675 | F43: 0 | G43: 0 | H43: =$H$41*C43 -> 1.0125 | I43: 0 | J43: 0 | K43: 0 | L43: 0 | M43: 0 | N43: 0 | O43: =$O$41*C43 -> 0.071175 | P43: 0 | Q43: =$Q$41*C43 -> 0.32475 | R43: 0 | T43: Scaling factor per 4 mm (A4) | W43: 0.689
C44: 4 | D44: 8.58 | E44: 0.689 | F44: 0 | G44: 0 | H44: 1.35 | I44: 0 | J44: 0 | K44: 0 | L44: 0 | M44: 0 | N44: 0 | O44: 0.0949 | P44: 0 | Q44: 0.433 | R44: 0 | T44: Scaling factor per 4 mm (B2) | W44: 1.35
C45: 5 | D45: 10.725 | E45: 0.86125 | F45: 0 | G45: 0 | H45: 1.6875 | I45: 0 | J45: 0 | K45: 0 | L45: 0 | M45: 0 | N45: 0 | O45: 0.118625 | P45: 0 | Q45: 0.54125 | R45: 0 | T45: Scaling factor per 4 mm (C2) | W45: 0.0949
C46: 6 | D46: 12.87 | E46: 1.0335 | F46: 0 | G46: 0 | H46: 2.025 | I46: 0 | J46: 0 | K46: 0 | L46: 0 | M46: 0 | N46: 0 | O46: 0.14235 | P46: 0 | Q46: 0.6495 | R46: 0 | T46: Scaling factor per 4 mm (C4) | W46: 0.433
C47: 8 | D47: 17.16 | E47: 1.378 | F47: 0 | G47: 0 | H47: 2.7 | I47: 0 | J47: 0 | K47: 0 | L47: 0 | M47: 0 | N47: 0 | O47: 0.1898 | P47: 0 | Q47: 0.866 | R47: 0
C48: 10 | D48: 21.45 | E48: 1.7225 | F48: 0 | G48: 0 | H48: 3.375 | I48: 0 | J48: 0 | K48: 0 | L48: 0 | M48: 0 | N48: 0 | O48: 0.23725 | P48: 0 | Q48: 1.0825 | R48: 0
C49: 12 | D49: 25.74 | E49: 2.067 | F49: 0 | G49: 0 | H49: 4.05 | I49: 0 | J49: 0 | K49: 0 | L49: 0 | M49: 0 | N49: 0 | O49: 0.2847 | P49: 0 | Q49: 1.299 | R49: 0
C50: 15 | D50: 32.175 | E50: 2.58375 | F50: 0 | G50: 0 | H50: 5.0625 | I50: 0 | J50: 0 | K50: 0 | L50: 0 | M50: 0 | N50: 0 | O50: 0.355875 | P50: 0 | Q50: 1.62375 | R50: 0
A52: Nexa 9 coated monolithic | C52: 1 | D52: =W52*W53 -> 2.5 | E52: =W55*W52 -> 0.17225 | F52: 0 | G52: 0 | H52: =W52*W56 -> 0.3375 | I52: 0 | J52: 0 | K52: 0 | L52: 0 | M52: 0 | N52: 0 | O52: =W52*W57 -> 0.023725 | P52: 0 | Q52: =W52*W58 -> 0.10825 | R52: 0 | T52: Glass impact per 1 mm | W52: 0.25
C53: 2 | D53: =$D$52*C53 -> 5 | E53: =$E$52*C53 -> 0.3445 | F53: 0 | G53: 0 | H53: =$H$52*C53 -> 0.675 | I53: 0 | J53: 0 | K53: 0 | L53: 0 | M53: 0 | N53: 0 | O53: =$O$52*C53 -> 0.04745 | P53: 0 | Q53: =$Q$52*C53 -> 0.2165 | R53: 0 | T53: Scaling factor per 4 mm (A1-A3) (flat+coating) | W53: =W54+Y53 -> 10 | Y53: 1.01
C54: 3 | D54: =$D$52*C54 -> 7.5 | E54: =$E$52*C54 -> 0.51675 | F54: 0 | G54: 0 | H54: =$H$52*C54 -> 1.0125 | I54: 0 | J54: 0 | K54: 0 | L54: 0 | M54: 0 | N54: 0 | O54: =$O$52*C54 -> 0.071175 | P54: 0 | Q54: =$Q$52*C54 -> 0.32475 | R54: 0 | T54: Scaling factor per 4 mm (A1-A3) | W54: 8.99
C55: 4 | D55: 10 | E55: 0.689 | F55: 0 | G55: 0 | H55: 1.35 | I55: 0 | J55: 0 | K55: 0 | L55: 0 | M55: 0 | N55: 0 | O55: 0.0949 | P55: 0 | Q55: 0.433 | R55: 0 | T55: Scaling factor per 4 mm (A4) | W55: 0.689
C56: 5 | D56: 12.5 | E56: 0.86125 | F56: 0 | G56: 0 | H56: 1.6875 | I56: 0 | J56: 0 | K56: 0 | L56: 0 | M56: 0 | N56: 0 | O56: 0.118625 | P56: 0 | Q56: 0.54125 | R56: 0 | T56: Scaling factor per 4 mm (B2) | W56: 1.35
C57: 6 | D57: 15 | E57: 1.0335 | F57: 0 | G57: 0 | H57: 2.025 | I57: 0 | J57: 0 | K57: 0 | L57: 0 | M57: 0 | N57: 0 | O57: 0.14235 | P57: 0 | Q57: 0.6495 | R57: 0 | T57: Scaling factor per 4 mm (C2) | W57: 0.0949
C58: 8 | D58: 20 | E58: 1.378 | F58: 0 | G58: 0 | H58: 2.7 | I58: 0 | J58: 0 | K58: 0 | L58: 0 | M58: 0 | N58: 0 | O58: 0.1898 | P58: 0 | Q58: 0.866 | R58: 0 | T58: Scaling factor per 4 mm (C4) | W58: 0.433
C59: 10 | D59: 25 | E59: 1.7225 | F59: 0 | G59: 0 | H59: 3.375 | I59: 0 | J59: 0 | K59: 0 | L59: 0 | M59: 0 | N59: 0 | O59: 0.23725 | P59: 0 | Q59: 1.0825 | R59: 0
C60: 12 | D60: 30 | E60: 2.067 | F60: 0 | G60: 0 | H60: 4.05 | I60: 0 | J60: 0 | K60: 0 | L60: 0 | M60: 0 | N60: 0 | O60: 0.2847 | P60: 0 | Q60: 1.299 | R60: 0
C61: 15 | D61: 37.5 | E61: 2.58375 | F61: 0 | G61: 0 | H61: 5.0625 | I61: 0 | J61: 0 | K61: 0 | L61: 0 | M61: 0 | N61: 0 | O61: 0.355875 | P61: 0 | Q61: 1.62375 | R61: 0
A63: Nexa 9 laminated | C63: 1 | D63: =W63*W65 -> 2.1975 | E63: =W64*W73 -> 0.17875 | F63: 0 | G63: 0 | H63: =W64*W74 -> 0.35125 | I63: 0 | J63: 0 | K63: 0 | L63: 0 | M63: 0 | N63: 0 | O63: =W64*W75 -> 0.024625 | P63: 0 | Q63: =W64*W76 -> 0.112625 | R63: 0 | T63: Glass impact per 1 mm | W63: 0.25
B64: 6.4 (33.1) | C64: 6 | D64: =($D$63*C64)+($W$69*W66)+$Z$64 -> 16.755 | E64: =$E$63*C64 -> 1.0725 | F64: 0 | G64: 0 | H64: =$H$63*C64 -> 2.1075 | I64: 0 | J64: 0 | K64: 0 | L64: 0 | M64: 0 | N64: 0 | O64: =$O$63*C64 -> 0.14775 | P64: 0 | Q64: =$Q$63*C64 -> 0.67575 | R64: 0 | W64: 0.125 | Z64: 1.77
B65: 6.8 (33.2) | C65: 6 | D65: =($D$63*C65)+($W$69*W67)+$Z$64 -> 18.555 | E65: =$E$63*C65 -> 1.0725 | F65: 0 | G65: 0 | H65: =$H$63*C65 -> 2.1075 | I65: 0 | J65: 0 | K65: 0 | L65: 0 | M65: 0 | N65: 0 | O65: =$O$63*C65 -> 0.14775 | P65: 0 | Q65: =$Q$63*C65 -> 0.67575 | R65: 0 | T65: Scaling factor per 4 mm (A1-A3) | W65: 8.79
B66: 8.4 (44.1) | C66: 8 | D66: =($D$63*C66)+($W$69*W66)+$Z$64 -> 21.15 | E66: =$E$63*C66 -> 1.43 | F66: 0 | G66: 0 | H66: 2.81 | I66: 0 | J66: 0 | K66: 0 | L66: 0 | M66: 0 | N66: 0 | O66: 0.197 | P66: 0 | Q66: 0.901 | R66: 0 | T66: Scaling factor - Interlayer 0.38 (1) | W66: 1
B67: 8.8 (44.2) | C67: 8 | D67: =($D$63*C67)+($W$69*W67)+$Z$64 -> 22.95 | E67: 1.43 | F67: 0 | G67: 0 | H67: 2.81 | I67: 0 | J67: 0 | K67: 0 | L67: 0 | M67: 0 | N67: 0 | O67: 0.197 | P67: 0 | Q67: 0.901 | R67: 0 | T67: Scaling factor - Interlayer 0.76 (2) | W67: 2
B68: 10.4 (55.1) | C68: 10 | D68: =($D$63*C68)+($W$69*W66)+$Z$64 -> 25.545 | E68: 1.7875 | F68: 0 | G68: 0 | H68: 3.5125 | I68: 0 | J68: 0 | K68: 0 | L68: 0 | M68: 0 | N68: 0 | O68: 0.24625 | P68: 0 | Q68: 1.12625 | R68: 0 | T68: Scaling factor - Interlayer 1.52 (4) | W68: 4
B69: 10.8 (55.2) | C69: 10 | D69: =($D$63*C69)+($W$69*W67)+$Z$64 -> 27.345 | E69: 1.7875 | F69: 0 | G69: 0 | H69: 3.5125 | I69: 0 | J69: 0 | K69: 0 | L69: 0 | M69: 0 | N69: 0 | O69: 0.24625 | P69: 0 | Q69: 1.12625 | R69: 0 | T69: Interlayer factor | W69: 1.8
B70: 11.5 (55.4) | C70: 10 | D70: =($D$63*C70)+($W$69*W68)+$Z$64 -> 30.945 | E70: 1.7875 | F70: 0 | G70: 0 | H70: 3.5125 | I70: 0 | J70: 0 | K70: 0 | L70: 0 | M70: 0 | N70: 0 | O70: 0.24625 | P70: 0 | Q70: 1.12625 | R70: 0
B71: 12.4 (66.1) | C71: 12 | D71: =($D$63*C71)+($W$69*W66)+$Z$64 -> 29.94 | E71: 2.145 | F71: 0 | G71: 0 | H71: 4.215 | I71: 0 | J71: 0 | K71: 0 | L71: 0 | M71: 0 | N71: 0 | O71: 0.2955 | P71: 0 | Q71: 1.3515 | R71: 0
B72: 12.8 (66.2) | C72: 12 | D72: =($D$63*C72)+($W$69*W67)+$Z$64 -> 31.74 | E72: 2.145 | F72: 0 | G72: 0 | H72: 4.215 | I72: 0 | J72: 0 | K72: 0 | L72: 0 | M72: 0 | N72: 0 | O72: 0.2955 | P72: 0 | Q72: 1.3515 | R72: 0
B73: 13.5 (66.4) | C73: 12 | D73: 35.34 | E73: 2.145 | F73: 0 | G73: 0 | H73: 4.215 | I73: 0 | J73: 0 | K73: 0 | L73: 0 | M73: 0 | N73: 0 | O73: 0.2955 | P73: 0 | Q73: 1.3515 | R73: 0 | T73: Scaling factor per 44.2 mm (A4) | W73: 1.43
B74: 16.4 (88.1) | C74: 16 | D74: =($D$63*C74)+($W$69*W66)+$Z$64 -> 38.73 | E74: 2.86 | F74: 0 | G74: 0 | H74: 5.62 | I74: 0 | J74: 0 | K74: 0 | L74: 0 | M74: 0 | N74: 0 | O74: 0.394 | P74: 0 | Q74: 1.802 | R74: 0 | T74: Scaling factor per 44.2 mm (B2) | W74: 2.81
B75: 16.8 (88.2) | C75: 16 | D75: =($D$63*C75)+($W$69*W67)+$Z$64 -> 40.53 | E75: 2.86 | F75: 0 | G75: 0 | H75: 5.62 | I75: 0 | J75: 0 | K75: 0 | L75: 0 | M75: 0 | N75: 0 | O75: 0.394 | P75: 0 | Q75: 1.802 | R75: 0 | T75: Scaling factor per 44.2 mm (C2) | W75: 0.197
B76: 17.5 (88.4) | C76: 16 | D76: 44.13 | E76: 2.86 | F76: 0 | G76: 0 | H76: 5.62 | I76: 0 | J76: 0 | K76: 0 | L76: 0 | M76: 0 | N76: 0 | O76: 0.394 | P76: 0 | Q76: 1.802 | R76: 0 | T76: Scaling factor per 44.2 mm (C4) | W76: 0.901
A78: Monolithic Extraclear | C78: 1 | D78: =W78*W79 -> 2.41 | E78: =W78*W80 -> 0.17225 | F78: 0 | G78: 0 | H78: =W78*W81 -> 0.3375 | I78: 0 | J78: 0 | K78: 0 | L78: 0 | M78: 0 | N78: 0 | O78: =W78*W82 -> 0.023725 | P78: 0 | Q78: =W78*W83 -> 0.10825 | R78: 0 | T78: Glass impact per 1 mm | W78: 0.25
C79: 2 | D79: =$D$78*C79 -> 4.82 | E79: =$E$78*C79 -> 0.3445 | F79: 0 | G79: 0 | H79: =$H$78*C79 -> 0.675 | I79: 0 | J79: 0 | K79: 0 | L79: 0 | M79: 0 | N79: 0 | O79: =$O$78*C79 -> 0.04745 | P79: 0 | Q79: =$Q$78*C79 -> 0.2165 | R79: 0 | T79: Scaling factor per 4 mm (A1-A3) | W79: 9.64
C80: 3 | D80: =$D$78*C80 -> 7.23 | E80: =$E$78*C80 -> 0.51675 | F80: 0 | G80: 0 | H80: =$H$78*C80 -> 1.0125 | I80: 0 | J80: 0 | K80: 0 | L80: 0 | M80: 0 | N80: 0 | O80: =$O$78*C80 -> 0.071175 | P80: 0 | Q80: =$Q$78*C80 -> 0.32475 | R80: 0 | T80: Scaling factor per 4 mm (A4) | W80: 0.689
C81: 4 | D81: 9.64 | E81: 0.689 | F81: 0 | G81: 0 | H81: 1.35 | I81: 0 | J81: 0 | K81: 0 | L81: 0 | M81: 0 | N81: 0 | O81: 0.0949 | P81: 0 | Q81: 0.433 | R81: 0 | T81: Scaling factor per 4 mm (B2) | W81: 1.35
C82: 5 | D82: 12.05 | E82: 0.86125 | F82: 0 | G82: 0 | H82: 1.6875 | I82: 0 | J82: 0 | K82: 0 | L82: 0 | M82: 0 | N82: 0 | O82: 0.118625 | P82: 0 | Q82: 0.54125 | R82: 0 | T82: Scaling factor per 4 mm (C2) | W82: 0.0949
C83: 6 | D83: 14.46 | E83: 1.0335 | F83: 0 | G83: 0 | H83: 2.025 | I83: 0 | J83: 0 | K83: 0 | L83: 0 | M83: 0 | N83: 0 | O83: 0.14235 | P83: 0 | Q83: 0.6495 | R83: 0 | T83: Scaling factor per 4 mm (C4) | W83: 0.433
C84: 8 | D84: 19.28 | E84: 1.378 | F84: 0 | G84: 0 | H84: 2.7 | I84: 0 | J84: 0 | K84: 0 | L84: 0 | M84: 0 | N84: 0 | O84: 0.1898 | P84: 0 | Q84: 0.866 | R84: 0
C85: 10 | D85: 24.1 | E85: 1.7225 | F85: 0 | G85: 0 | H85: 3.375 | I85: 0 | J85: 0 | K85: 0 | L85: 0 | M85: 0 | N85: 0 | O85: 0.23725 | P85: 0 | Q85: 1.0825 | R85: 0
C86: 12 | D86: 28.92 | E86: 2.067 | F86: 0 | G86: 0 | H86: 4.05 | I86: 0 | J86: 0 | K86: 0 | L86: 0 | M86: 0 | N86: 0 | O86: 0.2847 | P86: 0 | Q86: 1.299 | R86: 0
C87: 15 | D87: 36.15 | E87: 2.58375 | F87: 0 | G87: 0 | H87: 5.0625 | I87: 0 | J87: 0 | K87: 0 | L87: 0 | M87: 0 | N87: 0 | O87: 0.355875 | P87: 0 | Q87: 1.62375 | R87: 0
A89: Monolithic Extraclear coated | C89: 1 | D89: =W89*W90 -> 2.7675 | E89: =W92*W89 -> 0.17225 | F89: 0 | G89: 0 | H89: =W89*W93 -> 0.3375 | I89: 0 | J89: 0 | K89: 0 | L89: 0 | M89: 0 | N89: 0 | O89: =W89*W94 -> 0.023725 | P89: 0 | Q89: =W89*W95 -> 0.10825 | R89: 0 | T89: Glass impact per 1 mm | W89: 0.25
C90: 2 | D90: =$D$89*C90 -> 5.535 | E90: =$E$89*C90 -> 0.3445 | F90: 0 | G90: 0 | H90: =$H$89*C90 -> 0.675 | I90: 0 | J90: 0 | K90: 0 | L90: 0 | M90: 0 | N90: 0 | O90: =$O$89*C90 -> 0.04745 | P90: 0 | Q90: =$Q$89*C90 -> 0.2165 | R90: 0 | T90: Scaling factor per 4 mm (A1-A3) (flat+coating) | W90: =W91+Y90 -> 11.07 | Y90: 0.87
C91: 3 | D91: =$D$89*C91 -> 8.3025 | E91: =$E$89*C91 -> 0.51675 | F91: 0 | G91: 0 | H91: =$H$89*C91 -> 1.0125 | I91: 0 | J91: 0 | K91: 0 | L91: 0 | M91: 0 | N91: 0 | O91: =$O$89*C91 -> 0.071175 | P91: 0 | Q91: =$Q$89*C91 -> 0.32475 | R91: 0 | T91: Scaling factor per 4 mm (A1-A3) | W91: 10.2
C92: 4 | D92: 11.07 | E92: 0.689 | F92: 0 | G92: 0 | H92: 1.35 | I92: 0 | J92: 0 | K92: 0 | L92: 0 | M92: 0 | N92: 0 | O92: 0.0949 | P92: 0 | Q92: 0.433 | R92: 0 | T92: Scaling factor per 4 mm (A4) | W92: 0.689
C93: 5 | D93: 13.8375 | E93: 0.86125 | F93: 0 | G93: 0 | H93: 1.6875 | I93: 0 | J93: 0 | K93: 0 | L93: 0 | M93: 0 | N93: 0 | O93: 0.118625 | P93: 0 | Q93: 0.54125 | R93: 0 | T93: Scaling factor per 4 mm (B2) | W93: 1.35
C94: 6 | D94: 16.605 | E94: 1.0335 | F94: 0 | G94: 0 | H94: 2.025 | I94: 0 | J94: 0 | K94: 0 | L94: 0 | M94: 0 | N94: 0 | O94: 0.14235 | P94: 0 | Q94: 0.6495 | R94: 0 | T94: Scaling factor per 4 mm (C2) | W94: 0.0949
C95: 8 | D95: 22.14 | E95: 1.378 | F95: 0 | G95: 0 | H95: 2.7 | I95: 0 | J95: 0 | K95: 0 | L95: 0 | M95: 0 | N95: 0 | O95: 0.1898 | P95: 0 | Q95: 0.866 | R95: 0 | T95: Scaling factor per 4 mm (C4) | W95: 0.433
C96: 10 | D96: 27.675 | E96: 1.7225 | F96: 0 | G96: 0 | H96: 3.375 | I96: 0 | J96: 0 | K96: 0 | L96: 0 | M96: 0 | N96: 0 | O96: 0.23725 | P96: 0 | Q96: 1.0825 | R96: 0
C97: 12 | D97: 33.21 | E97: 2.067 | F97: 0 | G97: 0 | H97: 4.05 | I97: 0 | J97: 0 | K97: 0 | L97: 0 | M97: 0 | N97: 0 | O97: 0.2847 | P97: 0 | Q97: 1.299 | R97: 0
C98: 15 | D98: 41.5125 | E98: 2.58375 | F98: 0 | G98: 0 | H98: 5.0625 | I98: 0 | J98: 0 | K98: 0 | L98: 0 | M98: 0 | N98: 0 | O98: 0.355875 | P98: 0 | Q98: 1.62375 | R98: 0
A100: Monolithic Ultraclear | C100: 1 | D100: =W100*W101 -> 3.1 | E100: =W100*W102 -> 0.17225 | F100: 0 | G100: 0 | H100: =W100*W103 -> 0.3375 | I100: 0 | J100: 0 | K100: 0 | L100: 0 | M100: 0 | N100: 0 | O100: =W100*W104 -> 0.023725 | P100: 0 | Q100: =W100*W105 -> 0.10825 | R100: 0 | T100: Glass impact per 1 mm | W100: 0.25
C101: 2 | D101: =$D$100*C101 -> 6.2 | E101: =$E$100*C101 -> 0.3445 | F101: 0 | G101: 0 | H101: =$H$100*C101 -> 0.675 | I101: 0 | J101: 0 | K101: 0 | L101: 0 | M101: 0 | N101: 0 | O101: =$O$100*C101 -> 0.04745 | P101: 0 | Q101: =$Q$100*C101 -> 0.2165 | R101: 0 | T101: Scaling factor per 4 mm (A1-A3) | W101: 12.4
C102: 3 | D102: =$D$100*C102 -> 9.3 | E102: =$E$100*C102 -> 0.51675 | F102: 0 | G102: 0 | H102: =$H$100*C102 -> 1.0125 | I102: 0 | J102: 0 | K102: 0 | L102: 0 | M102: 0 | N102: 0 | O102: =$O$100*C102 -> 0.071175 | P102: 0 | Q102: =$Q$100*C102 -> 0.32475 | R102: 0 | T102: Scaling factor per 4 mm (A4) | W102: 0.689
C103: 4 | D103: 12.4 | E103: 0.689 | F103: 0 | G103: 0 | H103: 1.35 | I103: 0 | J103: 0 | K103: 0 | L103: 0 | M103: 0 | N103: 0 | O103: 0.0949 | P103: 0 | Q103: 0.433 | R103: 0 | T103: Scaling factor per 4 mm (B2) | W103: 1.35
C104: 5 | D104: 15.5 | E104: 0.86125 | F104: 0 | G104: 0 | H104: 1.6875 | I104: 0 | J104: 0 | K104: 0 | L104: 0 | M104: 0 | N104: 0 | O104: 0.118625 | P104: 0 | Q104: 0.54125 | R104: 0 | T104: Scaling factor per 4 mm (C2) | W104: 0.0949
C105: 6 | D105: 18.6 | E105: 1.0335 | F105: 0 | G105: 0 | H105: 2.025 | I105: 0 | J105: 0 | K105: 0 | L105: 0 | M105: 0 | N105: 0 | O105: 0.14235 | P105: 0 | Q105: 0.6495 | R105: 0 | T105: Scaling factor per 4 mm (C4) | W105: 0.433
C106: 8 | D106: 24.8 | E106: 1.378 | F106: 0 | G106: 0 | H106: 2.7 | I106: 0 | J106: 0 | K106: 0 | L106: 0 | M106: 0 | N106: 0 | O106: 0.1898 | P106: 0 | Q106: 0.866 | R106: 0
C107: 10 | D107: 31 | E107: 1.7225 | F107: 0 | G107: 0 | H107: 3.375 | I107: 0 | J107: 0 | K107: 0 | L107: 0 | M107: 0 | N107: 0 | O107: 0.23725 | P107: 0 | Q107: 1.0825 | R107: 0
C108: 12 | D108: 37.2 | E108: 2.067 | F108: 0 | G108: 0 | H108: 4.05 | I108: 0 | J108: 0 | K108: 0 | L108: 0 | M108: 0 | N108: 0 | O108: 0.2847 | P108: 0 | Q108: 1.299 | R108: 0
C109: 15 | D109: 46.5 | E109: 2.58375 | F109: 0 | G109: 0 | H109: 5.0625 | I109: 0 | J109: 0 | K109: 0 | L109: 0 | M109: 0 | N109: 0 | O109: 0.355875 | P109: 0 | Q109: 1.62375 | R109: 0
A111: Laminated | C111: 1 | D111: =W111*W113 -> 2.525 | E111: =W112*W121 -> 0.17875 | F111: 0 | G111: 0 | H111: =W112*W122 -> 0.35125 | I111: 0 | J111: 0 | K111: 0 | L111: 0 | M111: 0 | N111: 0 | O111: =W112*W123 -> 0.024625 | P111: 0 | Q111: =W112*W124 -> 0.112625 | R111: 0 | T111: Glass impact per 1 mm | W111: 0.25
B112: 6.4 (33.1) | C112: 6 | D112: =($D$111*C112)+($W$117*W114)+$Z$112 -> 17.678 | E112: =$E$111*C112 -> 1.0725 | F112: 0 | G112: 0 | H112: =$H$63*C113 -> 2.1075 | I112: 0 | J112: 0 | K112: 0 | L112: 0 | M112: 0 | N112: 0 | O112: =$O$63*C113 -> 0.14775 | P112: 0 | Q112: =$Q$111*C112 -> 0.67575 | R112: 0 | W112: 0.125 | Z112: 0.728
B113: 6.8 (33.2) | C113: 6 | D113: =($D$111*C113)+($W$117*W115)+$Z$112 -> 19.478 | E113: =$E$111*C113 -> 1.0725 | F113: 0 | G113: 0 | H113: =$H$63*C114 -> 2.81 | I113: 0 | J113: 0 | K113: 0 | L113: 0 | M113: 0 | N113: 0 | O113: =$O$63*C114 -> 0.197 | P113: 0 | Q113: =$Q$111*C113 -> 0.67575 | R113: 0 | T113: Scaling factor per 4 mm (A1-A3) | W113: 10.1
B114: 8.4 (44.1) | C114: 8 | D114: =($D$111*C114)+($W$117*W114)+$Z$112 -> 22.728 | E114: 1.43 | F114: 0 | G114: 0 | H114: 2.81 | I114: 0 | J114: 0 | K114: 0 | L114: 0 | M114: 0 | N114: 0 | O114: 0.197 | P114: 0 | Q114: 0.901 | R114: 0 | T114: Scaling factor - Interlayer 0.38 (1) | W114: 1
B115: 8.8 (44.2) | C115: 8 | D115: =($D$111*C115)+($W$117*W115)+$Z$112 -> 24.528 | E115: 1.43 | F115: 0 | G115: 0 | H115: 3.5125 | I115: 0 | J115: 0 | K115: 0 | L115: 0 | M115: 0 | N115: 0 | O115: 0.24625 | P115: 0 | Q115: 0.901 | R115: 0 | T115: Scaling factor - Interlayer 0.76 (2) | W115: 2
B116: 10.4 (55.1) | C116: 10 | D116: =($D$111*C116)+($W$117*W114)+$Z$112 -> 27.778 | E116: 1.7875 | F116: 0 | G116: 0 | H116: 3.5125 | I116: 0 | J116: 0 | K116: 0 | L116: 0 | M116: 0 | N116: 0 | O116: 0.24625 | P116: 0 | Q116: 1.12625 | R116: 0 | T116: Scaling factor - Interlayer 1.52 (4) | W116: 4
B117: 10.8 (55.2) | C117: 10 | D117: =($D$111*C117)+($W$117*W115)+$Z$112 -> 29.578 | E117: 1.7875 | F117: 0 | G117: 0 | H117: 3.5125 | I117: 0 | J117: 0 | K117: 0 | L117: 0 | M117: 0 | N117: 0 | O117: 0.24625 | P117: 0 | Q117: 1.12625 | R117: 0 | T117: Interlayer factor | W117: 1.8
B118: 11.5 (55.4) | C118: 10 | D118: =($D$111*C118)+($W$117*W116)+$Z$112 -> 33.178 | E118: 1.7875 | F118: 0 | G118: 0 | H118: 4.215 | I118: 0 | J118: 0 | K118: 0 | L118: 0 | M118: 0 | N118: 0 | O118: 0.2955 | P118: 0 | Q118: 1.12625 | R118: 0
B119: 12.4 (66.1) | C119: 12 | D119: =($D$111*C119)+($W$117*W114)+$Z$112 -> 32.828 | E119: 2.145 | F119: 0 | G119: 0 | H119: 4.215 | I119: 0 | J119: 0 | K119: 0 | L119: 0 | M119: 0 | N119: 0 | O119: 0.2955 | P119: 0 | Q119: 1.3515 | R119: 0
B120: 12.8 (66.2) | C120: 12 | D120: =($D$111*C120)+($W$117*W115)+$Z$112 -> 34.628 | E120: 2.145 | F120: 0 | G120: 0 | H120: 4.215 | I120: 0 | J120: 0 | K120: 0 | L120: 0 | M120: 0 | N120: 0 | O120: 0.2955 | P120: 0 | Q120: 1.3515 | R120: 0
B121: 13.5 (66.4) | C121: 12 | D121: =($D$111*C121)+($W$117*W116)+$Z$112 -> 38.228 | E121: 2.145 | F121: 0 | G121: 0 | H121: 5.62 | I121: 0 | J121: 0 | K121: 0 | L121: 0 | M121: 0 | N121: 0 | O121: 0.394 | P121: 0 | Q121: 1.3515 | R121: 0 | T121: Scaling factor per 44.2 mm (A4) | W121: 1.43
B122: 16.4 (88.1) | C122: 16 | D122: =($D$111*C122)+($W$117*W114)+$Z$112 -> 42.928 | E122: 2.86 | F122: 0 | G122: 0 | H122: 5.62 | I122: 0 | J122: 0 | K122: 0 | L122: 0 | M122: 0 | N122: 0 | O122: 0.394 | P122: 0 | Q122: 1.802 | R122: 0 | T122: Scaling factor per 44.2 mm (B2) | W122: 2.81
B123: 16.8 (88.2) | C123: 16 | D123: =($D$111*C123)+($W$117*W115)+$Z$112 -> 44.728 | E123: 2.86 | F123: 0 | G123: 0 | H123: 5.62 | I123: 0 | J123: 0 | K123: 0 | L123: 0 | M123: 0 | N123: 0 | O123: 0.394 | P123: 0 | Q123: 1.802 | R123: 0 | T123: Scaling factor per 44.2 mm (C2) | W123: 0.197
B124: 17.5 (88.4) | C124: 16 | D124: =($D$111*C124)+($W$117*W116)+$Z$112 -> 48.328 | E124: 2.86 | F124: 0 | G124: 0 | H124: 0 | I124: 0 | J124: 0 | K124: 0 | L124: 0 | M124: 0 | N124: 0 | O124: 0 | P124: 0 | Q124: 1.802 | R124: 0 | T124: Scaling factor per 44.2 mm (C4) | W124: 0.901
A129: Sentry glass | C129: 1 | D129: 3.8 | E129: 0.215 | F129: 0 | G129: 0 | H129: 0.038 | I129: 0 | J129: 0 | K129: 0 | L129: 0 | M129: 0 | N129: 0 | O129: 0.0083 | P129: 0 | Q129: 0.041 | R129: 0
B130: 13.5 (66.4) | C130: 12 | D130: =($D$129*C130)+($W$143*$W$137) -> 54.9456 | E130: =($E$129*C130)+($W$144*$W$138) -> 2.59606 | F130: 0 | G130: 0 | H130: =($H$129*C130)+($W$145*$W$139) -> 0.45600227 | I130: 0 | J130: 0 | K130: 0 | L130: 0 | M130: 0 | N130: 0 | O130: =($O$129*C130)+($W$146*$W$140) -> 0.1005396 | P130: 0 | Q130: =($Q$129*C130)+($W$147*$W$141) -> 0.4938625 | R130: 0
B131: 17.5 (88.4) | C131: 16 | D131: =($D$129*C131)+($W$143*$W$137) -> 70.1456 | E131: =($E$129*C131)+($W$144*$W$138) -> 3.45606 | F131: 0 | G131: 0 | H131: =($H$129*C131)+($W$145*$W$139) -> 0.60800227 | I131: 0 | J131: 0 | K131: 0 | L131: 0 | M131: 0 | N131: 0 | O131: =($O$129*C131)+($W$146*$W$140) -> 0.1337396 | P131: 0 | Q131: =($Q$129*C131)+($W$147*$W$141) -> 0.6578625 | R131: 0
B132: 21.5 (1010.4) | C132: 20 | D132: =($D$129*C132)+($W$143*$W$137) -> 85.3456 | E132: 4.31606 | F132: 0 | G132: 0 | H132: 0.76000227 | I132: 0 | J132: 0 | K132: 0 | L132: 0 | M132: 0 | N132: 0 | O132: 0.1669396 | P132: 0 | Q132: 0.8218625 | R132: 0
B133: 25.5 (1212.4) | C133: 24 | D133: =($D$129*C133)+($W$143*$W$137) -> 100.5456 | E133: 5.17606 | F133: 0 | G133: 0 | H133: 0.91200227 | I133: 0 | J133: 0 | K133: 0 | L133: 0 | M133: 0 | N133: 0 | O133: 0.2001396 | P133: 0 | Q133: 0.9858625 | R133: 0
B134: 31.5 (1515.4) | C134: 30 | D134: =($D$129*C134)+($W$143*$W$137) -> 123.3456 | E134: 6.46606 | F134: 0 | G134: 0 | H134: 1.14000227 | I134: 0 | J134: 0 | K134: 0 | L134: 0 | M134: 0 | N134: 0 | O134: 0.2499396 | P134: 0 | Q134: 1.2318625 | R134: 0
T137: Laminating process (A1-A3) | W137: 1.77
T138: Laminating process (A4) | W138: 0.073
T139: Laminating process (C2) | W139: 0.001
T140: Laminating process (C4) | W140: 0.018
T141: Laminating process (D) | W141: 0.025
T143: Interlayer factor 1.52 (A1-A3) | W143: 5.28
T144: Interlayer factor 1.52 (A4) | W144: 0.22
T145: Interlayer factor 1.52 (C2) | W145: 0.00227
T146: Interlayer factor 1.52 (C4) | W146: 0.0522
T147: Interlayer factor 1.52 (D) | W147: 0.0745

Sheet Calculation Pilkington (hidden)
C2: Thickness | D2: A1-A3 | E2: A4 | F2: A5 | G2: B1 | H2: B2 | I2: B3 | J2: B4 | K2: B5 | L2: B6 | M2: B7 | N2: C1 | O2: C2 | P2: C3 | Q2: C4 | R2: D
A4: Mirai monolithic | C4: 4 | D4: =1.35*C4 -> 5.4 | E4: =0.272*C4 -> 1.088 | F4: =0.006*C4 -> 0.024 | G4: 0 | H4: =0.56*C4 -> 2.24 | I4: 0 | J4: 0 | K4: 0 | L4: 0 | M4: 0 | N4: 0 | O4: =0.125*C4 -> 0.5 | P4: 0 | Q4: =0.139*C4 -> 0.556 | R4: 0
C5: 6 | D5: =1.35*C5 -> 8.1 | E5: =0.272*C5 -> 1.632 | F5: =0.006*C5 -> 0.036 | G5: 0 | H5: =0.56*C5 -> 3.36 | I5: 0 | J5: 0 | K5: 0 | L5: 0 | M5: 0 | N5: 0 | O5: =0.125*C5 -> 0.75 | P5: 0 | Q5: =0.139*C5 -> 0.834 | R5: 0
C6: 8 | D6: 10.8 | E6: 2.176 | F6: 0.048 | G6: 0 | H6: 4.48 | I6: 0 | J6: 0 | K6: 0 | L6: 0 | M6: 0 | N6: 0 | O6: 1 | P6: 0 | Q6: 1.112 | R6: 0
A7: Monolithic offline coated | C7: 4 | D7: =D8/C8*C7 -> 5.926666667 | E7: =E8/C8*C7 -> 0.2053333333 | F7: =F8/C8*C7 -> 0.036 | G7: 0 | H7: =H8/C8*C7 -> 0.1006666667 | I7: 0 | J7: 0 | K7: 0 | L7: 0 | M7: 0 | N7: 0 | O7: =O8/C8*C7 -> 0.152 | P7: 0 | Q7: 0.16975 | R7: 0
C8: 6 | D8: 8.89 | E8: 0.308 | F8: 0.054 | G8: 0 | H8: 0.151 | I8: 0 | J8: 0 | K8: 0 | L8: 0 | M8: 0 | N8: 0 | O8: 0.228 | P8: 0 | Q8: 0.296 | R8: 0
C9: 8 | D9: =D8/C8*C9 -> 11.85333333 | E9: =E8/C8*C9 -> 0.4106666667 | F9: =F8/C8*C9 -> 0.072 | G9: 0 | H9: =H8/C8*C9 -> 0.2013333333 | I9: 0 | J9: 0 | K9: 0 | L9: 0 | M9: 0 | N9: 0 | O9: =O8/C8*C9 -> 0.304 | P9: 0 | Q9: =Q8/C8*C9 -> 0.3946666667 | R9: 0
A10: Monolithic toughened | C10: 4 | D10: =D11/C11*C10 -> 8.8 | E10: =E11/C11*C10 -> 0.2053333333 | F10: =F11/C11*C10 -> 0.036 | G10: 0 | H10: =H11/C11*C10 -> 0.1006666667 | I10: 0 | J10: 0 | K10: 0 | L10: 0 | M10: 0 | N10: 0 | O10: =O11/C11*C10 -> 0.152 | P10: 0 | Q10: 0.18666 | R10: 0
C11: 6 | D11: 13.2 | E11: 0.308 | F11: 0.054 | G11: 0 | H11: 0.151 | I11: 0 | J11: 0 | K11: 0 | L11: 0 | M11: 0 | N11: 0 | O11: 0.228 | P11: 0 | Q11: 0.28 | R11: 0
C12: 8 | D12: =D11/C11*C12 -> 17.6 | E12: =E11/C11*C12 -> 0.4106666667 | F12: =F11/C11*C12 -> 0.072 | G12: 0 | H12: =H11/C11*C12 -> 0.2013333333 | I12: 0 | J12: 0 | K12: 0 | L12: 0 | M12: 0 | N12: 0 | O12: =O11/C11*C12 -> 0.304 | P12: 0 | Q12: =Q11/C11*C12 -> 0.3733333333 | R12: 0
A13: Monolithic toughened offline coated | C13: 4 | D13: =D14/C14*C13 -> 7.466666667 | E13: =E14/C14*C13 -> 0.2053333333 | F13: =F14/C14*C13 -> 0.036 | G13: 0 | H13: =H14/C14*C13 -> 0.1006666667 | I13: 0 | J13: 0 | K13: 0 | L13: 0 | M13: 0 | N13: 0 | O13: =O14/C14*C13 -> 0.152 | P13: 0 | Q13: =Q14/C14*C13 -> 0.1906666667 | R13: 0
C14: 6 | D14: 11.2 | E14: 0.308 | F14: 0.054 | G14: 0 | H14: 0.151 | I14: 0 | J14: 0 | K14: 0 | L14: 0 | M14: 0 | N14: 0 | O14: 0.228 | P14: 0 | Q14: 0.286 | R14: 0
C15: 8 | D15: =D14/C14*C15 -> 14.93333333 | E15: =E14/C14*C15 -> 0.4106666667 | F15: =F14/C14*C15 -> 0.072 | G15: 0 | H15: =H14/C14*C15 -> 0.2013333333 | I15: 0 | J15: 0 | K15: 0 | L15: 0 | M15: 0 | N15: 0 | O15: =O14/C14*C15 -> 0.304 | P15: 0 | Q15: =Q14/C14*C15 -> 0.3813333333 | R15: 0
A16: Laminated 8.8 | C16: 8.8 | D16: =D19/C19*C16 -> 19.9375 | E16: =E19/C19*C16 -> 0.4345 | F16: =F19/C19*C16 -> 0.037125 | G16: 0 | H16: =H19/C19*C16 -> 0.037125 | I16: 0 | J16: 0 | K16: 0 | L16: 0 | M16: 0 | N16: 0 | O16: =O19/C19*C16 -> 0.3238125 | P16: 0 | Q16: =Q19/C19*C16 -> 0.4915625 | R16: 0
C17: 10.8 | D17: =D19/C19*C17 -> 24.46875 | E17: =E19/C19*C17 -> 0.53325 | F17: =F19/C19*C17 -> 0.0455625 | G17: 0 | H17: =H19/C19*C17 -> 0.0455625 | I17: 0 | J17: 0 | K17: 0 | L17: 0 | M17: 0 | N17: 0 | O17: =O19/C19*C17 -> 0.39740625 | P17: 0 | Q17: =Q19/C19*C17 -> 0.60328125 | R17: 0
C18: 11.5 | D18: =D19/C19*C18 -> 26.0546875 | E18: =E19/C19*C18 -> 0.5678125 | F18: =F19/C19*C18 -> 0.048515625 | G18: 0 | H18: =H19/C19*C18 -> 0.048515625 | I18: 0 | J18: 0 | K18: 0 | L18: 0 | M18: 0 | N18: 0 | O18: =O19/C19*C18 -> 0.4231640625 | P18: 0 | Q18: =Q19/C19*C18 -> 0.6423828125 | R18: 0
C19: 12.8 | D19: 29 | E19: 0.632 | F19: 0.054 | G19: 0 | H19: 0.054 | I19: 0 | J19: 0 | K19: 0 | L19: 0 | M19: 0 | N19: 0 | O19: 0.471 | P19: 0 | Q19: =0.715 -> 0.715 | R19: 0
C20: 13.5 | D20: =D19/C19*C20 -> 30.5859375 | E20: =E19/C19*C20 -> 0.6665625 | F20: =F19/C19*C20 -> 0.056953125 | G20: 0 | H20: =H19/C19*C20 -> 0.056953125 | I20: 0 | J20: 0 | K20: 0 | L20: 0 | M20: 0 | N20: 0 | O20: =O19/C19*C20 -> 0.4967578125 | P20: 0 | Q20: =Q19/C19*C20 -> 0.7541015625 | R20: 0
A21: Laminated offline coated | C21: 8.8 | D21: =D24/C24*C21 -> 20.55625 | E21: =E24/C24*C21 -> 0.4345 | F21: =F24/C24*C21 -> 0.037125 | G21: 0 | H21: =H24/C24*C21 -> 0.037125 | I21: 0 | J21: 0 | K21: 0 | L21: 0 | M21: 0 | N21: 0 | O21: =O24/C24*C21 -> 0.3238125 | P21: 0 | Q21: =Q24/C24*C21 -> 0.495 | R21: 0
C22: 10.8 | D22: =D24/C24*C22 -> 25.228125 | E22: =E24/C24*C22 -> 0.53325 | F22: =F24/C24*C22 -> 0.0455625 | G22: 0 | H22: =H24/C24*C22 -> 0.0455625 | I22: 0 | J22: 0 | K22: 0 | L22: 0 | M22: 0 | N22: 0 | O22: =O24/C24*C22 -> 0.39740625 | P22: 0 | Q22: =Q24/C24*C22 -> 0.6075 | R22: 0
C23: 11.5 | D23: =D24/C24*C23 -> 26.86328125 | E23: =E24/C24*C23 -> 0.5678125 | F23: =F24/C24*C23 -> 0.048515625 | G23: 0 | H23: =H24/C24*C23 -> 0.048515625 | I23: 0 | J23: 0 | K23: 0 | L23: 0 | M23: 0 | N23: 0 | O23: =O24/C24*C23 -> 0.4231640625 | P23: 0 | Q23: =Q24/C24*C23 -> 0.646875 | R23: 0
C24: 12.8 | D24: 29.9 | E24: 0.632 | F24: 0.054 | G24: 0 | H24: 0.054 | I24: 0 | J24: 0 | K24: 0 | L24: 0 | M24: 0 | N24: 0 | O24: 0.471 | P24: 0 | Q24: 0.72 | R24: 0
C25: 13.5 | D25: =D24/C24*C25 -> 31.53515625 | E25: =E24/C24*C25 -> 0.6665625 | F25: =F24/C24*C25 -> 0.056953125 | G25: 0 | H25: =H24/C24*C25 -> 0.056953125 | I25: 0 | J25: 0 | K25: 0 | L25: 0 | M25: 0 | N25: 0 | O25: =O24/C24*C25 -> 0.4967578125 | P25: 0 | Q25: =Q24/C24*C25 -> 0.759375 | R25: 0
A26: Monolithic 2 mm | C26: 2
A27: Monolithic 3 mm | C27: 3
A28: Monolithic 4 mm | C28: 4
A29: Monolithic 5 mm | C29: 5
A30: Monolithic 6 mm | C30: 6
A31: Monolithic 8 mm | C31: 8
A32: Monolithic 10 mm | C32: 10
A33: Monolithic 12 mm | C33: 12
A34: Monolithic 15 mm | C34: 15
A35: Monolithic offline coated 3 mm | C35: 3
A36: Monolithic offline coated 4 mm | C36: 4 | U36: 2.75
A37: Monolithic offline coated 5 mm | C37: 5
A38: Monolithic offline coated 6 mm | C38: 6
A39: Monolithic offline coated 8 mm | C39: 8
A40: Monolithic offline coated 10 mm | C40: 10
A41: Monolithic offline coated 12 mm | C41: 12
A42: Monolithic online coated 3 mm | C42: 3
A43: Monolithic online coated 4 mm | C43: 4
A44: Monolithic online coated 5 mm | C44: 5
A45: Monolithic online coated 6 mm | C45: 6
A46: Monolithic online coated 8 mm | C46: 8
A47: Monolithic online coated 10 mm | C47: 10
A48: Monolithic toughened 4 mm | C48: 4
A49: Monolithic toughened 5 mm | C49: 5
A50: Monolithic toughened 6 mm | C50: 6
A51: Monolithic toughened 8 mm | C51: 8
A52: Monolithic toughened 10 mm | C52: 10
A53: Monolithic toughened 12 mm | C53: 12
A54: Monolithic toughened 15 mm | C54: 15
A55: Monolithic toughened offline coated 4 mm | C55: 4
A56: Monolithic toughened offline coated 5 mm | C56: 5
A57: Monolithic toughened offline coated 6 mm | C57: 6
A58: Monolithic toughened offline coated 8 mm | C58: 8
A59: Monolithic toughened offline coated 10 mm | C59: 10
A60: Monolithic toughened offline coated 12 mm | C60: 12
A61: Monolithic toughened online coated 4 mm | C61: 4
A62: Monolithic toughened online coated 5 mm | C62: 5
A63: Monolithic toughened online coated 6 mm | C63: 6
A64: Monolithic toughened online coated 8 mm | C64: 8
A65: Monolithic toughened online coated 10 mm | C65: 10
A66: Monolithic toughened online coated 12 mm | C66: 12
A67: Laminated 8.8 (44.2) | C67: 8.8
A68: Laminated 10.8 (55.2) | C68: 10.8
A69: Laminated 11.5 (55.4) | C69: 11.5
A70: Laminated 12.8 (66.2) | C70: 12.8
A71: Laminated 13.5 (66.4) | C71: 13.5
A72: Laminated offline coated 8.8 (44.2) | C72: 8.8
A73: Laminated offline coated 10.8 (55.2) | C73: 10.8
A74: Laminated offline coated 11.5 (55.4) | C74: 11.5
A75: Laminated offline coated 12.8 (66.2) | C75: 12.8
A76: Laminated offline coated 13.5 (66.4) | C76: 13.5
A77: Laminated online coated 8.8 (44.2) | C77: 8.8
A78: Laminated online coated 10.8 (55.2) | C78: 10.8
A79: Laminated online coated 11.5 (55.4) | C79: 11.5
A80: Laminated online coated 12.8 (66.2) | C80: 12.8
A81: Laminated online coated 13.5 (66.4) | C81: 13.5
A82: Laminated toughened 8.8 (44.2) | C82: 8.8
A83: Laminated 10.8 (55.2) | C83: 10.8
A84: Laminated 11.5 (55.4) | C84: 11.5
A85: Laminated 12.8 (66.2) | C85: 12.8
A86: Laminated 13.5 (66.4) | C86: 13.5
A87: Laminated 17.5 (88.4) | C87: 17.5
A88: Laminated 21.5 (1010.4) | C88: 21.5
A89: Monolithic 2 mm (Low Iron) | C89: 2
A90: Monolithic 3 mm (Low Iron) | C90: 3
A91: Monolithic 4 mm (Low Iron) | C91: 4
A92: Monolithic 5 mm (Low Iron) | C92: 5
A93: Monolithic 6 mm (Low Iron) | C93: 6
A94: Monolithic 8 mm (Low Iron) | C94: 8
A95: Monolithic 10 mm (Low Iron) | C95: 10
A96: Monolithic 12 mm (Low Iron) | C96: 12
A97: Monolithic 15 mm (Low Iron) | C97: 15
A98: Monolithic offline coated 3 mm (Low Iron) | C98: 3
A99: Monolithic offline coated 4 mm (Low Iron) | C99: 4
A100: Monolithic offline coated 5 mm (Low Iron) | C100: 5
A101: Monolithic offline coated 6 mm (Low Iron) | C101: 6
A102: Monolithic offline coated 8 mm (Low Iron) | C102: 8
A103: Monolithic offline coated 10 mm (Low Iron) | C103: 10
A104: Monolithic offline coated 12 mm (Low Iron) | C104: 12
A105: Monolithic toughened 4 mm (Low Iron) | C105: 4
A106: Monolithic toughened 5 mm (Low Iron) | C106: 5
A107: Monolithic toughened 6 mm (Low Iron) | C107: 6
A108: Monolithic toughened 8 mm (Low Iron) | C108: 8
A109: Monolithic toughened 10 mm (Low Iron) | C109: 10
A110: Monolithic toughened 12 mm (Low Iron) | C110: 12
A111: Monolithic toughened 15 mm (Low Iron) | C111: 15
A112: Monolithic toughened offline coated 4 mm (Low Iron) | C112: 4
A113: Monolithic toughened offline coated 5 mm (Low Iron) | C113: 5
A114: Monolithic toughened offline coated 6 mm (Low Iron) | C114: 6
A115: Monolithic toughened offline coated 8 mm (Low Iron) | C115: 8
A116: Monolithic toughened offline coated 10 mm (Low Iron) | C116: 10
A117: Monolithic toughened offline coated 12 mm (Low Iron) | C117: 12
A118: Monolithic 4 mm | C118: 4
A119: Monolithic 5 mm | C119: 5
A120: Monolithic 6 mm | C120: 6
A121: Monolithic 8 mm | C121: 8
A122: Monolithic 10 mm | C122: 10
